Department Family,Entity,Date,Expense Type,Expense Area,Supplier,Transaction Number,AP Amount,Description,Supplier Postcode
Department of Health,NHS Sheffield CCG,31/03/2021,C&M-PMS Contract Value,PRC DELEGATED CO-COMMISSIONING,ABBEY LANE SURGERY,35928046,"24,265.20",BABALP,S8 0BJ
Department of Health,NHS Sheffield CCG,31/03/2021,C&M-PMS DES Minor Surgery,PRC DELEGATED CO-COMMISSIONING,ABBEY LANE SURGERY,35928046,320.00,DEMSUP,S8 0BJ
Department of Health,NHS Sheffield CCG,31/03/2021,C&M-PMS Out of Hours Opt Outs,PRC DELEGATED CO-COMMISSIONING,ABBEY LANE SURGERY,35928046,15.94,APMOOH,S8 0BJ
Department of Health,NHS Sheffield CCG,31/03/2021,C&M-PMS PCN DES Participation,PRC DELEGATED CO-COMMISSIONING,ABBEY LANE SURGERY,35928046,900.11,PARTIP,S8 0BJ
Department of Health,NHS Sheffield CCG,31/03/2021,C&M-PMS Prem Notional Rent,PRC DELEGATED CO-COMMISSIONING,ABBEY LANE SURGERY,35928046,"2,166.67",NRENT,S8 0BJ
Department of Health,NHS Sheffield CCG,31/03/2021,C&M-PMS QOF Aspiration,PRC DELEGATED CO-COMMISSIONING,ABBEY LANE SURGERY,35928046,"2,440.19",QUASPP,S8 0BJ
Department of Health,NHS Sheffield CCG,31/03/2021,Cont Care-Physical Disab (65+),CHC ADULT FULLY FUNDED,ABBEYCARE NURSING,35864703,"56,420.62",https://nww.einvoice-prod.sbs.nhs.uk:8179/invoicepdf/37a353c3-6df0-5073-a95e-6241595b363c,S35 9YY
Department of Health,NHS Sheffield CCG,31/03/2021,Clinical&Medical-Voluntary Sector,COMMUNITY SERVICES,AGE UK SHEFFIELD,36189788,"30,000.00",,S2 3FG
Department of Health,NHS Sheffield CCG,31/03/2021,Other Gen Supplies & Srv,CLINICAL LEADS,BARNSLEY HOSPITAL NHS FOUNDATION TRUST,35953564,"195,000.00",,S75 2EP
Department of Health,NHS Sheffield CCG,31/03/2021,Other Gen Supplies & Srv,CLINICAL LEADS,BARNSLEY HOSPITAL NHS FOUNDATION TRUST,36074009,"31,560.00",https://nww.einvoice-prod.sbs.nhs.uk:8179/invoicepdf/9b5577c5-c593-5eb7-9769-6acb16a98477,S75 2EP
Department of Health,NHS Sheffield CCG,31/03/2021,Other Gen Supplies & Srv,BEREAVEMENT SERVICE,BARNSLEY HOSPITAL NHS FOUNDATION TRUST,36090489,"290,044.80",,S75 2EP
Department of Health,NHS Sheffield CCG,31/03/2021,Seconded-Basic Sal-Staff fm oth org,CLINICAL LEADS,BARNSLEY HOSPITAL NHS FOUNDATION TRUST,36132625,"62,236.80",https://nww.einvoice-prod.sbs.nhs.uk:8179/invoicepdf/1d13aa34-8db3-5134-8440-eb4af38f225c,S75 2EP
Department of Health,NHS Sheffield CCG,31/03/2021,Seconded-Employer's NHI Costs,CLINICAL LEADS,BARNSLEY HOSPITAL NHS FOUNDATION TRUST,36132625,"7,001.64",,S75 2EP
Department of Health,NHS Sheffield CCG,31/03/2021,C&M-PMS Contract Value,PRC DELEGATED CO-COMMISSIONING,BARNSLEY ROAD SURGERY,35928050,"21,073.10",BABALP,S5 0QJ
Department of Health,NHS Sheffield CCG,31/03/2021,C&M-PMS Funding Differential Review,PRC DELEGATED CO-COMMISSIONING,BARNSLEY ROAD SURGERY,35928050,506.44,ZFUNFP,S5 0QJ
Department of Health,NHS Sheffield CCG,31/03/2021,C&M-PMS PCN DES Participation,PRC DELEGATED CO-COMMISSIONING,BARNSLEY ROAD SURGERY,35928050,788.19,PARTIP,S5 0QJ
Department of Health,NHS Sheffield CCG,31/03/2021,C&M-PMS Prem Notional Rent,PRC DELEGATED CO-COMMISSIONING,BARNSLEY ROAD SURGERY,35928050,"2,652.17",NRENT,S5 0QJ
Department of Health,NHS Sheffield CCG,31/03/2021,C&M-PMS Prem Rates,PRC DELEGATED CO-COMMISSIONING,BARNSLEY ROAD SURGERY,35928050,"6,736.50",RANDRP,S5 0QJ
Department of Health,NHS Sheffield CCG,31/03/2021,C&M-PMS QOF Aspiration,PRC DELEGATED CO-COMMISSIONING,BARNSLEY ROAD SURGERY,35928050,"2,289.13",QUASPP,S5 0QJ
Department of Health,NHS Sheffield CCG,31/03/2021,C&M-GMS DES Minor Surgery,PRC DELEGATED CO-COMMISSIONING,BASLOW ROAD & SHOREHAM STREET SURGERIES,36162571,"3,165.00",DEMSUG,S17 4DR
Department of Health,NHS Sheffield CCG,31/03/2021,C&M-GMS Global Sum,PRC DELEGATED CO-COMMISSIONING,BASLOW ROAD & SHOREHAM STREET SURGERIES,36162571,"98,933.25",GSUMG,S17 4DR
Department of Health,NHS Sheffield CCG,31/03/2021,C&M-GMS PCN DES Participation,PRC DELEGATED CO-COMMISSIONING,BASLOW ROAD & SHOREHAM STREET SURGERIES,36162571,"3,972.12",PARTIG,S17 4DR
Department of Health,NHS Sheffield CCG,31/03/2021,C&M-GMS Prem Notional Rent,PRC DELEGATED CO-COMMISSIONING,BASLOW ROAD & SHOREHAM STREET SURGERIES,36162571,"8,222.71",NRENT,S17 4DR
Department of Health,NHS Sheffield CCG,31/03/2021,C&M-GMS Prem Water Rates,PRC DELEGATED CO-COMMISSIONING,BASLOW ROAD & SHOREHAM STREET SURGERIES,36162571,102.25,RAMW,S17 4DR
Department of Health,NHS Sheffield CCG,31/03/2021,C&M-GMS QOF Aspiration,PRC DELEGATED CO-COMMISSIONING,BASLOW ROAD & SHOREHAM STREET SURGERIES,36162571,"10,305.33",QUASPG,S17 4DR
Department of Health,NHS Sheffield CCG,31/03/2021,Cont Care-Physical Disab (65+),CHC ADULT FULLY FUNDED,BC SHEFFIELD LTD,35946133,"41,696.43",https://nww.einvoice-prod.sbs.nhs.uk:8179/invoicepdf/323a6b68-e355-5b3c-9e18-b920b6a08ba6,S9 2TJ
Department of Health,NHS Sheffield CCG,31/03/2021,C&M-PMS Contract Value,PRC DELEGATED CO-COMMISSIONING,BIRLEY HEALTH CENTRE,35928054,"65,453.56",BABALP,S12 3BP
Department of Health,NHS Sheffield CCG,31/03/2021,C&M-PMS DES Minor Surgery,PRC DELEGATED CO-COMMISSIONING,BIRLEY HEALTH CENTRE,35928054,"4,135.00",DEMSUP,S12 3BP
Department of Health,NHS Sheffield CCG,31/03/2021,C&M-PMS Out of Hours Opt Outs,PRC DELEGATED CO-COMMISSIONING,BIRLEY HEALTH CENTRE,35928054,24.93,APMOOH,S12 3BP
Department of Health,NHS Sheffield CCG,31/03/2021,C&M-PMS PCN DES Participation,PRC DELEGATED CO-COMMISSIONING,BIRLEY HEALTH CENTRE,35928054,"2,447.94",PARTIP,S12 3BP
Department of Health,NHS Sheffield CCG,31/03/2021,C&M-PMS Prem Notional Rent,PRC DELEGATED CO-COMMISSIONING,BIRLEY HEALTH CENTRE,35928054,"7,600.58",NRENT,S12 3BP
Department of Health,NHS Sheffield CCG,31/03/2021,C&M-PMS Prem Water Rates,PRC DELEGATED CO-COMMISSIONING,BIRLEY HEALTH CENTRE,35928054,93.26,RAMWP,S12 3BP
Department of Health,NHS Sheffield CCG,31/03/2021,C&M-PMS QOF Aspiration,PRC DELEGATED CO-COMMISSIONING,BIRLEY HEALTH CENTRE,35928054,"6,800.34",QUASPP,S12 3BP
Department of Health,NHS Sheffield CCG,31/03/2021,Participation Fees,CLINICAL LEADS,BLUEBELL WOOD CHILDRENS HOSPICE,35896884,"90,000.00",,S25 4AJ
Department of Health,NHS Sheffield CCG,31/03/2021,Cont Care-Physical Disab (<65),CHC ADULT FULLY FUNDED,BONDCARE,35957697,"30,480.11",CHC SCHEDULE MARCH 2021 - Chatsworth Grange Nursing Home,NW4 4EF
Department of Health,NHS Sheffield CCG,31/03/2021,Cont Care-Funded Nursing Care Allow,FUNDED NURSING CARE,BONDCARE,36123667,"27,693.00",FNC SCHEDULE MARCH 2021 - Chatsworth Grange Nursing Home,NW4 4EF
Department of Health,NHS Sheffield CCG,31/03/2021,C&M-GMS Cost of Drugs -Prescribing,LOCAL ENHANCED SERVICES,BROOMHILL SURGERY,36162577,"5,850.73",DRGP,S10 5BU
Department of Health,NHS Sheffield CCG,31/03/2021,C&M-GMS DES Learn Dsblty Hlth Chk,PRC DELEGATED CO-COMMISSIONING,BROOMHILL SURGERY,36162577,140.00,LEARNG,S10 5BU
Department of Health,NHS Sheffield CCG,31/03/2021,C&M-GMS DES Minor Surgery,PRC DELEGATED CO-COMMISSIONING,BROOMHILL SURGERY,36162577,350.00,DEMSUG,S10 5BU
Department of Health,NHS Sheffield CCG,31/03/2021,C&M-GMS Global Sum,PRC DELEGATED CO-COMMISSIONING,BROOMHILL SURGERY,36162577,"66,969.60",GSUMG,S10 5BU
Department of Health,NHS Sheffield CCG,31/03/2021,C&M-GMS PCN DES Participation,PRC DELEGATED CO-COMMISSIONING,BROOMHILL SURGERY,36162577,"2,661.46",PARTIG,S10 5BU
Department of Health,NHS Sheffield CCG,31/03/2021,C&M-GMS Prem Cost Rent,PRC DELEGATED CO-COMMISSIONING,BROOMHILL SURGERY,36162577,"2,975.42",COST,S10 5BU
Department of Health,NHS Sheffield CCG,31/03/2021,C&M-GMS Prem Notional Rent,PRC DELEGATED CO-COMMISSIONING,BROOMHILL SURGERY,36162577,"2,612.50",NRENT,S10 5BU
Department of Health,NHS Sheffield CCG,31/03/2021,C&M-GMS Prof Fees Prescribing,PRC DELEGATED CO-COMMISSIONING,BROOMHILL SURGERY,36162577,"1,064.93",DRGPPF,S10 5BU
Department of Health,NHS Sheffield CCG,31/03/2021,C&M-GMS QOF Aspiration,PRC DELEGATED CO-COMMISSIONING,BROOMHILL SURGERY,36162577,"6,610.83",QUASPG,S10 5BU
Department of Health,NHS Sheffield CCG,31/03/2021,C&M-GMS Cost of Drugs -Prescribing,LOCAL ENHANCED SERVICES,BUCHANAN ROAD SURGERY,36162574,85.97,DRGP,S5 8AL
Department of Health,NHS Sheffield CCG,31/03/2021,C&M-GMS DES Minor Surgery,PRC DELEGATED CO-COMMISSIONING,BUCHANAN ROAD SURGERY,36162574,200.00,DEMSUG,S5 8AL
Department of Health,NHS Sheffield CCG,31/03/2021,C&M-GMS Global Sum,PRC DELEGATED CO-COMMISSIONING,BUCHANAN ROAD SURGERY,36162574,"36,722.96",GSUMG,S5 8AL
Department of Health,NHS Sheffield CCG,31/03/2021,C&M-GMS PCN DES Participation,PRC DELEGATED CO-COMMISSIONING,BUCHANAN ROAD SURGERY,36162574,"1,470.69",PARTIG,S5 8AL
Department of Health,NHS Sheffield CCG,31/03/2021,C&M-GMS Prem Notional Rent,PRC DELEGATED CO-COMMISSIONING,BUCHANAN ROAD SURGERY,36162574,"2,595.83",NRENT,S5 8AL
Department of Health,NHS Sheffield CCG,31/03/2021,C&M-GMS Prof Fees Prescribing,PRC DELEGATED CO-COMMISSIONING,BUCHANAN ROAD SURGERY,36162574,34.70,DRGPPF,S5 8AL
Department of Health,NHS Sheffield CCG,31/03/2021,C&M-GMS QOF Aspiration,PRC DELEGATED CO-COMMISSIONING,BUCHANAN ROAD SURGERY,36162574,"4,322.18",QUASPG,S5 8AL
Department of Health,NHS Sheffield CCG,31/03/2021,C&M-PMS Contract Value,PRC DELEGATED CO-COMMISSIONING,BURNCROSS SURGERY,35928056,-653.48,BABALP,S35 1RN
Department of Health,NHS Sheffield CCG,31/03/2021,C&M-PMS GP Statutory Levy,PRC DELEGATED CO-COMMISSIONING,BURNCROSS SURGERY,35928056,-525.00,STATL,S35 1RN
Department of Health,NHS Sheffield CCG,31/03/2021,C&M-PMS PCN DES Participation,PRC DELEGATED CO-COMMISSIONING,BURNCROSS SURGERY,35928056,"-2,282.33",PARTIP,S35 1RN
Department of Health,NHS Sheffield CCG,31/03/2021,C&M-PMS Prem Rates,PRC DELEGATED CO-COMMISSIONING,BURNCROSS SURGERY,35928056,"-4,533.00",RANDRP,S35 1RN
Department of Health,NHS Sheffield CCG,31/03/2021,C&M-PMS Contract Value,PRC DELEGATED CO-COMMISSIONING,BURNCROSS SURGERY,35928059,"122,804.11",BABALP,S35 1RN
Department of Health,NHS Sheffield CCG,31/03/2021,C&M-PMS DES Minor Surgery,PRC DELEGATED CO-COMMISSIONING,BURNCROSS SURGERY,35928059,"3,915.00",DEMSUP,S35 1RN
Department of Health,NHS Sheffield CCG,31/03/2021,C&M-PMS Funding Differential Review,PRC DELEGATED CO-COMMISSIONING,BURNCROSS SURGERY,35928059,"2,746.32",ZFUNFP,S35 1RN
Department of Health,NHS Sheffield CCG,31/03/2021,C&M-PMS PCN DES Participation,PRC DELEGATED CO-COMMISSIONING,BURNCROSS SURGERY,35928059,"4,568.54",PARTIP,S35 1RN
Department of Health,NHS Sheffield CCG,31/03/2021,C&M-PMS Prem Notional Rent,PRC DELEGATED CO-COMMISSIONING,BURNCROSS SURGERY,35928059,"14,919.67",NRENT,S35 1RN
Department of Health,NHS Sheffield CCG,31/03/2021,C&M-PMS Prem Rates,PRC DELEGATED CO-COMMISSIONING,BURNCROSS SURGERY,35928059,"4,700.89",RANDRP,S35 1RN
Department of Health,NHS Sheffield CCG,31/03/2021,C&M-PMS QOF Aspiration,PRC DELEGATED CO-COMMISSIONING,BURNCROSS SURGERY,35928059,"15,253.36",QUASPP,S35 1RN
Department of Health,NHS Sheffield CCG,31/03/2021,C&M-PMS Contract Value,PRC DELEGATED CO-COMMISSIONING,BURNGREAVE SURGERY,35928063,"58,313.57",BABALP,S3 9DA
Department of Health,NHS Sheffield CCG,31/03/2021,C&M-PMS DES Learn Dsblty Hlth Chk,PRC DELEGATED CO-COMMISSIONING,BURNGREAVE SURGERY,35928063,"4,200.00",LEARNP,S3 9DA
Department of Health,NHS Sheffield CCG,31/03/2021,C&M-PMS DES Minor Surgery,PRC DELEGATED CO-COMMISSIONING,BURNGREAVE SURGERY,35928063,"1,455.00",DEMSUP,S3 9DA
Department of Health,NHS Sheffield CCG,31/03/2021,C&M-PMS Out of Hours Opt Outs,PRC DELEGATED CO-COMMISSIONING,BURNGREAVE SURGERY,35928063,61.76,APMOOH,S3 9DA
Department of Health,NHS Sheffield CCG,31/03/2021,C&M-PMS PCN DES Participation,PRC DELEGATED CO-COMMISSIONING,BURNGREAVE SURGERY,35928063,"2,182.17",PARTIP,S3 9DA
Department of Health,NHS Sheffield CCG,31/03/2021,C&M-PMS Prem Notional Rent,PRC DELEGATED CO-COMMISSIONING,BURNGREAVE SURGERY,35928063,"6,622.92",NRENT,S3 9DA
Department of Health,NHS Sheffield CCG,31/03/2021,C&M-PMS Prem Water Rates,PRC DELEGATED CO-COMMISSIONING,BURNGREAVE SURGERY,35928063,247.79,RAMWP,S3 9DA
Department of Health,NHS Sheffield CCG,31/03/2021,C&M-PMS QOF Aspiration,PRC DELEGATED CO-COMMISSIONING,BURNGREAVE SURGERY,35928063,"5,108.72",QUASPP,S3 9DA
Department of Health,NHS Sheffield CCG,31/03/2021,C&M-GMS Cost of Drugs -Prescribing,LOCAL ENHANCED SERVICES,CARTERKNOWLE & DORE MEDICAL PRACTICE,36162583,"2,232.59",DRGP,S7 2DW
Department of Health,NHS Sheffield CCG,31/03/2021,C&M-GMS DES Minor Surgery,PRC DELEGATED CO-COMMISSIONING,CARTERKNOWLE & DORE MEDICAL PRACTICE,36162583,"2,650.00",DEMSUG,S7 2DW
Department of Health,NHS Sheffield CCG,31/03/2021,C&M-GMS Global Sum,PRC DELEGATED CO-COMMISSIONING,CARTERKNOWLE & DORE MEDICAL PRACTICE,36162583,"89,673.33",GSUMG,S7 2DW
Department of Health,NHS Sheffield CCG,31/03/2021,C&M-GMS PCN DES Participation,PRC DELEGATED CO-COMMISSIONING,CARTERKNOWLE & DORE MEDICAL PRACTICE,36162583,"3,484.23",PARTIG,S7 2DW
Department of Health,NHS Sheffield CCG,31/03/2021,C&M-GMS Prem Notional Rent,PRC DELEGATED CO-COMMISSIONING,CARTERKNOWLE & DORE MEDICAL PRACTICE,36162583,"7,855.00",NRENT,S7 2DW
Department of Health,NHS Sheffield CCG,31/03/2021,C&M-GMS Prof Fees Prescribing,PRC DELEGATED CO-COMMISSIONING,CARTERKNOWLE & DORE MEDICAL PRACTICE,36162583,85.42,DRGPPF,S7 2DW
Department of Health,NHS Sheffield CCG,31/03/2021,C&M-GMS QOF Aspiration,PRC DELEGATED CO-COMMISSIONING,CARTERKNOWLE & DORE MEDICAL PRACTICE,36162583,"10,268.52",QUASPG,S7 2DW
Department of Health,NHS Sheffield CCG,31/03/2021,C&M-GMS Cost of Drugs -Prescribing,LOCAL ENHANCED SERVICES,CHARNOCK HEALTH PRIMARY CARE CENTRE,36162579,711.25,DRGP,S12 3GH
Department of Health,NHS Sheffield CCG,31/03/2021,C&M-GMS DES Minor Surgery,PRC DELEGATED CO-COMMISSIONING,CHARNOCK HEALTH PRIMARY CARE CENTRE,36162579,"2,410.00",DEMSUG,S12 3GH
Department of Health,NHS Sheffield CCG,31/03/2021,C&M-GMS Global Sum,PRC DELEGATED CO-COMMISSIONING,CHARNOCK HEALTH PRIMARY CARE CENTRE,36162579,"44,694.47",GSUMG,S12 3GH
Department of Health,NHS Sheffield CCG,31/03/2021,C&M-GMS PCN DES Participation,PRC DELEGATED CO-COMMISSIONING,CHARNOCK HEALTH PRIMARY CARE CENTRE,36162579,"1,788.42",PARTIG,S12 3GH
Department of Health,NHS Sheffield CCG,31/03/2021,C&M-GMS Prem Actual Rent,PRC DELEGATED CO-COMMISSIONING,CHARNOCK HEALTH PRIMARY CARE CENTRE,36162579,100.00,RENT,S12 3GH
Department of Health,NHS Sheffield CCG,31/03/2021,C&M-GMS Prem Notional Rent,PRC DELEGATED CO-COMMISSIONING,CHARNOCK HEALTH PRIMARY CARE CENTRE,36162579,340.00,NRENT,S12 3GH
Department of Health,NHS Sheffield CCG,31/03/2021,C&M-GMS Prem Water Rates,PRC DELEGATED CO-COMMISSIONING,CHARNOCK HEALTH PRIMARY CARE CENTRE,36162579,65.44,RAMW,S12 3GH
Department of Health,NHS Sheffield CCG,31/03/2021,C&M-GMS Prof Fees Prescribing,PRC DELEGATED CO-COMMISSIONING,CHARNOCK HEALTH PRIMARY CARE CENTRE,36162579,64.05,DRGPPF,S12 3GH
Department of Health,NHS Sheffield CCG,31/03/2021,C&M-GMS QOF Aspiration,PRC DELEGATED CO-COMMISSIONING,CHARNOCK HEALTH PRIMARY CARE CENTRE,36162579,"4,918.11",QUASPG,S12 3GH
Department of Health,NHS Sheffield CCG,31/03/2021,Other Gen Supplies & Srv,CLINICAL LEADS,CIVICA UK LTD,36185623,"285,600.00",,DY1 4TD
Department of Health,NHS Sheffield CCG,31/03/2021,C&M-APMS Contract Value,PRC DELEGATED CO-COMMISSIONING,CLOVER CITY PRACTICE,35928151,"31,434.20",APMADD,S9 4QH
Department of Health,NHS Sheffield CCG,31/03/2021,C&M-APMS DES Minor Surgery,PRC DELEGATED CO-COMMISSIONING,CLOVER CITY PRACTICE,35928151,55.00,DEMSUA,S9 4QH
Department of Health,NHS Sheffield CCG,31/03/2021,C&M-APMS OOH Opt Outs,PRC DELEGATED CO-COMMISSIONING,CLOVER CITY PRACTICE,35928151,1.31,APMOOA,S9 4QH
Department of Health,NHS Sheffield CCG,31/03/2021,C&M-APMS PCN DES Participation,PRC DELEGATED CO-COMMISSIONING,CLOVER CITY PRACTICE,35928151,563.87,PARTIA,S9 4QH
Department of Health,NHS Sheffield CCG,31/03/2021,C&M-PMS PCN DES Participation,PRC DELEGATED CO-COMMISSIONING,CLOVER CITY PRACTICE,35928151,564.83,PARTIP,S9 4QH
Department of Health,NHS Sheffield CCG,31/03/2021,C&M-PMS PCO Locum Adop/Pat/Mat,PRC DELEGATED CO-COMMISSIONING,CLOVER CITY PRACTICE,35928151,"7,669.58",SICKC,S9 4QH
Department of Health,NHS Sheffield CCG,31/03/2021,C&M-PMS QOF Aspiration,PRC DELEGATED CO-COMMISSIONING,CLOVER CITY PRACTICE,35928151,"1,589.35",QUASPP,S9 4QH
Department of Health,NHS Sheffield CCG,31/03/2021,C&M-APMS Contract Value,PRC DELEGATED CO-COMMISSIONING,CLOVER GROUP PRACTICE,35928065,"132,741.00",APMADD,S9 4QH
Department of Health,NHS Sheffield CCG,31/03/2021,C&M-APMS DES Minor Surgery,PRC DELEGATED CO-COMMISSIONING,CLOVER GROUP PRACTICE,35928065,160.00,DEMSUA,S9 4QH
Department of Health,NHS Sheffield CCG,31/03/2021,C&M-APMS OOH Opt Outs,PRC DELEGATED CO-COMMISSIONING,CLOVER GROUP PRACTICE,35928065,520.94,APMOOA,S9 4QH
Department of Health,NHS Sheffield CCG,31/03/2021,C&M-APMS PCN DES Participation,PRC DELEGATED CO-COMMISSIONING,CLOVER GROUP PRACTICE,35928065,"2,478.23",PARTIA,S9 4QH
Department of Health,NHS Sheffield CCG,31/03/2021,C&M-APMS Prem Actual Rent,PRC DELEGATED CO-COMMISSIONING,CLOVER GROUP PRACTICE,35928065,"5,169.68",RENTA,S9 4QH
Department of Health,NHS Sheffield CCG,31/03/2021,C&M-APMS Prem Healthcentre Rent,PRC DELEGATED CO-COMMISSIONING,CLOVER GROUP PRACTICE,35928065,"59,788.21",HEALTA,S9 4QH
Department of Health,NHS Sheffield CCG,31/03/2021,C&M-APMS Prem Notional Rent,PRC DELEGATED CO-COMMISSIONING,CLOVER GROUP PRACTICE,35928065,"2,804.17",NRENTA,S9 4QH
Department of Health,NHS Sheffield CCG,31/03/2021,C&M-PMS Out of Hours Opt Outs,PRC DELEGATED CO-COMMISSIONING,CLOVER GROUP PRACTICE,35928065,23.51,APMOOH,S9 4QH
Department of Health,NHS Sheffield CCG,31/03/2021,C&M-PMS PCN DES Participation,PRC DELEGATED CO-COMMISSIONING,CLOVER GROUP PRACTICE,35928065,"2,482.45",PARTIP,S9 4QH
Department of Health,NHS Sheffield CCG,31/03/2021,C&M-PMS QOF Aspiration,PRC DELEGATED CO-COMMISSIONING,CLOVER GROUP PRACTICE,35928065,"11,362.38",QUASPP,S9 4QH
Department of Health,NHS Sheffield CCG,31/03/2021,C&M-APMS Contract Value,PRC DELEGATED CO-COMMISSIONING,CLOVER GROUP PRACTICE,35955305,"-11,410.68",APMADD,S9 4QH
Department of Health,NHS Sheffield CCG,31/03/2021,C&M-APMS OOH Opt Outs,PRC DELEGATED CO-COMMISSIONING,CLOVER GROUP PRACTICE,35955305,"-6,333.64",APMOOA,S9 4QH
Department of Health,NHS Sheffield CCG,31/03/2021,C&M-APMS PCN DES Participation,PRC DELEGATED CO-COMMISSIONING,CLOVER GROUP PRACTICE,35955305,"-2,478.23",PARTIA,S9 4QH
Department of Health,NHS Sheffield CCG,31/03/2021,C&M-APMS Prem Healthcentre Rent,PRC DELEGATED CO-COMMISSIONING,CLOVER GROUP PRACTICE,35955305,"-18,458.60",HEALTA,S9 4QH
Department of Health,NHS Sheffield CCG,31/03/2021,C&M-PMS GP Statutory Levy,PRC DELEGATED CO-COMMISSIONING,CLOVER GROUP PRACTICE,35955305,-582.16,STATL,S9 4QH
Department of Health,NHS Sheffield CCG,31/03/2021,C&M-APMS LES Translation Fees,LOCAL ENHANCED SERVICES,CLOVER GROUP PRACTICE,36208813,"70,750.00",MULBERRYQ4 202021,S9 4QH
Department of Health,NHS Sheffield CCG,31/03/2021,Voids and Subsidies,PRC DELEGATED CO-COMMISSIONING,COMMUNITY HEALTH PARTNERSHIPS LTD,35858457,"37,796.72",,M1 5AN
Department of Health,NHS Sheffield CCG,31/03/2021,Voids and Subsidies,RECHARGES NHS PROPERTY SERVICES LTD,COMMUNITY HEALTH PARTNERSHIPS LTD,35858457,"98,041.05",https://nww.einvoice-prod.sbs.nhs.uk:8179/invoicepdf/739800ec-e1d5-57ae-aec7-0fa5a9f3dbb0,M1 5AN
Department of Health,NHS Sheffield CCG,31/03/2021,Cont Care-Funded Nursing Care Allow,FUNDED NURSING CARE,COUNTRY COURT CARE LTD,36123631,"28,060.85",FNC SCHEDULE MARCH 2021 - Abbey Grange Nursing Home (Country Court Care),S5 6UU
Department of Health,NHS Sheffield CCG,31/03/2021,C&M-GMS Cost of Drugs -Prescribing,LOCAL ENHANCED SERVICES,CROOKES PRACTICE,36162587,257.94,DRGP,S10 1GN
Department of Health,NHS Sheffield CCG,31/03/2021,C&M-GMS Global Sum,PRC DELEGATED CO-COMMISSIONING,CROOKES PRACTICE,36162587,"54,534.63",GSUMG,S10 1GN
Department of Health,NHS Sheffield CCG,31/03/2021,C&M-GMS PCN DES Participation,PRC DELEGATED CO-COMMISSIONING,CROOKES PRACTICE,36162587,"2,142.02",PARTIG,S10 1GN
Department of Health,NHS Sheffield CCG,31/03/2021,C&M-GMS Prem Notional Rent,PRC DELEGATED CO-COMMISSIONING,CROOKES PRACTICE,36162587,"3,874.67",NRENT,S10 1GN
Department of Health,NHS Sheffield CCG,31/03/2021,C&M-GMS Prof Fees Prescribing,PRC DELEGATED CO-COMMISSIONING,CROOKES PRACTICE,36162587,88.09,DRGPPF,S10 1GN
Department of Health,NHS Sheffield CCG,31/03/2021,C&M-GMS QOF Aspiration,PRC DELEGATED CO-COMMISSIONING,CROOKES PRACTICE,36162587,"4,910.43",QUASPG,S10 1GN
Department of Health,NHS Sheffield CCG,31/03/2021,C&M-PMS Contract Value,PRC DELEGATED CO-COMMISSIONING,DEEPCAR MEDICAL CENTRE,35928069,"42,390.90",BABALP,S36 2RA
Department of Health,NHS Sheffield CCG,31/03/2021,C&M-PMS DES Learn Dsblty Hlth Chk,PRC DELEGATED CO-COMMISSIONING,DEEPCAR MEDICAL CENTRE,35928069,140.00,LEARNP,S36 2RA
Department of Health,NHS Sheffield CCG,31/03/2021,C&M-PMS Out of Hours Opt Outs,PRC DELEGATED CO-COMMISSIONING,DEEPCAR MEDICAL CENTRE,35928069,35.04,APMOOH,S36 2RA
Department of Health,NHS Sheffield CCG,31/03/2021,C&M-PMS PCN DES Participation,PRC DELEGATED CO-COMMISSIONING,DEEPCAR MEDICAL CENTRE,35928069,"1,581.53",PARTIP,S36 2RA
Department of Health,NHS Sheffield CCG,31/03/2021,C&M-PMS Prem Healthcentre Rent,PRC DELEGATED CO-COMMISSIONING,DEEPCAR MEDICAL CENTRE,35928069,"30,655.23",HEALTH,S36 2RA
Department of Health,NHS Sheffield CCG,31/03/2021,C&M-PMS QOF Aspiration,PRC DELEGATED CO-COMMISSIONING,DEEPCAR MEDICAL CENTRE,35928069,"4,079.29",QUASPP,S36 2RA
Department of Health,NHS Sheffield CCG,31/03/2021,FM Computer Contracts,PRIMARY CARE IT,DELL CORPORATION LTD,35907599,"32,860.00",Dell Universal Dock D6000 - UK Please deliver to Greenworld Technologies Ltd Unit 1 Cardway Business Park Linley Lane Alsager ST7 2UX,RG12 1LF
Department of Health,NHS Sheffield CCG,31/03/2021,FM Computer Contracts,PRIMARY CARE IT,DELL CORPORATION LTD,35907599,"29,950.00",Latitude 5310 CTO Quote Ref number 105369564 Please deliver to Greenworld Technologies Ltd Unit 1 Cardway Business Park Linley Lane Alsager ST7 2UX,RG12 1LF
Department of Health,NHS Sheffield CCG,31/03/2021,FM Computer Contracts,PRIMARY CARE IT,DELL CORPORATION LTD,35907599,"12,562.00",https://nww.einvoice-prod.sbs.nhs.uk:8179/invoicepdf/b3921897-fdf9-5eca-88c4-3e5d2574b999,RG12 1LF
Department of Health,NHS Sheffield CCG,31/03/2021,FM Computer Contracts,PRIMARY CARE IT,DELL CORPORATION LTD,36178346,334.80,Dell Optical Mouse-MS116 - Black Quote reference number 106233076 Delivery to Greenworld Technologies Ltd Unit 1 Cardway Business Park Linley Lane Alsager ST7 2UX,RG12 1LF
Department of Health,NHS Sheffield CCG,31/03/2021,FM Computer Contracts,PRIMARY CARE IT,DELL CORPORATION LTD,36178346,"1,802.26",Dell Pro Briefcase 14 (PO1420C) Quote reference number 106233076 Delivery to Greenworld Technologies Ltd Unit 1 Cardway Business Park Linley Lane Alsager ST7 2UX,RG12 1LF
Department of Health,NHS Sheffield CCG,31/03/2021,FM Computer Contracts,PRIMARY CARE IT,DELL CORPORATION LTD,36178346,"29,950.00",Latitude 5310 Base Quote Reference number 105369564 Delivery to Greenworld Technologies Ltd Unit 1 Cardway Business Park Linley Lane Alsager ST7 2UX,RG12 1LF
Department of Health,NHS Sheffield CCG,31/03/2021,FM Computer Contracts,PRIMARY CARE IT,DELL CORPORATION LTD,36178346,"6,417.41",https://nww.einvoice-prod.sbs.nhs.uk:8179/invoicepdf/e870633a-9d41-544d-981e-da2991d17ac0,RG12 1LF
Department of Health,NHS Sheffield CCG,31/03/2021,C&M-GMS Cost of Drugs -Prescribing,LOCAL ENHANCED SERVICES,DEVONSHIRE GREEN MEDICAL CENTRE,36162590,471.98,DRGP,S3 7SF
Department of Health,NHS Sheffield CCG,31/03/2021,C&M-GMS DES Minor Surgery,PRC DELEGATED CO-COMMISSIONING,DEVONSHIRE GREEN MEDICAL CENTRE,36162590,500.00,DEMSUG,S3 7SF
Department of Health,NHS Sheffield CCG,31/03/2021,C&M-GMS Global Sum,PRC DELEGATED CO-COMMISSIONING,DEVONSHIRE GREEN MEDICAL CENTRE,36162590,"48,240.28",GSUMG,S3 7SF
Department of Health,NHS Sheffield CCG,31/03/2021,C&M-GMS PCN DES Participation,PRC DELEGATED CO-COMMISSIONING,DEVONSHIRE GREEN MEDICAL CENTRE,36162590,"1,872.01",PARTIG,S3 7SF
Department of Health,NHS Sheffield CCG,31/03/2021,C&M-GMS Prem Notional Rent,PRC DELEGATED CO-COMMISSIONING,DEVONSHIRE GREEN MEDICAL CENTRE,36162590,"5,987.50",NRENT,S3 7SF
Department of Health,NHS Sheffield CCG,31/03/2021,C&M-GMS Prem Water Rates,PRC DELEGATED CO-COMMISSIONING,DEVONSHIRE GREEN MEDICAL CENTRE,36162590,"2,701.58",RAMW,S3 7SF
Department of Health,NHS Sheffield CCG,31/03/2021,C&M-GMS Prof Fees Prescribing,PRC DELEGATED CO-COMMISSIONING,DEVONSHIRE GREEN MEDICAL CENTRE,36162590,98.75,DRGPPF,S3 7SF
Department of Health,NHS Sheffield CCG,31/03/2021,C&M-GMS QOF Aspiration,PRC DELEGATED CO-COMMISSIONING,DEVONSHIRE GREEN MEDICAL CENTRE,36162590,"4,846.82",QUASPG,S3 7SF
Department of Health,NHS Sheffield CCG,31/03/2021,C&M-PMS Contract Value,PRC DELEGATED CO-COMMISSIONING,DOVERCOURT SURGERY,35928074,"76,380.70",BABALP,S2 5FX
Department of Health,NHS Sheffield CCG,31/03/2021,C&M-PMS DES Minor Surgery,PRC DELEGATED CO-COMMISSIONING,DOVERCOURT SURGERY,35928074,"2,120.00",DEMSUP,S2 5FX
Department of Health,NHS Sheffield CCG,31/03/2021,C&M-PMS Out of Hours Opt Outs,PRC DELEGATED CO-COMMISSIONING,DOVERCOURT SURGERY,35928074,9.88,APMOOH,S2 5FX
Department of Health,NHS Sheffield CCG,31/03/2021,C&M-PMS PCN DES Participation,PRC DELEGATED CO-COMMISSIONING,DOVERCOURT SURGERY,35928074,"2,813.81",PARTIP,S2 5FX
Department of Health,NHS Sheffield CCG,31/03/2021,C&M-PMS Prem Actual Rent,PRC DELEGATED CO-COMMISSIONING,DOVERCOURT SURGERY,35928074,"12,400.00",RENT,S2 5FX
Department of Health,NHS Sheffield CCG,31/03/2021,C&M-PMS Prem Notional Rent,PRC DELEGATED CO-COMMISSIONING,DOVERCOURT SURGERY,35928074,"1,708.33",NRENT,S2 5FX
Department of Health,NHS Sheffield CCG,31/03/2021,C&M-PMS Prem Water Rates,PRC DELEGATED CO-COMMISSIONING,DOVERCOURT SURGERY,35928074,117.58,RAMWP,S2 5FX
Department of Health,NHS Sheffield CCG,31/03/2021,C&M-PMS QOF Aspiration,PRC DELEGATED CO-COMMISSIONING,DOVERCOURT SURGERY,35928074,"7,547.35",QUASPP,S2 5FX
Department of Health,NHS Sheffield CCG,31/03/2021,C&M-PMS Contract Value,PRC DELEGATED CO-COMMISSIONING,DR MEHROTRA & PARTNER,35928077,"25,077.95",BABALP,S9 5DH
Department of Health,NHS Sheffield CCG,31/03/2021,C&M-PMS DES Minor Surgery,PRC DELEGATED CO-COMMISSIONING,DR MEHROTRA & PARTNER,35928077,160.00,DEMSUP,S9 5DH
Department of Health,NHS Sheffield CCG,31/03/2021,C&M-PMS Funding Differential Review,PRC DELEGATED CO-COMMISSIONING,DR MEHROTRA & PARTNER,35928077,520.47,ZFUNFP,S9 5DH
Department of Health,NHS Sheffield CCG,31/03/2021,C&M-PMS PCN DES Participation,PRC DELEGATED CO-COMMISSIONING,DR MEHROTRA & PARTNER,35928077,945.10,PARTIP,S9 5DH
Department of Health,NHS Sheffield CCG,31/03/2021,C&M-PMS Prem Notional Rent,PRC DELEGATED CO-COMMISSIONING,DR MEHROTRA & PARTNER,35928077,"5,157.29",NRENT,S9 5DH
Department of Health,NHS Sheffield CCG,31/03/2021,C&M-PMS QOF Aspiration,PRC DELEGATED CO-COMMISSIONING,DR MEHROTRA & PARTNER,35928077,"2,581.66",QUASPP,S9 5DH
Department of Health,NHS Sheffield CCG,31/03/2021,C&M-PMS Contract Value,PRC DELEGATED CO-COMMISSIONING,DR MILNER & PARTNERS,35928081,"77,922.06",BABALP,S6 4JQ
Department of Health,NHS Sheffield CCG,31/03/2021,C&M-PMS DES Minor Surgery,PRC DELEGATED CO-COMMISSIONING,DR MILNER & PARTNERS,35928081,"3,035.00",DEMSUP,S6 4JQ
Department of Health,NHS Sheffield CCG,31/03/2021,C&M-PMS Out of Hours Opt Outs,PRC DELEGATED CO-COMMISSIONING,DR MILNER & PARTNERS,35928081,34.25,APMOOH,S6 4JQ
Department of Health,NHS Sheffield CCG,31/03/2021,C&M-PMS PCN DES Participation,PRC DELEGATED CO-COMMISSIONING,DR MILNER & PARTNERS,35928081,"2,907.56",PARTIP,S6 4JQ
Department of Health,NHS Sheffield CCG,31/03/2021,C&M-PMS Prem Actual Rent,PRC DELEGATED CO-COMMISSIONING,DR MILNER & PARTNERS,35928081,"11,382.00",RENT,S6 4JQ
Department of Health,NHS Sheffield CCG,31/03/2021,C&M-PMS Prem Notional Rent,PRC DELEGATED CO-COMMISSIONING,DR MILNER & PARTNERS,35928081,"4,462.42",NRENT,S6 4JQ
Department of Health,NHS Sheffield CCG,31/03/2021,C&M-PMS Prem Rates,PRC DELEGATED CO-COMMISSIONING,DR MILNER & PARTNERS,35928081,"2,766.00",RANDRP,S6 4JQ
Department of Health,NHS Sheffield CCG,31/03/2021,C&M-PMS QOF Aspiration,PRC DELEGATED CO-COMMISSIONING,DR MILNER & PARTNERS,35928081,"6,594.77",QUASPP,S6 4JQ
Department of Health,NHS Sheffield CCG,31/03/2021,C&M-GMS Cost of Drugs -Prescribing,LOCAL ENHANCED SERVICES,DUKE MEDICAL CENTRE,36162598,"1,035.98",DRGP,S2 2TD
Department of Health,NHS Sheffield CCG,31/03/2021,C&M-GMS DES Minor Surgery,PRC DELEGATED CO-COMMISSIONING,DUKE MEDICAL CENTRE,36162598,600.00,DEMSUG,S2 2TD
Department of Health,NHS Sheffield CCG,31/03/2021,C&M-GMS Global Sum,PRC DELEGATED CO-COMMISSIONING,DUKE MEDICAL CENTRE,36162598,"62,666.70",GSUMG,S2 2TD
Department of Health,NHS Sheffield CCG,31/03/2021,C&M-GMS PCN DES Participation,PRC DELEGATED CO-COMMISSIONING,DUKE MEDICAL CENTRE,36162598,"2,313.14",PARTIG,S2 2TD
Department of Health,NHS Sheffield CCG,31/03/2021,C&M-GMS Prem Notional Rent,PRC DELEGATED CO-COMMISSIONING,DUKE MEDICAL CENTRE,36162598,"5,721.67",NRENT,S2 2TD
Department of Health,NHS Sheffield CCG,31/03/2021,C&M-GMS Prof Fees Prescribing,PRC DELEGATED CO-COMMISSIONING,DUKE MEDICAL CENTRE,36162598,232.21,DRGPPF,S2 2TD
Department of Health,NHS Sheffield CCG,31/03/2021,C&M-GMS QOF Aspiration,PRC DELEGATED CO-COMMISSIONING,DUKE MEDICAL CENTRE,36162598,"5,286.81",QUASPG,S2 2TD
Department of Health,NHS Sheffield CCG,31/03/2021,C&M-PMS Contract Value,PRC DELEGATED CO-COMMISSIONING,DYKES HALL MEDICAL CENTRE,35928084,"72,296.17",BABALP,S6 4GQ
Department of Health,NHS Sheffield CCG,31/03/2021,C&M-PMS DES Extended Hours Access,PRC DELEGATED CO-COMMISSIONING,DYKES HALL MEDICAL CENTRE,35928084,"8,682.06",EXTHDP,S6 4GQ
Department of Health,NHS Sheffield CCG,31/03/2021,C&M-PMS DES Minor Surgery,PRC DELEGATED CO-COMMISSIONING,DYKES HALL MEDICAL CENTRE,35928084,480.00,DEMSUP,S6 4GQ
Department of Health,NHS Sheffield CCG,31/03/2021,C&M-PMS Funding Differential Review,PRC DELEGATED CO-COMMISSIONING,DYKES HALL MEDICAL CENTRE,35928084,"1,473.36",ZFUNFP,S6 4GQ
Department of Health,NHS Sheffield CCG,31/03/2021,C&M-PMS Out of Hours Opt Outs,PRC DELEGATED CO-COMMISSIONING,DYKES HALL MEDICAL CENTRE,35928084,40.69,APMOOH,S6 4GQ
Department of Health,NHS Sheffield CCG,31/03/2021,C&M-PMS PCN DES Clinical Director,PRC DELEGATED CO-COMMISSIONING,DYKES HALL MEDICAL CENTRE,35928084,"4,314.10",CLINDP,S6 4GQ
Department of Health,NHS Sheffield CCG,31/03/2021,C&M-PMS PCN DES PCN support,LOCAL ENHANCED SERVICES,DYKES HALL MEDICAL CENTRE,35928084,"8,975.25",PCNSUP,S6 4GQ
Department of Health,NHS Sheffield CCG,31/03/2021,C&M-PMS PCN DES Participation,PRC DELEGATED CO-COMMISSIONING,DYKES HALL MEDICAL CENTRE,35928084,"2,712.49",PARTIP,S6 4GQ
Department of Health,NHS Sheffield CCG,31/03/2021,C&M-PMS Prem Notional Rent,PRC DELEGATED CO-COMMISSIONING,DYKES HALL MEDICAL CENTRE,35928084,"5,406.24",NRENT,S6 4GQ
Department of Health,NHS Sheffield CCG,31/03/2021,C&M-PMS QOF Aspiration,PRC DELEGATED CO-COMMISSIONING,DYKES HALL MEDICAL CENTRE,35928084,"8,087.38",QUASPP,S6 4GQ
Department of Health,NHS Sheffield CCG,31/03/2021,C&M- PCN DES Nursing Associate,PRC DELEGATED CO-COMMISSIONING,DYKES HALL MEDICAL CENTRE,35946404,"2,237.64",,S6 4GQ
Department of Health,NHS Sheffield CCG,31/03/2021,C&M-PCN DES PHARMACY TECHNICIANS,PRC DELEGATED CO-COMMISSIONING,DYKES HALL MEDICAL CENTRE,35946404,"2,949.08",,S6 4GQ
Department of Health,NHS Sheffield CCG,31/03/2021,C&M-PMS PCN DES Clin Pharmacist,PRC DELEGATED CO-COMMISSIONING,DYKES HALL MEDICAL CENTRE,35946404,"16,192.10",,S6 4GQ
Department of Health,NHS Sheffield CCG,31/03/2021,C&M-PMS PCN DES Physiotherapist,PRC DELEGATED CO-COMMISSIONING,DYKES HALL MEDICAL CENTRE,35946404,"6,494.84",,S6 4GQ
Department of Health,NHS Sheffield CCG,31/03/2021,C&M-PMS PCN DES Soc Prescribing,PRC DELEGATED CO-COMMISSIONING,DYKES HALL MEDICAL CENTRE,35946404,"2,949.00",,S6 4GQ
Department of Health,NHS Sheffield CCG,31/03/2021,C&M-PMS Contract Value,PRC DELEGATED CO-COMMISSIONING,DYKES HALL MEDICAL CENTRE,35955306,-863.52,BABALP,S6 4GQ
Department of Health,NHS Sheffield CCG,31/03/2021,C&M-PMS DES Extended Hours Access,PRC DELEGATED CO-COMMISSIONING,DYKES HALL MEDICAL CENTRE,35955306,"-4,338.04",EXTHDP,S6 4GQ
Department of Health,NHS Sheffield CCG,31/03/2021,C&M-PMS GP Statutory Levy,PRC DELEGATED CO-COMMISSIONING,DYKES HALL MEDICAL CENTRE,35955306,-330.58,STATL,S6 4GQ
Department of Health,NHS Sheffield CCG,31/03/2021,C&M-PMS Out of Hours Opt Outs,PRC DELEGATED CO-COMMISSIONING,DYKES HALL MEDICAL CENTRE,35955306,"-3,441.40",APMOOH,S6 4GQ
Department of Health,NHS Sheffield CCG,31/03/2021,C&M-PMS PCN DES Clinical Director,PRC DELEGATED CO-COMMISSIONING,DYKES HALL MEDICAL CENTRE,35955306,"-2,160.04",CLINDP,S6 4GQ
Department of Health,NHS Sheffield CCG,31/03/2021,C&M-PMS PCN DES PCN support,LOCAL ENHANCED SERVICES,DYKES HALL MEDICAL CENTRE,35955306,"-4,487.63",PCNSUP,S6 4GQ
Department of Health,NHS Sheffield CCG,31/03/2021,C&M-PMS PCN DES Participation,PRC DELEGATED CO-COMMISSIONING,DYKES HALL MEDICAL CENTRE,35955306,"-1,355.09",PARTIP,S6 4GQ
Department of Health,NHS Sheffield CCG,31/03/2021,C&M- PCN DES Nursing Associate,PRC DELEGATED CO-COMMISSIONING,DYKES HALL MEDICAL CENTRE,36216024,"2,237.64",,S6 4GQ
Department of Health,NHS Sheffield CCG,31/03/2021,C&M-PCN DES PHARMACY TECHNICIANS,PRC DELEGATED CO-COMMISSIONING,DYKES HALL MEDICAL CENTRE,36216024,"2,949.08",,S6 4GQ
Department of Health,NHS Sheffield CCG,31/03/2021,C&M-PMS PCN DES Clin Pharmacist,PRC DELEGATED CO-COMMISSIONING,DYKES HALL MEDICAL CENTRE,36216024,"16,192.10",,S6 4GQ
Department of Health,NHS Sheffield CCG,31/03/2021,C&M-PMS PCN DES Physiotherapist,PRC DELEGATED CO-COMMISSIONING,DYKES HALL MEDICAL CENTRE,36216024,"6,494.84",,S6 4GQ
Department of Health,NHS Sheffield CCG,31/03/2021,C&M-PMS PCN DES Soc Prescribing,PRC DELEGATED CO-COMMISSIONING,DYKES HALL MEDICAL CENTRE,36216024,"2,949.00",,S6 4GQ
Department of Health,NHS Sheffield CCG,31/03/2021,C&M-PMS Contract Value,PRC DELEGATED CO-COMMISSIONING,EAST BANK MEDICAL CENTRE,35928087,"50,300.28",BABALP,S2 2AG
Department of Health,NHS Sheffield CCG,31/03/2021,C&M-PMS DES Minor Surgery,PRC DELEGATED CO-COMMISSIONING,EAST BANK MEDICAL CENTRE,35928087,630.00,DEMSUP,S2 2AG
Department of Health,NHS Sheffield CCG,31/03/2021,C&M-PMS Out of Hours Opt Outs,PRC DELEGATED CO-COMMISSIONING,EAST BANK MEDICAL CENTRE,35928087,7.46,APMOOH,S2 2AG
Department of Health,NHS Sheffield CCG,31/03/2021,C&M-PMS PCN DES Participation,PRC DELEGATED CO-COMMISSIONING,EAST BANK MEDICAL CENTRE,35928087,"1,875.96",PARTIP,S2 2AG
Department of Health,NHS Sheffield CCG,31/03/2021,C&M-PMS Prem Notional Rent,PRC DELEGATED CO-COMMISSIONING,EAST BANK MEDICAL CENTRE,35928087,"10,583.33",NRENT,S2 2AG
Department of Health,NHS Sheffield CCG,31/03/2021,C&M-PMS QOF Aspiration,PRC DELEGATED CO-COMMISSIONING,EAST BANK MEDICAL CENTRE,35928087,"5,136.41",QUASPP,S2 2AG
Department of Health,NHS Sheffield CCG,31/03/2021,C&M-GMS DES Extended Hours Access,PRC DELEGATED CO-COMMISSIONING,ECCLESFIELD GROUP PRACTICE,36162593,"-5,160.79",EXTHDG,S35 9XQ
Department of Health,NHS Sheffield CCG,31/03/2021,C&M-GMS GP Statutory Levy,PRC DELEGATED CO-COMMISSIONING,ECCLESFIELD GROUP PRACTICE,36162593,-301.42,STATL,S35 9XQ
Department of Health,NHS Sheffield CCG,31/03/2021,C&M-GMS PCN DES Clinical Director,PRC DELEGATED CO-COMMISSIONING,ECCLESFIELD GROUP PRACTICE,36162593,"-2,569.72",CLINDG,S35 9XQ
Department of Health,NHS Sheffield CCG,31/03/2021,C&M-GMS PCN DES PCN support,LOCAL ENHANCED SERVICES,ECCLESFIELD GROUP PRACTICE,36162593,"-5,338.75",PCNSUG,S35 9XQ
Department of Health,NHS Sheffield CCG,31/03/2021,C&M-GMS PCN DES Participation,PRC DELEGATED CO-COMMISSIONING,ECCLESFIELD GROUP PRACTICE,36162593,"-1,438.45",PARTIG,S35 9XQ
Department of Health,NHS Sheffield CCG,31/03/2021,C&M-GMS Cost of Drugs -Prescribing,LOCAL ENHANCED SERVICES,ECCLESFIELD GROUP PRACTICE,36162594,"1,847.45",DRGP,S35 9XQ
Department of Health,NHS Sheffield CCG,31/03/2021,C&M-GMS DES Extended Hours Access,PRC DELEGATED CO-COMMISSIONING,ECCLESFIELD GROUP PRACTICE,36162594,"10,328.70",EXTHDG,S35 9XQ
Department of Health,NHS Sheffield CCG,31/03/2021,C&M-GMS DES Minor Surgery,PRC DELEGATED CO-COMMISSIONING,ECCLESFIELD GROUP PRACTICE,36162594,560.00,DEMSUG,S35 9XQ
Department of Health,NHS Sheffield CCG,31/03/2021,C&M-GMS Global Sum,PRC DELEGATED CO-COMMISSIONING,ECCLESFIELD GROUP PRACTICE,36162594,"72,807.45",GSUMG,S35 9XQ
Department of Health,NHS Sheffield CCG,31/03/2021,C&M-GMS PCN DES Clinical Director,PRC DELEGATED CO-COMMISSIONING,ECCLESFIELD GROUP PRACTICE,36162594,"5,132.32",CLINDG,S35 9XQ
Department of Health,NHS Sheffield CCG,31/03/2021,C&M-GMS PCN DES PCN support,LOCAL ENHANCED SERVICES,ECCLESFIELD GROUP PRACTICE,36162594,"10,677.50",PCNSUG,S35 9XQ
Department of Health,NHS Sheffield CCG,31/03/2021,C&M-GMS PCN DES Participation,PRC DELEGATED CO-COMMISSIONING,ECCLESFIELD GROUP PRACTICE,36162594,"2,879.35",PARTIG,S35 9XQ
Department of Health,NHS Sheffield CCG,31/03/2021,C&M-GMS Prem Notional Rent,PRC DELEGATED CO-COMMISSIONING,ECCLESFIELD GROUP PRACTICE,36162594,"6,805.42",NRENT,S35 9XQ
Department of Health,NHS Sheffield CCG,31/03/2021,C&M-GMS Prof Fees Prescribing,PRC DELEGATED CO-COMMISSIONING,ECCLESFIELD GROUP PRACTICE,36162594,229.54,DRGPPF,S35 9XQ
Department of Health,NHS Sheffield CCG,31/03/2021,C&M-GMS QOF Aspiration,PRC DELEGATED CO-COMMISSIONING,ECCLESFIELD GROUP PRACTICE,36162594,"9,221.39",QUASPG,S35 9XQ
Department of Health,NHS Sheffield CCG,31/03/2021,C&M-GMS Cost of Drugs -Prescribing,LOCAL ENHANCED SERVICES,ELM LANE SURGERY,36162596,"1,152.62",DRGP,S5 7TW
Department of Health,NHS Sheffield CCG,31/03/2021,C&M-GMS DES Minor Surgery,PRC DELEGATED CO-COMMISSIONING,ELM LANE SURGERY,36162596,80.00,DEMSUG,S5 7TW
Department of Health,NHS Sheffield CCG,31/03/2021,C&M-GMS Global Sum,PRC DELEGATED CO-COMMISSIONING,ELM LANE SURGERY,36162596,"43,737.39",GSUMG,S5 7TW
Department of Health,NHS Sheffield CCG,31/03/2021,C&M-GMS PCN DES Participation,PRC DELEGATED CO-COMMISSIONING,ELM LANE SURGERY,36162596,"1,703.93",PARTIG,S5 7TW
Department of Health,NHS Sheffield CCG,31/03/2021,C&M-GMS Prem Notional Rent,PRC DELEGATED CO-COMMISSIONING,ELM LANE SURGERY,36162596,"5,343.00",NRENT,S5 7TW
Department of Health,NHS Sheffield CCG,31/03/2021,C&M-GMS Prof Fees Prescribing,PRC DELEGATED CO-COMMISSIONING,ELM LANE SURGERY,36162596,154.80,DRGPPF,S5 7TW
Department of Health,NHS Sheffield CCG,31/03/2021,C&M-GMS QOF Aspiration,PRC DELEGATED CO-COMMISSIONING,ELM LANE SURGERY,36162596,"4,787.76",QUASPG,S5 7TW
Department of Health,NHS Sheffield CCG,31/03/2021,Cont Care-Physical Disab (<65),CHC ADULT FULLY FUNDED,FAIRWINDS HEALTH CARE LTD,35957510,"40,311.92",CHC SCHEDULE MARCH 2021 - Fairwinds Nursing Home,S61 1AJ
Department of Health,NHS Sheffield CCG,31/03/2021,C&M-PMS Contract Value,PRC DELEGATED CO-COMMISSIONING,FALKLAND HOUSE,35928095,"26,861.43",BABALP,S11 7PL
Department of Health,NHS Sheffield CCG,31/03/2021,C&M-PMS DES Minor Surgery,PRC DELEGATED CO-COMMISSIONING,FALKLAND HOUSE,35928095,535.00,DEMSUP,S11 7PL
Department of Health,NHS Sheffield CCG,31/03/2021,C&M-PMS Out of Hours Opt Outs,PRC DELEGATED CO-COMMISSIONING,FALKLAND HOUSE,35928095,8.04,APMOOH,S11 7PL
Department of Health,NHS Sheffield CCG,31/03/2021,C&M-PMS PCN DES Participation,PRC DELEGATED CO-COMMISSIONING,FALKLAND HOUSE,35928095,994.89,PARTIP,S11 7PL
Department of Health,NHS Sheffield CCG,31/03/2021,C&M-PMS Prem Notional Rent,PRC DELEGATED CO-COMMISSIONING,FALKLAND HOUSE,35928095,"1,866.67",NRENT,S11 7PL
Department of Health,NHS Sheffield CCG,31/03/2021,C&M-PMS QOF Aspiration,PRC DELEGATED CO-COMMISSIONING,FALKLAND HOUSE,35928095,"2,962.47",QUASPP,S11 7PL
Department of Health,NHS Sheffield CCG,31/03/2021,C&M-GMS Cost of Drugs -Prescribing,LOCAL ENHANCED SERVICES,FAR LANE MEDICAL CENTRE,36162605,52.78,DRGP,S6 4FA
Department of Health,NHS Sheffield CCG,31/03/2021,C&M-GMS DES Minor Surgery,PRC DELEGATED CO-COMMISSIONING,FAR LANE MEDICAL CENTRE,36162605,"4,310.00",DEMSUG,S6 4FA
Department of Health,NHS Sheffield CCG,31/03/2021,C&M-GMS Global Sum,PRC DELEGATED CO-COMMISSIONING,FAR LANE MEDICAL CENTRE,36162605,"57,586.40",GSUMG,S6 4FA
Department of Health,NHS Sheffield CCG,31/03/2021,C&M-GMS PCN DES Participation,PRC DELEGATED CO-COMMISSIONING,FAR LANE MEDICAL CENTRE,36162605,"2,277.76",PARTIG,S6 4FA
Department of Health,NHS Sheffield CCG,31/03/2021,C&M-GMS Prem Notional Rent,PRC DELEGATED CO-COMMISSIONING,FAR LANE MEDICAL CENTRE,36162605,"3,504.17",NRENT,S6 4FA
Department of Health,NHS Sheffield CCG,31/03/2021,C&M-GMS Prof Fees Prescribing,PRC DELEGATED CO-COMMISSIONING,FAR LANE MEDICAL CENTRE,36162605,13.35,DRGPPF,S6 4FA
Department of Health,NHS Sheffield CCG,31/03/2021,C&M-GMS QOF Aspiration,PRC DELEGATED CO-COMMISSIONING,FAR LANE MEDICAL CENTRE,36162605,"6,055.38",QUASPG,S6 4FA
Department of Health,NHS Sheffield CCG,31/03/2021,C&M-PMS Contract Value,PRC DELEGATED CO-COMMISSIONING,FIRTH PARK SURGERY,35928090,"77,948.73",BABALP,S5 6HH
Department of Health,NHS Sheffield CCG,31/03/2021,C&M-PMS DES Learn Dsblty Hlth Chk,PRC DELEGATED CO-COMMISSIONING,FIRTH PARK SURGERY,35928090,"1,540.00",LEARNP,S5 6HH
Department of Health,NHS Sheffield CCG,31/03/2021,C&M-PMS DES Minor Surgery,PRC DELEGATED CO-COMMISSIONING,FIRTH PARK SURGERY,35928090,"2,625.00",DEMSUP,S5 6HH
Department of Health,NHS Sheffield CCG,31/03/2021,C&M-PMS Out of Hours Opt Outs,PRC DELEGATED CO-COMMISSIONING,FIRTH PARK SURGERY,35928090,9.90,APMOOH,S5 6HH
Department of Health,NHS Sheffield CCG,31/03/2021,C&M-PMS PCN DES Participation,PRC DELEGATED CO-COMMISSIONING,FIRTH PARK SURGERY,35928090,"2,909.44",PARTIP,S5 6HH
Department of Health,NHS Sheffield CCG,31/03/2021,C&M-PMS Prem Notional Rent,PRC DELEGATED CO-COMMISSIONING,FIRTH PARK SURGERY,35928090,"4,500.00",NRENT,S5 6HH
Department of Health,NHS Sheffield CCG,31/03/2021,C&M-PMS Prem Rates,PRC DELEGATED CO-COMMISSIONING,FIRTH PARK SURGERY,35928090,"1,844.00",RANDRP,S5 6HH
Department of Health,NHS Sheffield CCG,31/03/2021,C&M-PMS QOF Aspiration,PRC DELEGATED CO-COMMISSIONING,FIRTH PARK SURGERY,35928090,"7,425.15",QUASPP,S5 6HH
Department of Health,NHS Sheffield CCG,31/03/2021,C&M-PMS Contract Value,PRC DELEGATED CO-COMMISSIONING,FORGE HEALTH GROUP,35928148,"-1,719.65",BABALP,S3 9DL
Department of Health,NHS Sheffield CCG,31/03/2021,C&M-PMS DES Extended Hours Access,PRC DELEGATED CO-COMMISSIONING,FORGE HEALTH GROUP,35928148,"-6,849.44",EXTHDP,S3 9DL
Department of Health,NHS Sheffield CCG,31/03/2021,C&M-PMS GP Statutory Levy,PRC DELEGATED CO-COMMISSIONING,FORGE HEALTH GROUP,35928148,-516.71,STATL,S3 9DL
Department of Health,NHS Sheffield CCG,31/03/2021,C&M-PMS Out of Hours Opt Outs,PRC DELEGATED CO-COMMISSIONING,FORGE HEALTH GROUP,35928148,"-5,883.56",APMOOH,S3 9DL
Department of Health,NHS Sheffield CCG,31/03/2021,C&M-PMS PCN DES Clinical Director,PRC DELEGATED CO-COMMISSIONING,FORGE HEALTH GROUP,35928148,"-3,410.55",CLINDP,S3 9DL
Department of Health,NHS Sheffield CCG,31/03/2021,C&M-PMS PCN DES PCN support,LOCAL ENHANCED SERVICES,FORGE HEALTH GROUP,35928148,"-7,085.63",PCNSUP,S3 9DL
Department of Health,NHS Sheffield CCG,31/03/2021,C&M-PMS PCN DES Participation,PRC DELEGATED CO-COMMISSIONING,FORGE HEALTH GROUP,35928148,"-2,286.18",PARTIP,S3 9DL
Department of Health,NHS Sheffield CCG,31/03/2021,C&M-PMS Prem Healthcentre Rent,PRC DELEGATED CO-COMMISSIONING,FORGE HEALTH GROUP,35928148,-927.37,HEALTH,S3 9DL
Department of Health,NHS Sheffield CCG,31/03/2021,C&M-PMS Prem Notional Rent,PRC DELEGATED CO-COMMISSIONING,FORGE HEALTH GROUP,35928148,"-1,589.77",NRENT,S3 9DL
Department of Health,NHS Sheffield CCG,31/03/2021,C&M-PMS Contract Value,PRC DELEGATED CO-COMMISSIONING,FORGE HEALTH GROUP,35928149,"123,756.27",BABALP,S3 9DL
Department of Health,NHS Sheffield CCG,31/03/2021,C&M-PMS DES Extended Hours Access,PRC DELEGATED CO-COMMISSIONING,FORGE HEALTH GROUP,35928149,"13,708.32",EXTHDP,S3 9DL
Department of Health,NHS Sheffield CCG,31/03/2021,C&M-PMS DES Minor Surgery,PRC DELEGATED CO-COMMISSIONING,FORGE HEALTH GROUP,35928149,"2,500.00",DEMSUP,S3 9DL
Department of Health,NHS Sheffield CCG,31/03/2021,C&M-PMS Out of Hours Opt Outs,PRC DELEGATED CO-COMMISSIONING,FORGE HEALTH GROUP,35928149,82.07,APMOOH,S3 9DL
Department of Health,NHS Sheffield CCG,31/03/2021,C&M-PMS PCN DES Clinical Director,PRC DELEGATED CO-COMMISSIONING,FORGE HEALTH GROUP,35928149,"6,811.65",CLINDP,S3 9DL
Department of Health,NHS Sheffield CCG,31/03/2021,C&M-PMS PCN DES PCN support,LOCAL ENHANCED SERVICES,FORGE HEALTH GROUP,35928149,"14,171.25",PCNSUP,S3 9DL
Department of Health,NHS Sheffield CCG,31/03/2021,C&M-PMS PCN DES Participation,PRC DELEGATED CO-COMMISSIONING,FORGE HEALTH GROUP,35928149,"4,576.26",PARTIP,S3 9DL
Department of Health,NHS Sheffield CCG,31/03/2021,C&M-PMS Prem Healthcentre Rent,PRC DELEGATED CO-COMMISSIONING,FORGE HEALTH GROUP,35928149,"35,472.33",HEALTH,S3 9DL
Department of Health,NHS Sheffield CCG,31/03/2021,C&M-PMS Prem Notional Rent,PRC DELEGATED CO-COMMISSIONING,FORGE HEALTH GROUP,35928149,"11,481.43",NRENT,S3 9DL
Department of Health,NHS Sheffield CCG,31/03/2021,C&M-PMS Prem Water Rates,PRC DELEGATED CO-COMMISSIONING,FORGE HEALTH GROUP,35928149,232.33,RAMWP,S3 9DL
Department of Health,NHS Sheffield CCG,31/03/2021,C&M-PMS QOF Aspiration,PRC DELEGATED CO-COMMISSIONING,FORGE HEALTH GROUP,35928149,"11,197.01",QUASPP,S3 9DL
Department of Health,NHS Sheffield CCG,31/03/2021,C&M-PCN DES PHARMACY TECHNICIANS,PRC DELEGATED CO-COMMISSIONING,FORGE HEALTH GROUP,36051251,"1,571.86",,S3 9DL
Department of Health,NHS Sheffield CCG,31/03/2021,C&M-PMS C&M-APMS PCN DES Physician Assoc,PRC DELEGATED CO-COMMISSIONING,FORGE HEALTH GROUP,36051251,"3,423.93",,S3 9DL
Department of Health,NHS Sheffield CCG,31/03/2021,C&M-PMS PCN DES Clin Pharmacist,PRC DELEGATED CO-COMMISSIONING,FORGE HEALTH GROUP,36051251,"21,114.59",,S3 9DL
Department of Health,NHS Sheffield CCG,31/03/2021,C&M-PMS PCN DES Physiotherapist,PRC DELEGATED CO-COMMISSIONING,FORGE HEALTH GROUP,36051251,"7,733.50",,S3 9DL
Department of Health,NHS Sheffield CCG,31/03/2021,C&M-PMS PCN DES Soc Prescribing,PRC DELEGATED CO-COMMISSIONING,FORGE HEALTH GROUP,36051251,"7,600.51",,S3 9DL
Department of Health,NHS Sheffield CCG,31/03/2021,C&M-GMS PCO Recruitmt & Retn,GP FORWARD VIEW,FOUNDRY MEDICAL GROUP,35997549,"25,000.00",,S3 9DL
Department of Health,NHS Sheffield CCG,31/03/2021,C&M-GMS PCO Recruitmt & Retn,GP FORWARD VIEW,FOUNDRY MEDICAL GROUP,35997553,"111,706.00",,S3 9DL
Department of Health,NHS Sheffield CCG,31/03/2021,C&M-GMS PCO Recruitmt & Retn,GP FORWARD VIEW,FOUNDRY MEDICAL GROUP,36050991,"40,000.00",,S3 9DL
Department of Health,NHS Sheffield CCG,31/03/2021,C&M-PMS Contract Value,PRC DELEGATED CO-COMMISSIONING,FOXHILL MEDICAL CENTRE SHEFFIELD,35928147,"52,509.47",BABALP,S6 1GA
Department of Health,NHS Sheffield CCG,31/03/2021,C&M-PMS DES Minor Surgery,PRC DELEGATED CO-COMMISSIONING,FOXHILL MEDICAL CENTRE SHEFFIELD,35928147,830.00,DEMSUP,S6 1GA
Department of Health,NHS Sheffield CCG,31/03/2021,C&M-PMS Funding Differential Review,PRC DELEGATED CO-COMMISSIONING,FOXHILL MEDICAL CENTRE SHEFFIELD,35928147,"1,157.94",ZFUNFP,S6 1GA
Department of Health,NHS Sheffield CCG,31/03/2021,C&M-PMS Out of Hours Opt Outs,PRC DELEGATED CO-COMMISSIONING,FOXHILL MEDICAL CENTRE SHEFFIELD,35928147,54.58,APMOOH,S6 1GA
Department of Health,NHS Sheffield CCG,31/03/2021,C&M-PMS PCN DES Participation,PRC DELEGATED CO-COMMISSIONING,FOXHILL MEDICAL CENTRE SHEFFIELD,35928147,"1,963.57",PARTIP,S6 1GA
Department of Health,NHS Sheffield CCG,31/03/2021,C&M-PMS PCO Locum Sickness,PRC DELEGATED CO-COMMISSIONING,FOXHILL MEDICAL CENTRE SHEFFIELD,35928147,"7,936.06",SICKS,S6 1GA
Department of Health,NHS Sheffield CCG,31/03/2021,C&M-PMS Prem Healthcentre Rent,PRC DELEGATED CO-COMMISSIONING,FOXHILL MEDICAL CENTRE SHEFFIELD,35928147,"47,880.58",HEALTH,S6 1GA
Department of Health,NHS Sheffield CCG,31/03/2021,C&M-PMS QOF Aspiration,PRC DELEGATED CO-COMMISSIONING,FOXHILL MEDICAL CENTRE SHEFFIELD,35928147,"5,429.40",QUASPP,S6 1GA
Department of Health,NHS Sheffield CCG,31/03/2021,C&M-PMS Contract Value,PRC DELEGATED CO-COMMISSIONING,GLEADLESS MEDICAL CENTRE,35928097,"-1,956.45",BABALP,S14 1PQ
Department of Health,NHS Sheffield CCG,31/03/2021,C&M-PMS GP Statutory Levy,PRC DELEGATED CO-COMMISSIONING,GLEADLESS MEDICAL CENTRE,35928097,-310.42,STATL,S14 1PQ
Department of Health,NHS Sheffield CCG,31/03/2021,C&M-PMS Out of Hours Opt Outs,PRC DELEGATED CO-COMMISSIONING,GLEADLESS MEDICAL CENTRE,35928097,"-3,343.38",APMOOH,S14 1PQ
Department of Health,NHS Sheffield CCG,31/03/2021,C&M-PMS PCN DES Participation,PRC DELEGATED CO-COMMISSIONING,GLEADLESS MEDICAL CENTRE,35928097,"-1,315.26",PARTIP,S14 1PQ
Department of Health,NHS Sheffield CCG,31/03/2021,C&M-PMS Prem Rates,PRC DELEGATED CO-COMMISSIONING,GLEADLESS MEDICAL CENTRE,35928097,"-14,084.40",RANDRP,S14 1PQ
Department of Health,NHS Sheffield CCG,31/03/2021,C&M-PMS Contract Value,PRC DELEGATED CO-COMMISSIONING,GLEADLESS MEDICAL CENTRE,35928099,"70,297.55",BABALP,S14 1PQ
Department of Health,NHS Sheffield CCG,31/03/2021,C&M-PMS DES Learn Dsblty Hlth Chk,PRC DELEGATED CO-COMMISSIONING,GLEADLESS MEDICAL CENTRE,35928099,"6,300.00",LEARNP,S14 1PQ
Department of Health,NHS Sheffield CCG,31/03/2021,C&M-PMS DES Minor Surgery,PRC DELEGATED CO-COMMISSIONING,GLEADLESS MEDICAL CENTRE,35928099,240.00,DEMSUP,S14 1PQ
Department of Health,NHS Sheffield CCG,31/03/2021,C&M-PMS Funding Differential Review,PRC DELEGATED CO-COMMISSIONING,GLEADLESS MEDICAL CENTRE,35928099,"1,547.97",ZFUNFP,S14 1PQ
Department of Health,NHS Sheffield CCG,31/03/2021,C&M-PMS Out of Hours Opt Outs,PRC DELEGATED CO-COMMISSIONING,GLEADLESS MEDICAL CENTRE,35928099,93.13,APMOOH,S14 1PQ
Department of Health,NHS Sheffield CCG,31/03/2021,C&M-PMS PCN DES Participation,PRC DELEGATED CO-COMMISSIONING,GLEADLESS MEDICAL CENTRE,35928099,"2,632.76",PARTIP,S14 1PQ
Department of Health,NHS Sheffield CCG,31/03/2021,C&M-PMS Prem Notional Rent,PRC DELEGATED CO-COMMISSIONING,GLEADLESS MEDICAL CENTRE,35928099,"6,750.00",NRENT,S14 1PQ
Department of Health,NHS Sheffield CCG,31/03/2021,C&M-PMS Prem Water Rates,PRC DELEGATED CO-COMMISSIONING,GLEADLESS MEDICAL CENTRE,35928099,242.20,RAMWP,S14 1PQ
Department of Health,NHS Sheffield CCG,31/03/2021,C&M-PMS QOF Aspiration,PRC DELEGATED CO-COMMISSIONING,GLEADLESS MEDICAL CENTRE,35928099,"7,390.52",QUASPP,S14 1PQ
Department of Health,NHS Sheffield CCG,31/03/2021,C&M-GMS Cost of Drugs -Prescribing,LOCAL ENHANCED SERVICES,GRENOSIDE SURGERY,36162613,"2,987.45",DRGP,S35 8NX
Department of Health,NHS Sheffield CCG,31/03/2021,C&M-GMS DES Minor Surgery,PRC DELEGATED CO-COMMISSIONING,GRENOSIDE SURGERY,36162613,585.00,DEMSUG,S35 8NX
Department of Health,NHS Sheffield CCG,31/03/2021,C&M-GMS Global Sum,PRC DELEGATED CO-COMMISSIONING,GRENOSIDE SURGERY,36162613,"63,170.11",GSUMG,S35 8NX
Department of Health,NHS Sheffield CCG,31/03/2021,C&M-GMS PCN DES Participation,PRC DELEGATED CO-COMMISSIONING,GRENOSIDE SURGERY,36162613,"2,442.24",PARTIG,S35 8NX
Department of Health,NHS Sheffield CCG,31/03/2021,C&M-GMS Prem Notional Rent,PRC DELEGATED CO-COMMISSIONING,GRENOSIDE SURGERY,36162613,"8,110.42",NRENT,S35 8NX
Department of Health,NHS Sheffield CCG,31/03/2021,C&M-GMS Prof Fees Prescribing,PRC DELEGATED CO-COMMISSIONING,GRENOSIDE SURGERY,36162613,368.33,DRGPPF,S35 8NX
Department of Health,NHS Sheffield CCG,31/03/2021,C&M-GMS QOF Aspiration,PRC DELEGATED CO-COMMISSIONING,GRENOSIDE SURGERY,36162613,"5,840.97",QUASPG,S35 8NX
Department of Health,NHS Sheffield CCG,31/03/2021,C&M-GMS Cost of Drugs -Prescribing,LOCAL ENHANCED SERVICES,GREYSTONES MEDICAL CENTRE,36162615,18.36,DRGP,S11 7BJ
Department of Health,NHS Sheffield CCG,31/03/2021,C&M-GMS DES Minor Surgery,PRC DELEGATED CO-COMMISSIONING,GREYSTONES MEDICAL CENTRE,36162615,375.00,DEMSUG,S11 7BJ
Department of Health,NHS Sheffield CCG,31/03/2021,C&M-GMS Global Sum,PRC DELEGATED CO-COMMISSIONING,GREYSTONES MEDICAL CENTRE,36162615,"20,452.81",GSUMG,S11 7BJ
Department of Health,NHS Sheffield CCG,31/03/2021,C&M-GMS PCN DES Participation,PRC DELEGATED CO-COMMISSIONING,GREYSTONES MEDICAL CENTRE,36162615,814.36,PARTIG,S11 7BJ
Department of Health,NHS Sheffield CCG,31/03/2021,C&M-GMS Prem Notional Rent,PRC DELEGATED CO-COMMISSIONING,GREYSTONES MEDICAL CENTRE,36162615,"2,885.42",NRENT,S11 7BJ
Department of Health,NHS Sheffield CCG,31/03/2021,C&M-GMS Prem Rates,PRC DELEGATED CO-COMMISSIONING,GREYSTONES MEDICAL CENTRE,36162615,707.00,RANDR,S11 7BJ
Department of Health,NHS Sheffield CCG,31/03/2021,C&M-GMS Prof Fees Prescribing,PRC DELEGATED CO-COMMISSIONING,GREYSTONES MEDICAL CENTRE,36162615,5.34,DRGPPF,S11 7BJ
Department of Health,NHS Sheffield CCG,31/03/2021,C&M-GMS QOF Aspiration,PRC DELEGATED CO-COMMISSIONING,GREYSTONES MEDICAL CENTRE,36162615,"2,326.23",QUASPG,S11 7BJ
Department of Health,NHS Sheffield CCG,31/03/2021,C&M-PMS Contract Value,PRC DELEGATED CO-COMMISSIONING,HACKENTHORPE MEDICAL CENTRE,35928103,"49,874.12",BABALP,S12 4LA
Department of Health,NHS Sheffield CCG,31/03/2021,C&M-PMS DES Minor Surgery,PRC DELEGATED CO-COMMISSIONING,HACKENTHORPE MEDICAL CENTRE,35928103,960.00,DEMSUP,S12 4LA
Department of Health,NHS Sheffield CCG,31/03/2021,C&M-PMS Out of Hours Opt Outs,PRC DELEGATED CO-COMMISSIONING,HACKENTHORPE MEDICAL CENTRE,35928103,24.94,APMOOH,S12 4LA
Department of Health,NHS Sheffield CCG,31/03/2021,C&M-PMS PCN DES Participation,PRC DELEGATED CO-COMMISSIONING,HACKENTHORPE MEDICAL CENTRE,35928103,"1,853.42",PARTIP,S12 4LA
Department of Health,NHS Sheffield CCG,31/03/2021,C&M-PMS Prem Notional Rent,PRC DELEGATED CO-COMMISSIONING,HACKENTHORPE MEDICAL CENTRE,35928103,"5,116.67",NRENT,S12 4LA
Department of Health,NHS Sheffield CCG,31/03/2021,C&M-PMS Prem Water Rates,PRC DELEGATED CO-COMMISSIONING,HACKENTHORPE MEDICAL CENTRE,35928103,80.85,RAMWP,S12 4LA
Department of Health,NHS Sheffield CCG,31/03/2021,C&M-PMS QOF Aspiration,PRC DELEGATED CO-COMMISSIONING,HACKENTHORPE MEDICAL CENTRE,35928103,"6,490.74",QUASPP,S12 4LA
Department of Health,NHS Sheffield CCG,31/03/2021,C&M-GMS Cost of Drugs -Prescribing,LOCAL ENHANCED SERVICES,HANDSWORTH MEDICAL PRACTICE SHEFFIELD,36162611,920.71,DRGP,S13 9BZ
Department of Health,NHS Sheffield CCG,31/03/2021,C&M-GMS DES Minor Surgery,PRC DELEGATED CO-COMMISSIONING,HANDSWORTH MEDICAL PRACTICE SHEFFIELD,36162611,415.00,DEMSUG,S13 9BZ
Department of Health,NHS Sheffield CCG,31/03/2021,C&M-GMS Global Sum,PRC DELEGATED CO-COMMISSIONING,HANDSWORTH MEDICAL PRACTICE SHEFFIELD,36162611,"81,849.00",GSUMG,S13 9BZ
Department of Health,NHS Sheffield CCG,31/03/2021,C&M-GMS PCN DES Participation,PRC DELEGATED CO-COMMISSIONING,HANDSWORTH MEDICAL PRACTICE SHEFFIELD,36162611,"3,202.29",PARTIG,S13 9BZ
Department of Health,NHS Sheffield CCG,31/03/2021,C&M-GMS Prem Notional Rent,PRC DELEGATED CO-COMMISSIONING,HANDSWORTH MEDICAL PRACTICE SHEFFIELD,36162611,"3,321.66",NRENT,S13 9BZ
Department of Health,NHS Sheffield CCG,31/03/2021,C&M-GMS Prem Water Rates,PRC DELEGATED CO-COMMISSIONING,HANDSWORTH MEDICAL PRACTICE SHEFFIELD,36162611,38.52,RAMW,S13 9BZ
Department of Health,NHS Sheffield CCG,31/03/2021,C&M-GMS Prof Fees Prescribing,PRC DELEGATED CO-COMMISSIONING,HANDSWORTH MEDICAL PRACTICE SHEFFIELD,36162611,194.83,DRGPPF,S13 9BZ
Department of Health,NHS Sheffield CCG,31/03/2021,C&M-GMS QOF Aspiration,PRC DELEGATED CO-COMMISSIONING,HANDSWORTH MEDICAL PRACTICE SHEFFIELD,36162611,"7,866.23",QUASPG,S13 9BZ
Department of Health,NHS Sheffield CCG,31/03/2021,C&M-GMS Global Sum,PRC DELEGATED CO-COMMISSIONING,HAROLD STREET MEDICAL CENTRE,36162608,"19,830.15",GSUMG,S6 3QW
Department of Health,NHS Sheffield CCG,31/03/2021,C&M-GMS PCN DES Participation,PRC DELEGATED CO-COMMISSIONING,HAROLD STREET MEDICAL CENTRE,36162608,810.91,PARTIG,S6 3QW
Department of Health,NHS Sheffield CCG,31/03/2021,C&M-GMS Prem Notional Rent,PRC DELEGATED CO-COMMISSIONING,HAROLD STREET MEDICAL CENTRE,36162608,"2,337.50",NRENT,S6 3QW
Department of Health,NHS Sheffield CCG,31/03/2021,C&M-GMS QOF Aspiration,PRC DELEGATED CO-COMMISSIONING,HAROLD STREET MEDICAL CENTRE,36162608,"2,231.83",QUASPG,S6 3QW
Department of Health,NHS Sheffield CCG,31/03/2021,C&M-GMS DES Learn Dsblty Hlth Chk,PRC DELEGATED CO-COMMISSIONING,HEALTH CARE SURGERY,36182409,"1,260.00",LEARNG,S5 8GS
Department of Health,NHS Sheffield CCG,31/03/2021,C&M-GMS DES Minor Surgery,PRC DELEGATED CO-COMMISSIONING,HEALTH CARE SURGERY,36182409,"2,135.00",DEMSUG,S5 8GS
Department of Health,NHS Sheffield CCG,31/03/2021,C&M-GMS Global Sum,PRC DELEGATED CO-COMMISSIONING,HEALTH CARE SURGERY,36182409,"62,364.68",GSUMG,S5 8GS
Department of Health,NHS Sheffield CCG,31/03/2021,C&M-GMS Other FDR Payment,PRC DELEGATED CO-COMMISSIONING,HEALTH CARE SURGERY,36182409,506.77,ZFUNDG,S5 8GS
Department of Health,NHS Sheffield CCG,31/03/2021,C&M-GMS PCN DES Participation,PRC DELEGATED CO-COMMISSIONING,HEALTH CARE SURGERY,36182409,"2,014.46",PARTIG,S5 8GS
Department of Health,NHS Sheffield CCG,31/03/2021,C&M-GMS Prem Notional Rent,PRC DELEGATED CO-COMMISSIONING,HEALTH CARE SURGERY,36182409,"5,558.33",NRENT,S5 8GS
Department of Health,NHS Sheffield CCG,31/03/2021,C&M-GMS Prem Rates,PRC DELEGATED CO-COMMISSIONING,HEALTH CARE SURGERY,36182409,755.00,RANDR,S5 8GS
Department of Health,NHS Sheffield CCG,31/03/2021,C&M-GMS QOF Aspiration,PRC DELEGATED CO-COMMISSIONING,HEALTH CARE SURGERY,36182409,"6,102.75",QUASPG,S5 8GS
Department of Health,NHS Sheffield CCG,31/03/2021,C&M-GMS Global Sum,PRC DELEGATED CO-COMMISSIONING,HEELEY GREEN SURGERY,36162617,"42,888.89",GSUMG,S2 3AJ
Department of Health,NHS Sheffield CCG,31/03/2021,C&M-GMS PCN DES Participation,PRC DELEGATED CO-COMMISSIONING,HEELEY GREEN SURGERY,36162617,"1,716.38",PARTIG,S2 3AJ
Department of Health,NHS Sheffield CCG,31/03/2021,C&M-GMS Prem Notional Rent,PRC DELEGATED CO-COMMISSIONING,HEELEY GREEN SURGERY,36162617,"3,254.17",NRENT,S2 3AJ
Department of Health,NHS Sheffield CCG,31/03/2021,C&M-GMS QOF Aspiration,PRC DELEGATED CO-COMMISSIONING,HEELEY GREEN SURGERY,36162617,"4,729.13",QUASPG,S2 3AJ
Department of Health,NHS Sheffield CCG,31/03/2021,C&M-GMS DES Minor Surgery,PRC DELEGATED CO-COMMISSIONING,HOLLIES MEDICAL CENTRE,36162619,535.00,DEMSUG,S11 9AL
Department of Health,NHS Sheffield CCG,31/03/2021,C&M-GMS Global Sum,PRC DELEGATED CO-COMMISSIONING,HOLLIES MEDICAL CENTRE,36162619,"64,789.43",GSUMG,S11 9AL
Department of Health,NHS Sheffield CCG,31/03/2021,C&M-GMS PCN DES Participation,PRC DELEGATED CO-COMMISSIONING,HOLLIES MEDICAL CENTRE,36162619,"2,495.24",PARTIG,S11 9AL
Department of Health,NHS Sheffield CCG,31/03/2021,C&M-GMS Prem Notional Rent,PRC DELEGATED CO-COMMISSIONING,HOLLIES MEDICAL CENTRE,36162619,"3,358.34",NRENT,S11 9AL
Department of Health,NHS Sheffield CCG,31/03/2021,C&M-GMS QOF Aspiration,PRC DELEGATED CO-COMMISSIONING,HOLLIES MEDICAL CENTRE,36162619,"7,315.52",QUASPG,S11 9AL
Department of Health,NHS Sheffield CCG,31/03/2021,Cont Care-Physical Disab (<65),CHC ADULT FULLY FUNDED,HORIZON CARE HOMES LTD,35957721,"81,901.69",CHC SCHEDULE MARCH 2021 - Wood Hill Lodge,S25 3QA
Department of Health,NHS Sheffield CCG,31/03/2021,External Consultancy Fees,BEREAVEMENT SERVICE,IDEAL HEALTH CONSULTANTS LTD,35858398,"68,904.00",https://nww.einvoice-prod.sbs.nhs.uk:8179/invoicepdf/27df2614-7244-570e-86b4-f092a8bd49cb,GU1 4SJ
Department of Health,NHS Sheffield CCG,31/03/2021,Cont Care-Physical Disab (<65),CHC ADULT FULLY FUNDED,INLET LTD,35957739,"84,841.49",CHC SCHEDULE MARCH 2021 - Loxley Court (Inlet Ltd),S48NB
Department of Health,NHS Sheffield CCG,31/03/2021,C&M-PMS Contract Value,PRC DELEGATED CO-COMMISSIONING,JAUNTY SPRINGS HEALTH CENTRE,35928107,"31,727.46",BABALP,S12 3DZ
Department of Health,NHS Sheffield CCG,31/03/2021,C&M-PMS DES Extended Hours Access,PRC DELEGATED CO-COMMISSIONING,JAUNTY SPRINGS HEALTH CENTRE,35928107,"8,433.94",EXTHDP,S12 3DZ
Department of Health,NHS Sheffield CCG,31/03/2021,C&M-PMS DES Minor Surgery,PRC DELEGATED CO-COMMISSIONING,JAUNTY SPRINGS HEALTH CENTRE,35928107,160.00,DEMSUP,S12 3DZ
Department of Health,NHS Sheffield CCG,31/03/2021,C&M-PMS Out of Hours Opt Outs,PRC DELEGATED CO-COMMISSIONING,JAUNTY SPRINGS HEALTH CENTRE,35928107,12.44,APMOOH,S12 3DZ
Department of Health,NHS Sheffield CCG,31/03/2021,C&M-PMS PCN DES Clinical Director,PRC DELEGATED CO-COMMISSIONING,JAUNTY SPRINGS HEALTH CENTRE,35928107,"4,190.81",CLINDP,S12 3DZ
Department of Health,NHS Sheffield CCG,31/03/2021,C&M-PMS PCN DES PCN support,LOCAL ENHANCED SERVICES,JAUNTY SPRINGS HEALTH CENTRE,35928107,"8,718.76",PCNSUP,S12 3DZ
Department of Health,NHS Sheffield CCG,31/03/2021,C&M-PMS PCN DES Participation,PRC DELEGATED CO-COMMISSIONING,JAUNTY SPRINGS HEALTH CENTRE,35928107,"1,186.59",PARTIP,S12 3DZ
Department of Health,NHS Sheffield CCG,31/03/2021,C&M-PMS Prem Notional Rent,PRC DELEGATED CO-COMMISSIONING,JAUNTY SPRINGS HEALTH CENTRE,35928107,"3,208.33",NRENT,S12 3DZ
Department of Health,NHS Sheffield CCG,31/03/2021,C&M-PMS Prem Water Rates,PRC DELEGATED CO-COMMISSIONING,JAUNTY SPRINGS HEALTH CENTRE,35928107,132.08,RAMWP,S12 3DZ
Department of Health,NHS Sheffield CCG,31/03/2021,C&M-PMS QOF Aspiration,PRC DELEGATED CO-COMMISSIONING,JAUNTY SPRINGS HEALTH CENTRE,35928107,"3,693.16",QUASPP,S12 3DZ
Department of Health,NHS Sheffield CCG,31/03/2021,Professional Fees,BEREAVEMENT SERVICE,LEEDS & YORK PARTNERSHIP NHS FOUNDATION TRUST,35896819,"30,000.00",OTHER OPERATING INCOME NHS,WF3 1WE
Department of Health,NHS Sheffield CCG,31/03/2021,Clinical&Medical-Voluntary Sector,MENTAL HEALTH SERVICES - OTHER,LISTENING EAR (MERSEYSIDE),35984541,"39,900.59",,L26 6LB
Department of Health,NHS Sheffield CCG,31/03/2021,Clinical&Medical-Voluntary Sector,MENTAL HEALTH SERVICES - OTHER,LISTENING EAR (MERSEYSIDE),35997547,"38,058.44",,L26 6LB
Department of Health,NHS Sheffield CCG,31/03/2021,Cont Care-Physical Disab (<65),CHC ADULT FULLY FUNDED,LONGLEY HEALTH CARE LTD,35957537,"107,284.78",CHC SCHEDULE MARCH 2021 - Longley Park View Nursing Home (Exemplar HC),S5 7JZ
Department of Health,NHS Sheffield CCG,31/03/2021,C&M-PMS Contract Value,PRC DELEGATED CO-COMMISSIONING,MANCHESTER ROAD SURGERY SHEFFIELD,35928111,"33,979.90",BABALP,S10 5PN
Department of Health,NHS Sheffield CCG,31/03/2021,C&M-PMS DES Minor Surgery,PRC DELEGATED CO-COMMISSIONING,MANCHESTER ROAD SURGERY SHEFFIELD,35928111,855.00,DEMSUP,S10 5PN
Department of Health,NHS Sheffield CCG,31/03/2021,C&M-PMS Out of Hours Opt Outs,PRC DELEGATED CO-COMMISSIONING,MANCHESTER ROAD SURGERY SHEFFIELD,35928111,4.42,APMOOH,S10 5PN
Department of Health,NHS Sheffield CCG,31/03/2021,C&M-PMS PCN DES Participation,PRC DELEGATED CO-COMMISSIONING,MANCHESTER ROAD SURGERY SHEFFIELD,35928111,"1,263.76",PARTIP,S10 5PN
Department of Health,NHS Sheffield CCG,31/03/2021,C&M-PMS Prem Cost Rent,PRC DELEGATED CO-COMMISSIONING,MANCHESTER ROAD SURGERY SHEFFIELD,35928111,"3,091.46",COST,S10 5PN
Department of Health,NHS Sheffield CCG,31/03/2021,C&M-PMS Prem Notional Rent,PRC DELEGATED CO-COMMISSIONING,MANCHESTER ROAD SURGERY SHEFFIELD,35928111,442.92,NRENT,S10 5PN
Department of Health,NHS Sheffield CCG,31/03/2021,C&M-PMS Prem Water Rates,PRC DELEGATED CO-COMMISSIONING,MANCHESTER ROAD SURGERY SHEFFIELD,35928111,136.57,RAMWP,S10 5PN
Department of Health,NHS Sheffield CCG,31/03/2021,C&M-PMS QOF Aspiration,PRC DELEGATED CO-COMMISSIONING,MANCHESTER ROAD SURGERY SHEFFIELD,35928111,"3,837.07",QUASPP,S10 5PN
Department of Health,NHS Sheffield CCG,31/03/2021,C&M-PMS Contract Value,PRC DELEGATED CO-COMMISSIONING,MANOR & PARK GROUP PRACTICE,35936202,"73,769.32",BABALP,S2 5QQ
Department of Health,NHS Sheffield CCG,31/03/2021,C&M-PMS Out of Hours Opt Outs,PRC DELEGATED CO-COMMISSIONING,MANOR & PARK GROUP PRACTICE,35936202,117.17,APMOOH,S2 5QQ
Department of Health,NHS Sheffield CCG,31/03/2021,C&M-PMS PCN DES Participation,PRC DELEGATED CO-COMMISSIONING,MANOR & PARK GROUP PRACTICE,35936202,"2,777.35",PARTIP,S2 5QQ
Department of Health,NHS Sheffield CCG,31/03/2021,C&M-PMS Prem Notional Rent,PRC DELEGATED CO-COMMISSIONING,MANOR & PARK GROUP PRACTICE,35936202,"9,112.50",NRENT,S2 5QQ
Department of Health,NHS Sheffield CCG,31/03/2021,C&M-PMS QOF Aspiration,PRC DELEGATED CO-COMMISSIONING,MANOR & PARK GROUP PRACTICE,35936202,"6,093.98",QUASPP,S2 5QQ
Department of Health,NHS Sheffield CCG,31/03/2021,Participation Fees,CLINICAL LEADS,MARTIN HOUSE,36033933,"31,000.00",,LS23 6TX
Department of Health,NHS Sheffield CCG,31/03/2021,C&M-GMS Cost of Drugs -Prescribing,LOCAL ENHANCED SERVICES,MATHEWS PRACTICE,36162628,13.75,DRGP,S2 4UJ
Department of Health,NHS Sheffield CCG,31/03/2021,C&M-GMS DES Minor Surgery,PRC DELEGATED CO-COMMISSIONING,MATHEWS PRACTICE,36162628,"1,780.00",DEMSUG,S2 4UJ
Department of Health,NHS Sheffield CCG,31/03/2021,C&M-GMS Global Sum,PRC DELEGATED CO-COMMISSIONING,MATHEWS PRACTICE,36162628,"58,054.77",GSUMG,S2 4UJ
Department of Health,NHS Sheffield CCG,31/03/2021,C&M-GMS PCN DES Participation,PRC DELEGATED CO-COMMISSIONING,MATHEWS PRACTICE,36162628,"2,380.81",PARTIG,S2 4UJ
Department of Health,NHS Sheffield CCG,31/03/2021,C&M-GMS Prof Fees Prescribing,PRC DELEGATED CO-COMMISSIONING,MATHEWS PRACTICE,36162628,21.35,DRGPPF,S2 4UJ
Department of Health,NHS Sheffield CCG,31/03/2021,C&M-GMS QOF Aspiration,PRC DELEGATED CO-COMMISSIONING,MATHEWS PRACTICE,36162628,"7,173.28",QUASPG,S2 4UJ
Department of Health,NHS Sheffield CCG,31/03/2021,C&M-PMS Contract Value,PRC DELEGATED CO-COMMISSIONING,MEADOWHEAD GROUP PRACTICE,35928108,"-56,365.17",BABALP,S8 7RL
Department of Health,NHS Sheffield CCG,31/03/2021,C&M-PMS GP Statutory Levy,PRC DELEGATED CO-COMMISSIONING,MEADOWHEAD GROUP PRACTICE,35928108,-595.70,STATL,S8 7RL
Department of Health,NHS Sheffield CCG,31/03/2021,C&M-PMS Out of Hours Opt Outs,PRC DELEGATED CO-COMMISSIONING,MEADOWHEAD GROUP PRACTICE,35928108,"-9,395.87",APMOOH,S8 7RL
Department of Health,NHS Sheffield CCG,31/03/2021,C&M-PMS PCN DES Participation,PRC DELEGATED CO-COMMISSIONING,MEADOWHEAD GROUP PRACTICE,35928108,"-2,434.20",PARTIP,S8 7RL
Department of Health,NHS Sheffield CCG,31/03/2021,C&M-PMS Prem Cost Rent,PRC DELEGATED CO-COMMISSIONING,MEADOWHEAD GROUP PRACTICE,35928108,"-3,647.42",COST,S8 7RL
Department of Health,NHS Sheffield CCG,31/03/2021,C&M-PMS Prem Notional Rent,PRC DELEGATED CO-COMMISSIONING,MEADOWHEAD GROUP PRACTICE,35928108,"-3,358.33",NRENT,S8 7RL
Department of Health,NHS Sheffield CCG,31/03/2021,C&M-PMS Contract Value,PRC DELEGATED CO-COMMISSIONING,MEADOWHEAD GROUP PRACTICE,35928109,"197,230.86",BABALP,S8 7RL
Department of Health,NHS Sheffield CCG,31/03/2021,C&M-PMS DES Minor Surgery,PRC DELEGATED CO-COMMISSIONING,MEADOWHEAD GROUP PRACTICE,35928109,"2,890.00",DEMSUP,S8 7RL
Department of Health,NHS Sheffield CCG,31/03/2021,C&M-PMS Funding Differential Review,PRC DELEGATED CO-COMMISSIONING,MEADOWHEAD GROUP PRACTICE,35928109,"1,641.85",ZFUNFP,S8 7RL
Department of Health,NHS Sheffield CCG,31/03/2021,C&M-PMS Out of Hours Opt Outs,PRC DELEGATED CO-COMMISSIONING,MEADOWHEAD GROUP PRACTICE,35928109,"2,689.39",APMOOH,S8 7RL
Department of Health,NHS Sheffield CCG,31/03/2021,C&M-PMS PCN DES Participation,PRC DELEGATED CO-COMMISSIONING,MEADOWHEAD GROUP PRACTICE,35928109,"3,821.10",PARTIP,S8 7RL
Department of Health,NHS Sheffield CCG,31/03/2021,C&M-PMS Prem Cost Rent,PRC DELEGATED CO-COMMISSIONING,MEADOWHEAD GROUP PRACTICE,35928109,"3,647.42",COST,S8 7RL
Department of Health,NHS Sheffield CCG,31/03/2021,C&M-PMS Prem Healthcentre Rent,PRC DELEGATED CO-COMMISSIONING,MEADOWHEAD GROUP PRACTICE,35928109,"41,665.03",HEALTH,S8 7RL
Department of Health,NHS Sheffield CCG,31/03/2021,C&M-PMS Prem Notional Rent,PRC DELEGATED CO-COMMISSIONING,MEADOWHEAD GROUP PRACTICE,35928109,"8,905.00",NRENT,S8 7RL
Department of Health,NHS Sheffield CCG,31/03/2021,C&M-PMS Prem Water Rates,PRC DELEGATED CO-COMMISSIONING,MEADOWHEAD GROUP PRACTICE,35928109,190.00,RAMWP,S8 7RL
Department of Health,NHS Sheffield CCG,31/03/2021,C&M-PMS QOF Aspiration,PRC DELEGATED CO-COMMISSIONING,MEADOWHEAD GROUP PRACTICE,35928109,"8,381.02",QUASPP,S8 7RL
Department of Health,NHS Sheffield CCG,31/03/2021,C&M-GMS Cost of Drugs -Prescribing,LOCAL ENHANCED SERVICES,MEDICAL CENTRE CRYSTAL PEAKS,36162624,473.02,DRGP,S20 7HZ
Department of Health,NHS Sheffield CCG,31/03/2021,C&M-GMS DES Minor Surgery,PRC DELEGATED CO-COMMISSIONING,MEDICAL CENTRE CRYSTAL PEAKS,36162624,"3,245.00",DEMSUG,S20 7HZ
Department of Health,NHS Sheffield CCG,31/03/2021,C&M-GMS Global Sum,PRC DELEGATED CO-COMMISSIONING,MEDICAL CENTRE CRYSTAL PEAKS,36162624,"49,449.40",GSUMG,S20 7HZ
Department of Health,NHS Sheffield CCG,31/03/2021,C&M-GMS PCN DES Participation,PRC DELEGATED CO-COMMISSIONING,MEDICAL CENTRE CRYSTAL PEAKS,36162624,"1,948.24",PARTIG,S20 7HZ
Department of Health,NHS Sheffield CCG,31/03/2021,C&M-GMS PCO Locum Sickness,PRC DELEGATED CO-COMMISSIONING,MEDICAL CENTRE CRYSTAL PEAKS,36162624,"12,576.62",LOCSIG,S20 7HZ
Department of Health,NHS Sheffield CCG,31/03/2021,C&M-GMS Prem Notional Rent,PRC DELEGATED CO-COMMISSIONING,MEDICAL CENTRE CRYSTAL PEAKS,36162624,270.00,NRENT,S20 7HZ
Department of Health,NHS Sheffield CCG,31/03/2021,C&M-GMS Prof Fees Prescribing,PRC DELEGATED CO-COMMISSIONING,MEDICAL CENTRE CRYSTAL PEAKS,36162624,226.87,DRGPPF,S20 7HZ
Department of Health,NHS Sheffield CCG,31/03/2021,C&M-GMS QOF Aspiration,PRC DELEGATED CO-COMMISSIONING,MEDICAL CENTRE CRYSTAL PEAKS,36162624,"6,365.03",QUASPG,S20 7HZ
Department of Health,NHS Sheffield CCG,31/03/2021,C&M-GMS Cost of Drugs -Prescribing,LOCAL ENHANCED SERVICES,MILL ROAD SURGERY SHEFFIELD,36162631,"1,889.42",DRGP,S35 9XQ
Department of Health,NHS Sheffield CCG,31/03/2021,C&M-GMS DES Minor Surgery,PRC DELEGATED CO-COMMISSIONING,MILL ROAD SURGERY SHEFFIELD,36162631,"1,425.00",DEMSUG,S35 9XQ
Department of Health,NHS Sheffield CCG,31/03/2021,C&M-GMS Global Sum,PRC DELEGATED CO-COMMISSIONING,MILL ROAD SURGERY SHEFFIELD,36162631,"42,373.03",GSUMG,S35 9XQ
Department of Health,NHS Sheffield CCG,31/03/2021,C&M-GMS PCN DES Participation,PRC DELEGATED CO-COMMISSIONING,MILL ROAD SURGERY SHEFFIELD,36162631,"1,669.50",PARTIG,S35 9XQ
Department of Health,NHS Sheffield CCG,31/03/2021,C&M-GMS Prem Notional Rent,PRC DELEGATED CO-COMMISSIONING,MILL ROAD SURGERY SHEFFIELD,36162631,"4,593.33",NRENT,S35 9XQ
Department of Health,NHS Sheffield CCG,31/03/2021,C&M-GMS Prof Fees Prescribing,PRC DELEGATED CO-COMMISSIONING,MILL ROAD SURGERY SHEFFIELD,36162631,443.06,DRGPPF,S35 9XQ
Department of Health,NHS Sheffield CCG,31/03/2021,C&M-GMS QOF Aspiration,PRC DELEGATED CO-COMMISSIONING,MILL ROAD SURGERY SHEFFIELD,36162631,"5,109.19",QUASPG,S35 9XQ
Department of Health,NHS Sheffield CCG,31/03/2021,Clinical&Medical-Independent Sector,Mental Health Services - S117 Mental Health,MOORVILLE RESIDENTIAL,35845050,"29,616.47",,S10 5FA
Department of Health,NHS Sheffield CCG,31/03/2021,Cont Care-Learning Disab(<65),CHC ADULT FULLY FUNDED,MOORVILLE RESIDENTIAL,35845050,"9,423.38",https://nww.einvoice-prod.sbs.nhs.uk:8179/invoicepdf/b97d5348-28a0-50de-a6b1-9856725b0207,S10 5FA
Department of Health,NHS Sheffield CCG,31/03/2021,Cont Care-Learning Disab(<65),CHC ADULT JOINT FUNDED,MOORVILLE RESIDENTIAL,35845050,"4,333.18",,S10 5FA
Department of Health,NHS Sheffield CCG,31/03/2021,Cont Care-Mental Health (<65),CHC ADULT JOINT FUNDED,MOORVILLE RESIDENTIAL,35845050,506.23,,S10 5FA
Department of Health,NHS Sheffield CCG,31/03/2021,C&M-PMS Contract Value,PRC DELEGATED CO-COMMISSIONING,MOSBOROUGH HEALTH CENTRE,35928113,"51,597.24",BABALP,S20 5BQ
Department of Health,NHS Sheffield CCG,31/03/2021,C&M-PMS DES Minor Surgery,PRC DELEGATED CO-COMMISSIONING,MOSBOROUGH HEALTH CENTRE,35928113,"1,280.00",DEMSUP,S20 5BQ
Department of Health,NHS Sheffield CCG,31/03/2021,C&M-PMS Out of Hours Opt Outs,PRC DELEGATED CO-COMMISSIONING,MOSBOROUGH HEALTH CENTRE,35928113,0.70,APMOOH,S20 5BQ
Department of Health,NHS Sheffield CCG,31/03/2021,C&M-PMS PCN DES Participation,PRC DELEGATED CO-COMMISSIONING,MOSBOROUGH HEALTH CENTRE,35928113,"1,911.97",PARTIP,S20 5BQ
Department of Health,NHS Sheffield CCG,31/03/2021,C&M-PMS Prem Notional Rent,PRC DELEGATED CO-COMMISSIONING,MOSBOROUGH HEALTH CENTRE,35928113,"4,541.67",NRENT,S20 5BQ
Department of Health,NHS Sheffield CCG,31/03/2021,C&M-PMS QOF Aspiration,PRC DELEGATED CO-COMMISSIONING,MOSBOROUGH HEALTH CENTRE,35928113,"5,629.90",QUASPP,S20 5BQ
Department of Health,NHS Sheffield CCG,31/03/2021,Computer Software/License,PRIMARY CARE IT,MY DEMENTIA IMPROVEMENT NETWORK LTD,36097552,"21,147.00","RITA Standard Annual Software Licence, Support & Maintenance SKU MIN-020 RITA Standard Annual Software Licence, Support & Maintenance - Year 1 Quote reference 20210205-110320340",WA14 5GJ
Department of Health,NHS Sheffield CCG,31/03/2021,Computer Software/License,PRIMARY CARE IT,MY DEMENTIA IMPROVEMENT NETWORK LTD,36097552,"21,147.00","RITA Standard Annual Software Licence, Support & Maintenance SKU MIN-020 RITA Standard Annual Software Licence, Support & Maintenance - Year 2 Quote reference 20210205-110320340",WA14 5GJ
Department of Health,NHS Sheffield CCG,31/03/2021,Computer Software/License,PRIMARY CARE IT,MY DEMENTIA IMPROVEMENT NETWORK LTD,36097552,"21,147.00","RITA Standard Annual Software Licence, Support & Maintenance SKU MIN-020 RITA Standard Annual Software Licence, Support & Maintenance - Year 3 Quote reference 20210205-110320340",WA14 5GJ
Department of Health,NHS Sheffield CCG,31/03/2021,Computer Software/License,PRIMARY CARE IT,MY DEMENTIA IMPROVEMENT NETWORK LTD,36097552,"12,688.20",,WA14 5GJ
Department of Health,NHS Sheffield CCG,31/03/2021,C&M-PMS Contract Value,PRC DELEGATED CO-COMMISSIONING,NETHERGREEN SURGERY,35928115,"65,069.44",BABALP,S11 7EJ
Department of Health,NHS Sheffield CCG,31/03/2021,C&M-PMS DES Minor Surgery,PRC DELEGATED CO-COMMISSIONING,NETHERGREEN SURGERY,35928115,"2,740.00",DEMSUP,S11 7EJ
Department of Health,NHS Sheffield CCG,31/03/2021,C&M-PMS Funding Differential Review,PRC DELEGATED CO-COMMISSIONING,NETHERGREEN SURGERY,35928115,"1,369.87",ZFUNFP,S11 7EJ
Department of Health,NHS Sheffield CCG,31/03/2021,C&M-PMS Out of Hours Opt Outs,PRC DELEGATED CO-COMMISSIONING,NETHERGREEN SURGERY,35928115,16.42,APMOOH,S11 7EJ
Department of Health,NHS Sheffield CCG,31/03/2021,C&M-PMS PCN DES Participation,PRC DELEGATED CO-COMMISSIONING,NETHERGREEN SURGERY,35928115,"2,404.52",PARTIP,S11 7EJ
Department of Health,NHS Sheffield CCG,31/03/2021,C&M-PMS Prem Cost Rent,PRC DELEGATED CO-COMMISSIONING,NETHERGREEN SURGERY,35928115,"5,057.33",COST,S11 7EJ
Department of Health,NHS Sheffield CCG,31/03/2021,C&M-PMS QOF Aspiration,PRC DELEGATED CO-COMMISSIONING,NETHERGREEN SURGERY,35928115,"5,887.42",QUASPP,S11 7EJ
Department of Health,NHS Sheffield CCG,31/03/2021,Cont Care-Physical Disab (<65),CHC ADULT FULLY FUNDED,NEVILLE HEALTH CARE LTD,35957549,"32,636.06",CHC SCHEDULE MARCH 2021 - Neville Court Care Home,S70 3HF
Department of Health,NHS Sheffield CCG,31/03/2021,Computer Software/License,PRIMARY CARE IT,NHS BARNSLEY CCG,36215620,"25,495.00",RECHARGE - CLINICAL OTHER 52161002,WF3 1WE
Department of Health,NHS Sheffield CCG,31/03/2021,FM Computer Contracts,PRIMARY CARE IT,NHS BASSETLAW CCG,36222885,"25,124.95",RECHARGE - CCGS 52161008,WF3 1WE
Department of Health,NHS Sheffield CCG,31/03/2021,Recharge : Received,PATIENT TRANSPORT,NHS DONCASTER CCG,35858403,"54,469.65",RECHARGE - HEALTH AUTHORITIES 52161009,WF3 1WE
Department of Health,NHS Sheffield CCG,31/03/2021,Seconded-Basic Sal-Staff fm oth org,CLINICAL LEADS,NHS DONCASTER CCG,35997418,"38,890.00",BASIC SALARY RECHARGES TO FROM NHS,WF3 1WE
Department of Health,NHS Sheffield CCG,31/03/2021,Seconded-Basic Sal-Staff fm oth org,CLINICAL LEADS,NHS DONCASTER CCG,35997418,"45,753.00",,WF3 1WE
Department of Health,NHS Sheffield CCG,31/03/2021,Seconded-Employer's NHI Costs,CLINICAL LEADS,NHS DONCASTER CCG,35997418,"9,255.00",,WF3 1WE
Department of Health,NHS Sheffield CCG,31/03/2021,Participation Fees,BEREAVEMENT SERVICE,NHS DONCASTER CCG,36132584,"60,000.00",COMPUTER SOFTWARE,WF3 1WE
Department of Health,NHS Sheffield CCG,31/03/2021,Clinical&Medical-Commercial Sector,PATIENT TRANSPORT,NHS DONCASTER CCG,36215538,"37,682.61",RECHARGE PROVIDED,WF3 1WE
Department of Health,NHS Sheffield CCG,31/03/2021,Seconded-Basic Sal-Staff fm oth org,CLINICAL LEADS,NHS ENGLAND,36073980,"25,964.84",MISC INCOME - OTHER OPERATING REV NHS,WF3 1WE
Department of Health,NHS Sheffield CCG,31/03/2021,Seconded-Employer's NHI Costs,CLINICAL LEADS,NHS ENGLAND,36073980,"3,179.08",,WF3 1WE
Department of Health,NHS Sheffield CCG,31/03/2021,Seconded-Basic Sal-Staff fm oth org,BEREAVEMENT SERVICE,NHS ENGLAND,36222773,"34,203.02",SALARY COSTS RECHARGE,WF3 1WE
Department of Health,NHS Sheffield CCG,31/03/2021,Seconded-Employer's NHI Costs,BEREAVEMENT SERVICE,NHS ENGLAND,36222773,"3,555.45",,WF3 1WE
Department of Health,NHS Sheffield CCG,31/03/2021,Computer Software/License,COMMISSIONING - NON ACUTE,NHS GREATER HUDDERSFIELD CCG,36090487,"7,337.00",,WF3 1WE
Department of Health,NHS Sheffield CCG,31/03/2021,Computer Software/License,PRIMARY CARE IT,NHS GREATER HUDDERSFIELD CCG,36090487,"58,052.00",,WF3 1WE
Department of Health,NHS Sheffield CCG,31/03/2021,Other Gen Supplies & Srv,COMMISSIONING,NHS GREATER HUDDERSFIELD CCG,36090487,"35,354.00",CCG INCOME - NON CONTRACT 44811015,WF3 1WE
Department of Health,NHS Sheffield CCG,31/03/2021,Charges from CSU,BUSINESS INFORMATICS,NHS NORTH OF ENGLAND CSU,36205839,"27,375.92",DSCRO and Data Management ServicesFEB 21 NECS-3037-2180,WF3 1WE
Department of Health,NHS Sheffield CCG,31/03/2021,Service Charge,ESTATES AND FACILITIES,NHS PROPERTY SERVICES LTD,35983944,"31,719.30",,EC2V 7NG
Department of Health,NHS Sheffield CCG,31/03/2021,Service Charge,RECHARGES NHS PROPERTY SERVICES LTD,NHS PROPERTY SERVICES LTD,35983944,"10,720.23",https://nww.einvoice-prod.sbs.nhs.uk:8179/invoicepdf/4c0cf6f4-a34d-5e28-b892-7b6879a05c75,EC2V 7NG
Department of Health,NHS Sheffield CCG,31/03/2021,Rent,CONTINUING HEALTHCARE ASSESSMENT & SUPPORT,NHS PROPERTY SERVICES LTD,35997370,"71,408.25",https://nww.einvoice-prod.sbs.nhs.uk:8179/invoicepdf/ec8ae4a8-6787-5d60-90e6-3f3a1112c245,EC2V 7NG
Department of Health,NHS Sheffield CCG,31/03/2021,Rent,CONTINUING HEALTHCARE ASSESSMENT & SUPPORT,NHS PROPERTY SERVICES LTD,35997374,"138,910.77",https://nww.einvoice-prod.sbs.nhs.uk:8179/invoicepdf/5bc51512-616e-5fb2-8610-5f63df699d0b,EC2V 7NG
Department of Health,NHS Sheffield CCG,31/03/2021,Rent,CONTINUING HEALTHCARE ASSESSMENT & SUPPORT,NHS PROPERTY SERVICES LTD,35997378,"58,192.73",https://nww.einvoice-prod.sbs.nhs.uk:8179/invoicepdf/f98d8bcf-6e09-5601-8f81-167f5a7f24c0,EC2V 7NG
Department of Health,NHS Sheffield CCG,31/03/2021,Service Charge,ESTATES AND FACILITIES,NHS PROPERTY SERVICES LTD,35997384,"71,412.48",https://nww.einvoice-prod.sbs.nhs.uk:8179/invoicepdf/34e7da42-0a2e-5640-bc76-39532c5ec776,EC2V 7NG
Department of Health,NHS Sheffield CCG,31/03/2021,Service Charge,RECHARGES NHS PROPERTY SERVICES LTD,NHS PROPERTY SERVICES LTD,35997384,"24,135.39",,EC2V 7NG
Department of Health,NHS Sheffield CCG,31/03/2021,Rent,ESTATES AND FACILITIES,NHS PROPERTY SERVICES LTD,35997387,"66,616.82",https://nww.einvoice-prod.sbs.nhs.uk:8179/invoicepdf/cdbe4c58-9d60-5f55-b729-9ab6baefbe6e,EC2V 7NG
Department of Health,NHS Sheffield CCG,31/03/2021,Rent,RECHARGES NHS PROPERTY SERVICES LTD,NHS PROPERTY SERVICES LTD,35997387,"22,514.59",,EC2V 7NG
Department of Health,NHS Sheffield CCG,31/03/2021,Rent,ESTATES AND FACILITIES,NHS PROPERTY SERVICES LTD,35997391,"107,115.21",,EC2V 7NG
Department of Health,NHS Sheffield CCG,31/03/2021,Rent,RECHARGES NHS PROPERTY SERVICES LTD,NHS PROPERTY SERVICES LTD,35997391,"36,201.90",https://nww.einvoice-prod.sbs.nhs.uk:8179/invoicepdf/0d692fb2-76c2-5cb6-a400-c15ef5eb1648,EC2V 7NG
Department of Health,NHS Sheffield CCG,31/03/2021,Service Charge,ESTATES AND FACILITIES,NHS PROPERTY SERVICES LTD,35997391,"36,104.65",,EC2V 7NG
Department of Health,NHS Sheffield CCG,31/03/2021,Service Charge,RECHARGES NHS PROPERTY SERVICES LTD,NHS PROPERTY SERVICES LTD,35997391,"12,202.35",,EC2V 7NG
Department of Health,NHS Sheffield CCG,31/03/2021,Participation Fees,BEREAVEMENT SERVICE,NHS ROTHERHAM CCG,36189799,"66,276.00",CCG INCOME - NON CONTRACT 44811015,WF3 1WE
Department of Health,NHS Sheffield CCG,31/03/2021,C&M-GMS Cost of Drugs -Prescribing,LOCAL ENHANCED SERVICES,NORFOLK PARK HEALTH CENTRE,36162636,363.66,DRGP,S2 3TA
Department of Health,NHS Sheffield CCG,31/03/2021,C&M-GMS DES Minor Surgery,PRC DELEGATED CO-COMMISSIONING,NORFOLK PARK HEALTH CENTRE,36162636,950.00,DEMSUG,S2 3TA
Department of Health,NHS Sheffield CCG,31/03/2021,C&M-GMS Global Sum,PRC DELEGATED CO-COMMISSIONING,NORFOLK PARK HEALTH CENTRE,36162636,"42,300.43",GSUMG,S2 3TA
Department of Health,NHS Sheffield CCG,31/03/2021,C&M-GMS PCN DES Participation,PRC DELEGATED CO-COMMISSIONING,NORFOLK PARK HEALTH CENTRE,36162636,"1,603.19",PARTIG,S2 3TA
Department of Health,NHS Sheffield CCG,31/03/2021,C&M-GMS Prem Healthcentre Rent,PRC DELEGATED CO-COMMISSIONING,NORFOLK PARK HEALTH CENTRE,36162636,"25,249.98",HEALTH,S2 3TA
Department of Health,NHS Sheffield CCG,31/03/2021,C&M-GMS Prof Fees Prescribing,PRC DELEGATED CO-COMMISSIONING,NORFOLK PARK HEALTH CENTRE,36162636,104.09,DRGPPF,S2 3TA
Department of Health,NHS Sheffield CCG,31/03/2021,C&M-GMS QOF Aspiration,PRC DELEGATED CO-COMMISSIONING,NORFOLK PARK HEALTH CENTRE,36162636,"3,959.66",QUASPG,S2 3TA
Department of Health,NHS Sheffield CCG,31/03/2021,C&M-GMS Cost of Drugs -Prescribing,LOCAL ENHANCED SERVICES,NORWOOD MEDICAL CENTRE SHEFFIELD,36162639,291.97,DRGP,S5 7HD
Department of Health,NHS Sheffield CCG,31/03/2021,C&M-GMS DES Learn Dsblty Hlth Chk,PRC DELEGATED CO-COMMISSIONING,NORWOOD MEDICAL CENTRE SHEFFIELD,36162639,"2,940.00",LEARNG,S5 7HD
Department of Health,NHS Sheffield CCG,31/03/2021,C&M-GMS DES Minor Surgery,PRC DELEGATED CO-COMMISSIONING,NORWOOD MEDICAL CENTRE SHEFFIELD,36162639,"1,800.00",DEMSUG,S5 7HD
Department of Health,NHS Sheffield CCG,31/03/2021,C&M-GMS Global Sum,PRC DELEGATED CO-COMMISSIONING,NORWOOD MEDICAL CENTRE SHEFFIELD,36162639,"67,306.08",GSUMG,S5 7HD
Department of Health,NHS Sheffield CCG,31/03/2021,C&M-GMS PCN DES Participation,PRC DELEGATED CO-COMMISSIONING,NORWOOD MEDICAL CENTRE SHEFFIELD,36162639,"2,690.13",PARTIG,S5 7HD
Department of Health,NHS Sheffield CCG,31/03/2021,C&M-GMS Prem Notional Rent,PRC DELEGATED CO-COMMISSIONING,NORWOOD MEDICAL CENTRE SHEFFIELD,36162639,"5,187.50",NRENT,S5 7HD
Department of Health,NHS Sheffield CCG,31/03/2021,C&M-GMS Prof Fees Prescribing,PRC DELEGATED CO-COMMISSIONING,NORWOOD MEDICAL CENTRE SHEFFIELD,36162639,104.10,DRGPPF,S5 7HD
Department of Health,NHS Sheffield CCG,31/03/2021,C&M-GMS QOF Aspiration,PRC DELEGATED CO-COMMISSIONING,NORWOOD MEDICAL CENTRE SHEFFIELD,36162639,"8,207.51",QUASPG,S5 7HD
Department of Health,NHS Sheffield CCG,31/03/2021,Clinical&Medical-Independent Sector,ACUTE COMMISSIONING,ONEHEALTH GROUP,35858339,"61,175.30",https://nww.einvoice-prod.sbs.nhs.uk:8179/invoicepdf/7fb76b48-00c2-5fcc-ab13-42e9790455a6,S11 8UX
Department of Health,NHS Sheffield CCG,31/03/2021,Clinical&Medical-Independent Sector,ACUTE COMMISSIONING,ONEHEALTH GROUP,36205820,"53,235.98",https://nww.einvoice-prod.sbs.nhs.uk:8179/invoicepdf/ec25b0fe-08c1-5950-a6fb-a2b817ccd22e,S11 8UX
Department of Health,NHS Sheffield CCG,31/03/2021,C&M-GMS Cost of Drugs -Dispensing,LOCAL ENHANCED SERVICES,OUGHTIBRIDGE SURGERY,36162642,"32,242.69","DRGD,DRGADV",S35 0FW
Department of Health,NHS Sheffield CCG,31/03/2021,C&M-GMS DES Minor Surgery,PRC DELEGATED CO-COMMISSIONING,OUGHTIBRIDGE SURGERY,36162642,655.00,DEMSUG,S35 0FW
Department of Health,NHS Sheffield CCG,31/03/2021,C&M-GMS Global Sum,PRC DELEGATED CO-COMMISSIONING,OUGHTIBRIDGE SURGERY,36162642,"44,780.91",GSUMG,S35 0FW
Department of Health,NHS Sheffield CCG,31/03/2021,C&M-GMS PCN DES Participation,PRC DELEGATED CO-COMMISSIONING,OUGHTIBRIDGE SURGERY,36162642,"1,785.92",PARTIG,S35 0FW
Department of Health,NHS Sheffield CCG,31/03/2021,C&M-GMS Prem Notional Rent,PRC DELEGATED CO-COMMISSIONING,OUGHTIBRIDGE SURGERY,36162642,"5,279.59",NRENT,S35 0FW
Department of Health,NHS Sheffield CCG,31/03/2021,C&M-GMS Prof Fees Dispensing,PRC DELEGATED CO-COMMISSIONING,OUGHTIBRIDGE SURGERY,36162642,"5,051.97",DRGDPF,S35 0FW
Department of Health,NHS Sheffield CCG,31/03/2021,C&M-GMS PrscrptnChrgsColl&RmttdbyGP,LOCAL ENHANCED SERVICES,OUGHTIBRIDGE SURGERY,36162642,521.55,DRGPR,S35 0FW
Department of Health,NHS Sheffield CCG,31/03/2021,C&M-GMS QOF Aspiration,PRC DELEGATED CO-COMMISSIONING,OUGHTIBRIDGE SURGERY,36162642,"4,282.40",QUASPG,S35 0FW
Department of Health,NHS Sheffield CCG,31/03/2021,C&M-PMS Contract Value,PRC DELEGATED CO-COMMISSIONING,OWLTHORPE MEDICAL CENTRE,35928117,"34,250.90",BABALP,S20 6PD
Department of Health,NHS Sheffield CCG,31/03/2021,C&M-PMS DES Minor Surgery,PRC DELEGATED CO-COMMISSIONING,OWLTHORPE MEDICAL CENTRE,35928117,470.00,DEMSUP,S20 6PD
Department of Health,NHS Sheffield CCG,31/03/2021,C&M-PMS Out of Hours Opt Outs,PRC DELEGATED CO-COMMISSIONING,OWLTHORPE MEDICAL CENTRE,35928117,51.80,APMOOH,S20 6PD
Department of Health,NHS Sheffield CCG,31/03/2021,C&M-PMS PCN DES Participation,PRC DELEGATED CO-COMMISSIONING,OWLTHORPE MEDICAL CENTRE,35928117,"1,267.74",PARTIP,S20 6PD
Department of Health,NHS Sheffield CCG,31/03/2021,C&M-PMS Prem Actual Rent,PRC DELEGATED CO-COMMISSIONING,OWLTHORPE MEDICAL CENTRE,35928117,"7,539.58",RENT,S20 6PD
Department of Health,NHS Sheffield CCG,31/03/2021,C&M-PMS QOF Aspiration,PRC DELEGATED CO-COMMISSIONING,OWLTHORPE MEDICAL CENTRE,35928117,"3,728.91",QUASPP,S20 6PD
Department of Health,NHS Sheffield CCG,31/03/2021,C&M-PMS Contract Value,PRC DELEGATED CO-COMMISSIONING,PAGE HALL MEDICAL CENTRE,35928119,"59,145.00",BABALP,S4 8GB
Department of Health,NHS Sheffield CCG,31/03/2021,C&M-PMS DES Minor Surgery,PRC DELEGATED CO-COMMISSIONING,PAGE HALL MEDICAL CENTRE,35928119,400.00,DEMSUP,S4 8GB
Department of Health,NHS Sheffield CCG,31/03/2021,C&M-PMS Funding Differential Review,PRC DELEGATED CO-COMMISSIONING,PAGE HALL MEDICAL CENTRE,35928119,"1,161.37",ZFUNFP,S4 8GB
Department of Health,NHS Sheffield CCG,31/03/2021,C&M-PMS Out of Hours Opt Outs,PRC DELEGATED CO-COMMISSIONING,PAGE HALL MEDICAL CENTRE,35928119,32.33,APMOOH,S4 8GB
Department of Health,NHS Sheffield CCG,31/03/2021,C&M-PMS PCN DES Participation,PRC DELEGATED CO-COMMISSIONING,PAGE HALL MEDICAL CENTRE,35928119,"2,194.23",PARTIP,S4 8GB
Department of Health,NHS Sheffield CCG,31/03/2021,C&M-PMS Prem Notional Rent,PRC DELEGATED CO-COMMISSIONING,PAGE HALL MEDICAL CENTRE,35928119,"4,833.33",NRENT,S4 8GB
Department of Health,NHS Sheffield CCG,31/03/2021,C&M-PMS Prem Water Rates,PRC DELEGATED CO-COMMISSIONING,PAGE HALL MEDICAL CENTRE,35928119,147.68,RAMWP,S4 8GB
Department of Health,NHS Sheffield CCG,31/03/2021,C&M-PMS QOF Aspiration,PRC DELEGATED CO-COMMISSIONING,PAGE HALL MEDICAL CENTRE,35928119,"3,909.14",QUASPP,S4 8GB
Department of Health,NHS Sheffield CCG,31/03/2021,C&M-PMS Contract Value,PRC DELEGATED CO-COMMISSIONING,PORTER BROOK MEDICAL CENTRE,35928120,"-8,907.81",BABALP,S11 8HN
Department of Health,NHS Sheffield CCG,31/03/2021,C&M-PMS GP Statutory Levy,PRC DELEGATED CO-COMMISSIONING,PORTER BROOK MEDICAL CENTRE,35928120,"-1,009.61",STATL,S11 8HN
Department of Health,NHS Sheffield CCG,31/03/2021,C&M-PMS Out of Hours Opt Outs,PRC DELEGATED CO-COMMISSIONING,PORTER BROOK MEDICAL CENTRE,35928120,"-8,057.86",APMOOH,S11 8HN
Department of Health,NHS Sheffield CCG,31/03/2021,C&M-PMS PCN DES Participation,PRC DELEGATED CO-COMMISSIONING,PORTER BROOK MEDICAL CENTRE,35928120,"-3,182.41",PARTIP,S11 8HN
Department of Health,NHS Sheffield CCG,31/03/2021,C&M-PMS Contract Value,PRC DELEGATED CO-COMMISSIONING,PORTER BROOK MEDICAL CENTRE,35928121,"169,776.61",BABALP,S11 8HN
Department of Health,NHS Sheffield CCG,31/03/2021,C&M-PMS DES Minor Surgery,PRC DELEGATED CO-COMMISSIONING,PORTER BROOK MEDICAL CENTRE,35928121,"6,300.00",DEMSUP,S11 8HN
Department of Health,NHS Sheffield CCG,31/03/2021,C&M-PMS Funding Differential Review,PRC DELEGATED CO-COMMISSIONING,PORTER BROOK MEDICAL CENTRE,35928121,"3,636.27",ZFUNFP,S11 8HN
Department of Health,NHS Sheffield CCG,31/03/2021,C&M-PMS Out of Hours Opt Outs,PRC DELEGATED CO-COMMISSIONING,PORTER BROOK MEDICAL CENTRE,35928121,423.86,APMOOH,S11 8HN
Department of Health,NHS Sheffield CCG,31/03/2021,C&M-PMS PCN DES Participation,PRC DELEGATED CO-COMMISSIONING,PORTER BROOK MEDICAL CENTRE,35928121,"6,370.24",PARTIP,S11 8HN
Department of Health,NHS Sheffield CCG,31/03/2021,C&M-PMS Prem Actual Rent,PRC DELEGATED CO-COMMISSIONING,PORTER BROOK MEDICAL CENTRE,35928121,"1,666.67",RENT,S11 8HN
Department of Health,NHS Sheffield CCG,31/03/2021,C&M-PMS Prem Notional Rent,PRC DELEGATED CO-COMMISSIONING,PORTER BROOK MEDICAL CENTRE,35928121,"9,666.67",NRENT,S11 8HN
Department of Health,NHS Sheffield CCG,31/03/2021,C&M-PMS QOF Aspiration,PRC DELEGATED CO-COMMISSIONING,PORTER BROOK MEDICAL CENTRE,35928121,"10,115.59",QUASPP,S11 8HN
Department of Health,NHS Sheffield CCG,31/03/2021,C&M-PMS Contract Value,PRC DELEGATED CO-COMMISSIONING,PORTER BROOK MEDICAL CENTRE,35965915,"48,029.33",Income protection 2020-21 Porter Brook MC,S11 8HN
Department of Health,NHS Sheffield CCG,31/03/2021,C&M-GMS LES Equitable Funding,LOCAL ENHANCED SERVICES,PORTER BROOK MEDICAL CENTRE,36208712,"26,869.00",EQUITABLEFUNDQ4 202021,S11 8HN
Department of Health,NHS Sheffield CCG,31/03/2021,Clinical&Medical-Commercial Sector,PATIENT TRANSPORT,PREMIER CARE DIRECT LTD,35858362,"112,480.55",https://nww.einvoice-prod.sbs.nhs.uk:8179/invoicepdf/6f217bac-1029-5a90-bf44-7ed43160ad05,DN4 5NU
Department of Health,NHS Sheffield CCG,31/03/2021,Clinical&Medical-Commercial Sector,PATIENT TRANSPORT,PREMIER CARE DIRECT LTD,36189773,"112,480.55",https://nww.einvoice-prod.sbs.nhs.uk:8179/invoicepdf/3713aba0-f706-5199-9ff6-836e27c5913c,DN4 5NU
Department of Health,NHS Sheffield CCG,31/03/2021,C&M-GMS PCN DES Clin Pharmacist,PRC DELEGATED CO-COMMISSIONING,PRIMARY CARE SHEFFIELD LTD,35845102,"15,033.97",,S9 4EU
Department of Health,NHS Sheffield CCG,31/03/2021,C&M-GMS PCN DES Physiotherapist,PRC DELEGATED CO-COMMISSIONING,PRIMARY CARE SHEFFIELD LTD,35845102,"9,019.17",,S9 4EU
Department of Health,NHS Sheffield CCG,31/03/2021,C&M-GMS PCN DES Soc Prescribing,PRC DELEGATED CO-COMMISSIONING,PRIMARY CARE SHEFFIELD LTD,35845102,"2,671.88",,S9 4EU
Department of Health,NHS Sheffield CCG,31/03/2021,C&M- PCN DES CARE COORDINATOR,PRC DELEGATED CO-COMMISSIONING,PRIMARY CARE SHEFFIELD LTD,35845173,"16,253.73",,S9 4EU
Department of Health,NHS Sheffield CCG,31/03/2021,C&M-GMS C&M-APMS PCN DES Physician Assoc,PRC DELEGATED CO-COMMISSIONING,PRIMARY CARE SHEFFIELD LTD,35845173,"4,266.35",,S9 4EU
Department of Health,NHS Sheffield CCG,31/03/2021,C&M-GMS PCN DES Clin Pharmacist,PRC DELEGATED CO-COMMISSIONING,PRIMARY CARE SHEFFIELD LTD,35845173,"10,326.78",,S9 4EU
Department of Health,NHS Sheffield CCG,31/03/2021,C&M-GMS PCN DES Physiotherapist,PRC DELEGATED CO-COMMISSIONING,PRIMARY CARE SHEFFIELD LTD,35845173,"4,639.17",,S9 4EU
Department of Health,NHS Sheffield CCG,31/03/2021,C&M-GMS PCN DES Soc Prescribing,PRC DELEGATED CO-COMMISSIONING,PRIMARY CARE SHEFFIELD LTD,35845173,"5,258.70",,S9 4EU
Department of Health,NHS Sheffield CCG,31/03/2021,Clinical&Medical-Independent Sector,MENTAL HEALTH SERVICES - OTHER,PRIMARY CARE SHEFFIELD LTD,35896895,"30,583.50",https://nww.einvoice-prod.sbs.nhs.uk:8179/invoicepdf/3bc64761-2eef-57a9-95be-1f25fc54c06a,S12 3GH
Department of Health,NHS Sheffield CCG,31/03/2021,C&M-APMS DES Extended Hours Access,GP FORWARD VIEW,PRIMARY CARE SHEFFIELD LTD,35896900,"302,608.33",https://nww.einvoice-prod.sbs.nhs.uk:8179/invoicepdf/1fab92bb-3cbe-5c8a-8500-8ff1667feabf,S12 3GH
Department of Health,NHS Sheffield CCG,31/03/2021,C&M-GMS LES Basket of Procedures,LOCAL ENHANCED SERVICES,PRIMARY CARE SHEFFIELD LTD,35896904,"53,558.33",https://nww.einvoice-prod.sbs.nhs.uk:8179/invoicepdf/47c46a49-d01f-5292-b775-c54cb6e30470,S12 3GH
Department of Health,NHS Sheffield CCG,31/03/2021,C&M-GMS C&M-APMS PCN DES Physician Assoc,PRC DELEGATED CO-COMMISSIONING,PRIMARY CARE SHEFFIELD LTD,35905121,"4,355.70",,S9 4EU
Department of Health,NHS Sheffield CCG,31/03/2021,C&M-GMS PCN DES Clin Pharmacist,PRC DELEGATED CO-COMMISSIONING,PRIMARY CARE SHEFFIELD LTD,35905121,"7,854.11",,S9 4EU
Department of Health,NHS Sheffield CCG,31/03/2021,C&M-GMS PCN DES Physiotherapist,PRC DELEGATED CO-COMMISSIONING,PRIMARY CARE SHEFFIELD LTD,35905121,"4,639.17",,S9 4EU
Department of Health,NHS Sheffield CCG,31/03/2021,C&M-GMS PCN DES Soc Prescribing,PRC DELEGATED CO-COMMISSIONING,PRIMARY CARE SHEFFIELD LTD,35905121,"4,272.80",,S9 4EU
Department of Health,NHS Sheffield CCG,31/03/2021,C&M-PCN DES PHARMACY TECHNICIANS,PRC DELEGATED CO-COMMISSIONING,PRIMARY CARE SHEFFIELD LTD,35905121,"4,246.68",,S9 4EU
Department of Health,NHS Sheffield CCG,31/03/2021,C&M-APMS DES Immediate&1st Response,LOCAL ENHANCED SERVICES,PRIMARY CARE SHEFFIELD LTD,35946271,"25,200.00",https://nww.einvoice-prod.sbs.nhs.uk:8179/invoicepdf/d3f2b7a8-2877-5a5b-b95e-befa1c9e6e5a,S12 3GH
Department of Health,NHS Sheffield CCG,31/03/2021,C&M-APMS DES Immediate&1st Response,LOCAL ENHANCED SERVICES,PRIMARY CARE SHEFFIELD LTD,35946302,"30,200.00",https://nww.einvoice-prod.sbs.nhs.uk:8179/invoicepdf/46c57a73-ab48-5e9d-8c12-1162d34432db,S12 3GH
Department of Health,NHS Sheffield CCG,31/03/2021,C&M-APMS DES Immediate&1st Response,LOCAL ENHANCED SERVICES,PRIMARY CARE SHEFFIELD LTD,35946403,"25,200.00",,S9 4EU
Department of Health,NHS Sheffield CCG,31/03/2021,C&M-GMS C&M-APMS PCN DES Physician Assoc,PRC DELEGATED CO-COMMISSIONING,PRIMARY CARE SHEFFIELD LTD,35946408,"8,539.18",,S9 4EU
Department of Health,NHS Sheffield CCG,31/03/2021,C&M-GMS PCN DES Clin Pharmacist,PRC DELEGATED CO-COMMISSIONING,PRIMARY CARE SHEFFIELD LTD,35946408,"15,898.44",,S9 4EU
Department of Health,NHS Sheffield CCG,31/03/2021,C&M-GMS PCN DES Physiotherapist,PRC DELEGATED CO-COMMISSIONING,PRIMARY CARE SHEFFIELD LTD,35946408,"5,070.61",,S9 4EU
Department of Health,NHS Sheffield CCG,31/03/2021,C&M-GMS PCN DES Soc Prescribing,PRC DELEGATED CO-COMMISSIONING,PRIMARY CARE SHEFFIELD LTD,35946408,"2,333.33",,S9 4EU
Department of Health,NHS Sheffield CCG,31/03/2021,C&M-GMS PCO Recruitmt & Retn,GP FORWARD VIEW,PRIMARY CARE SHEFFIELD LTD,36051079,"75,000.00",,S9 4EU
Department of Health,NHS Sheffield CCG,31/03/2021,C&M-PMS LES GPWSI Sessions,LOCAL ENHANCED SERVICES,PRIMARY CARE SHEFFIELD LTD,36058358,"45,000.00",,S9 4EU
Department of Health,NHS Sheffield CCG,31/03/2021,C&M- PCN DES CARE COORDINATOR,PRC DELEGATED CO-COMMISSIONING,PRIMARY CARE SHEFFIELD LTD,36150058,"16,253.73",,S9 4EU
Department of Health,NHS Sheffield CCG,31/03/2021,C&M-GMS C&M-APMS PCN DES Physician Assoc,PRC DELEGATED CO-COMMISSIONING,PRIMARY CARE SHEFFIELD LTD,36150058,"4,266.35",,S9 4EU
Department of Health,NHS Sheffield CCG,31/03/2021,C&M-GMS PCN DES Clin Pharmacist,PRC DELEGATED CO-COMMISSIONING,PRIMARY CARE SHEFFIELD LTD,36150058,"10,326.78",,S9 4EU
Department of Health,NHS Sheffield CCG,31/03/2021,C&M-GMS PCN DES Physiotherapist,PRC DELEGATED CO-COMMISSIONING,PRIMARY CARE SHEFFIELD LTD,36150058,"4,639.17",,S9 4EU
Department of Health,NHS Sheffield CCG,31/03/2021,C&M-GMS PCN DES Soc Prescribing,PRC DELEGATED CO-COMMISSIONING,PRIMARY CARE SHEFFIELD LTD,36150058,"5,258.70",,S9 4EU
Department of Health,NHS Sheffield CCG,31/03/2021,C&M-GMS PCN DES Clin Pharmacist,PRC DELEGATED CO-COMMISSIONING,PRIMARY CARE SHEFFIELD LTD,36206097,"17,497.76",,S9 4EU
Department of Health,NHS Sheffield CCG,31/03/2021,C&M-GMS PCN DES Physiotherapist,PRC DELEGATED CO-COMMISSIONING,PRIMARY CARE SHEFFIELD LTD,36206097,"9,484.67",,S9 4EU
Department of Health,NHS Sheffield CCG,31/03/2021,C&M-GMS PCN DES Soc Prescribing,PRC DELEGATED CO-COMMISSIONING,PRIMARY CARE SHEFFIELD LTD,36206097,"2,671.88",,S9 4EU
Department of Health,NHS Sheffield CCG,31/03/2021,C&M-GMS C&M-APMS PCN DES Physician Assoc,PRC DELEGATED CO-COMMISSIONING,PRIMARY CARE SHEFFIELD LTD,36216003,"7,650.96",,S9 4EU
Department of Health,NHS Sheffield CCG,31/03/2021,C&M-GMS PCN DES Clin Pharmacist,PRC DELEGATED CO-COMMISSIONING,PRIMARY CARE SHEFFIELD LTD,36216003,"9,584.52",,S9 4EU
Department of Health,NHS Sheffield CCG,31/03/2021,C&M-GMS PCN DES Physiotherapist,PRC DELEGATED CO-COMMISSIONING,PRIMARY CARE SHEFFIELD LTD,36216003,"4,639.17",,S9 4EU
Department of Health,NHS Sheffield CCG,31/03/2021,C&M-GMS PCN DES Soc Prescribing,PRC DELEGATED CO-COMMISSIONING,PRIMARY CARE SHEFFIELD LTD,36216003,"5,672.00",,S9 4EU
Department of Health,NHS Sheffield CCG,31/03/2021,C&M-PCN DES DIETICIANS,PRC DELEGATED CO-COMMISSIONING,PRIMARY CARE SHEFFIELD LTD,36216003,"4,160.08",,S9 4EU
Department of Health,NHS Sheffield CCG,31/03/2021,C&M-PCN DES HEALTH AND WELLBEING COACH,PRC DELEGATED CO-COMMISSIONING,PRIMARY CARE SHEFFIELD LTD,36216003,"1,660.37",,S9 4EU
Department of Health,NHS Sheffield CCG,31/03/2021,C&M-PCN DES PHARMACY TECHNICIANS,PRC DELEGATED CO-COMMISSIONING,PRIMARY CARE SHEFFIELD LTD,36216003,"2,949.08",,S9 4EU
Department of Health,NHS Sheffield CCG,31/03/2021,C&M-GMS C&M-APMS PCN DES Physician Assoc,PRC DELEGATED CO-COMMISSIONING,PRIMARY CARE SHEFFIELD LTD,36216034,"8,539.18",,S9 4EU
Department of Health,NHS Sheffield CCG,31/03/2021,C&M-GMS PCN DES Clin Pharmacist,PRC DELEGATED CO-COMMISSIONING,PRIMARY CARE SHEFFIELD LTD,36216034,"13,546.38",,S9 4EU
Department of Health,NHS Sheffield CCG,31/03/2021,C&M-GMS PCN DES Physiotherapist,PRC DELEGATED CO-COMMISSIONING,PRIMARY CARE SHEFFIELD LTD,36216034,"5,070.61",,S9 4EU
Department of Health,NHS Sheffield CCG,31/03/2021,C&M-GMS PCN DES Soc Prescribing,PRC DELEGATED CO-COMMISSIONING,PRIMARY CARE SHEFFIELD LTD,36216034,"2,333.33",,S9 4EU
Department of Health,NHS Sheffield CCG,31/03/2021,C&M-OES Childrens Schemes,LOCAL ENHANCED SERVICES,PRIMARY EYECARE SERVICES LTD,35946407,425.00,,EC1R 0DG
Department of Health,NHS Sheffield CCG,31/03/2021,C&M-OES Glaucoma,LOCAL ENHANCED SERVICES,PRIMARY EYECARE SERVICES LTD,35946407,"1,425.00",,EC1R 0DG
Department of Health,NHS Sheffield CCG,31/03/2021,C&M-OES Intra-ocular Ocular Hypertn,LOCAL ENHANCED SERVICES,PRIMARY EYECARE SERVICES LTD,35946407,240.00,,EC1R 0DG
Department of Health,NHS Sheffield CCG,31/03/2021,C&M-OES PEARS,LOCAL ENHANCED SERVICES,PRIMARY EYECARE SERVICES LTD,35946407,"24,329.00",,EC1R 0DG
Department of Health,NHS Sheffield CCG,31/03/2021,Cont Care-Funded Nursing Care Allow,FUNDED NURSING CARE,PRIORY GROUP LTD,36123647,"28,638.90",FNC SCHEDULE MARCH 2021 - Richmond Heights Care Home (The Priory Group),DL2 1TS
Department of Health,NHS Sheffield CCG,31/03/2021,C&M-PMS Contract Value,PRC DELEGATED CO-COMMISSIONING,RICHMOND MEDICAL CENTRE,35928123,"69,855.84",BABALP,S13 8NA
Department of Health,NHS Sheffield CCG,31/03/2021,C&M-PMS DES Minor Surgery,PRC DELEGATED CO-COMMISSIONING,RICHMOND MEDICAL CENTRE,35928123,"2,150.00",DEMSUP,S13 8NA
Department of Health,NHS Sheffield CCG,31/03/2021,C&M-PMS PCN DES Participation,PRC DELEGATED CO-COMMISSIONING,RICHMOND MEDICAL CENTRE,35928123,"2,559.14",PARTIP,S13 8NA
Department of Health,NHS Sheffield CCG,31/03/2021,C&M-PMS Prem Notional Rent,PRC DELEGATED CO-COMMISSIONING,RICHMOND MEDICAL CENTRE,35928123,"4,731.00",NRENT,S13 8NA
Department of Health,NHS Sheffield CCG,31/03/2021,C&M-PMS QOF Aspiration,PRC DELEGATED CO-COMMISSIONING,RICHMOND MEDICAL CENTRE,35928123,"7,878.95",QUASPP,S13 8NA
Department of Health,NHS Sheffield CCG,31/03/2021,Cont Care-Physical Disab (<65),CHC ADULT FULLY FUNDED,ROSEBERRY CARE CENTRES,35957647,"32,173.98",CHC SCHEDULE MARCH 2021 - Haythorne Place Nursing Home (Roseberry),S5 6AB
Department of Health,NHS Sheffield CCG,31/03/2021,Cont Care-Funded Nursing Care Allow,FUNDED NURSING CARE,ROSEBERRY CARE CENTRES,36123660,"35,241.43",FNC SCHEDULE MARCH 2021 - Haythorne Place Nursing Home (Roseberry),S5 6AB
Department of Health,NHS Sheffield CCG,31/03/2021,Other Gen Supplies & Srv,CLINICAL LEADS,ROTHERHAM NHS FOUNDATION TRUST,35864612,"251,500.00",,S60 2UD
Department of Health,NHS Sheffield CCG,31/03/2021,Other Gen Supplies & Srv,BEREAVEMENT SERVICE,ROTHERHAM NHS FOUNDATION TRUST,36205883,"4,439.00",,S60 2UD
Department of Health,NHS Sheffield CCG,31/03/2021,Seconded-Basic Sal-Staff fm oth org,BEREAVEMENT SERVICE,ROTHERHAM NHS FOUNDATION TRUST,36205883,"22,036.74",,S60 2UD
Department of Health,NHS Sheffield CCG,31/03/2021,Seconded-Employer's NHI Costs,BEREAVEMENT SERVICE,ROTHERHAM NHS FOUNDATION TRUST,36205883,"2,268.10",,S60 2UD
Department of Health,NHS Sheffield CCG,31/03/2021,C&M-APMS OOH Opt Outs,PRC DELEGATED CO-COMMISSIONING,RUSTLINGS ROAD MEDICAL CENTRE,35928127,4.29,APMOOA,S11 7AB
Department of Health,NHS Sheffield CCG,31/03/2021,C&M-PMS Contract Value,PRC DELEGATED CO-COMMISSIONING,RUSTLINGS ROAD MEDICAL CENTRE,35928127,"29,270.29",BABALP,S11 7AB
Department of Health,NHS Sheffield CCG,31/03/2021,C&M-PMS Funding Differential Review,PRC DELEGATED CO-COMMISSIONING,RUSTLINGS ROAD MEDICAL CENTRE,35928127,565.04,ZFUNFP,S11 7AB
Department of Health,NHS Sheffield CCG,31/03/2021,C&M-PMS Out of Hours Opt Outs,PRC DELEGATED CO-COMMISSIONING,RUSTLINGS ROAD MEDICAL CENTRE,35928127,10.24,APMOOH,S11 7AB
Department of Health,NHS Sheffield CCG,31/03/2021,C&M-PMS PCN DES Participation,PRC DELEGATED CO-COMMISSIONING,RUSTLINGS ROAD MEDICAL CENTRE,35928127,"1,072.99",PARTIP,S11 7AB
Department of Health,NHS Sheffield CCG,31/03/2021,C&M-PMS Prem Notional Rent,PRC DELEGATED CO-COMMISSIONING,RUSTLINGS ROAD MEDICAL CENTRE,35928127,"1,312.50",NRENT,S11 7AB
Department of Health,NHS Sheffield CCG,31/03/2021,C&M-PMS Prem Water Rates,PRC DELEGATED CO-COMMISSIONING,RUSTLINGS ROAD MEDICAL CENTRE,35928127,71.45,RAMWP,S11 7AB
Department of Health,NHS Sheffield CCG,31/03/2021,C&M-PMS QOF Aspiration,PRC DELEGATED CO-COMMISSIONING,RUSTLINGS ROAD MEDICAL CENTRE,35928127,"2,857.73",QUASPP,S11 7AB
Department of Health,NHS Sheffield CCG,31/03/2021,Cont Care-Physical Disab (<65),CHC ADULT FULLY FUNDED,SEVEN HILLS NURSING HOME,35957587,"60,696.64",CHC SCHEDULE MARCH 2021 - Seven Hills Nursing Home,S11 9AA
Department of Health,NHS Sheffield CCG,31/03/2021,C&M-GMS Cost of Drugs -Prescribing,LOCAL ENHANCED SERVICES,SHARROW LANE MEDICAL CENTRE,36162646,173.60,DRGP,S11 8AN
Department of Health,NHS Sheffield CCG,31/03/2021,C&M-GMS DES Minor Surgery,PRC DELEGATED CO-COMMISSIONING,SHARROW LANE MEDICAL CENTRE,36162646,360.00,DEMSUG,S11 8AN
Department of Health,NHS Sheffield CCG,31/03/2021,C&M-GMS Global Sum,PRC DELEGATED CO-COMMISSIONING,SHARROW LANE MEDICAL CENTRE,36162646,"25,322.98",GSUMG,S11 8AN
Department of Health,NHS Sheffield CCG,31/03/2021,C&M-GMS PCN DES Participation,PRC DELEGATED CO-COMMISSIONING,SHARROW LANE MEDICAL CENTRE,36162646,976.69,PARTIG,S11 8AN
Department of Health,NHS Sheffield CCG,31/03/2021,C&M-GMS PCO Other,PRC DELEGATED CO-COMMISSIONING,SHARROW LANE MEDICAL CENTRE,36162646,274.00,CQCRG,S11 8AN
Department of Health,NHS Sheffield CCG,31/03/2021,C&M-GMS Prem Notional Rent,PRC DELEGATED CO-COMMISSIONING,SHARROW LANE MEDICAL CENTRE,36162646,"2,741.67",NRENT,S11 8AN
Department of Health,NHS Sheffield CCG,31/03/2021,C&M-GMS Prof Fees Prescribing,PRC DELEGATED CO-COMMISSIONING,SHARROW LANE MEDICAL CENTRE,36162646,58.72,DRGPPF,S11 8AN
Department of Health,NHS Sheffield CCG,31/03/2021,C&M-GMS QOF Aspiration,PRC DELEGATED CO-COMMISSIONING,SHARROW LANE MEDICAL CENTRE,36162646,"2,676.86",QUASPG,S11 8AN
Department of Health,NHS Sheffield CCG,31/03/2021,Other Gen Supplies & Srv,BEREAVEMENT SERVICE,SHEFFIELD CHILDRENS NHS FOUNDATION TRUST,35858381,"176,000.00",https://nww.einvoice-prod.sbs.nhs.uk:8179/invoicepdf/d7bf63ce-90c1-522b-a7fc-7e54562d99da,S10 2TH
Department of Health,NHS Sheffield CCG,31/03/2021,Hcare Srv Rec Fdtn Trust-Contract Baseline,ACUTE CHILDRENS SERVICES,SHEFFIELD CHILDRENS NHS FOUNDATION TRUST,35897017,"282,000.00",https://nww.einvoice-prod.sbs.nhs.uk:8179/invoicepdf/10f26617-d196-5618-82fa-8aefb9c138ca,S10 2TH
Department of Health,NHS Sheffield CCG,31/03/2021,Hcare Srv Rec Fdtn Trust-Contract Baseline,CHILD AND ADOLESCENT MENTAL HEALTH,SHEFFIELD CHILDRENS NHS FOUNDATION TRUST,35897017,"391,500.00",,S10 2TH
Department of Health,NHS Sheffield CCG,31/03/2021,Hcare Srv Rec Fdtn Trust-Contract Baseline,ACUTE CHILDRENS SERVICES,SHEFFIELD CHILDRENS NHS FOUNDATION TRUST,35997487,"108,452.00",https://nww.einvoice-prod.sbs.nhs.uk:8179/invoicepdf/38d1e9be-0580-5e1f-a2f0-5c0f732842df,S10 2TH
Department of Health,NHS Sheffield CCG,31/03/2021,Hcare Srv Rec Fdtn Trust-Contract Baseline,CHILD AND ADOLESCENT MENTAL HEALTH,SHEFFIELD CHILDRENS NHS FOUNDATION TRUST,36132878,"100,000.00",https://nww.einvoice-prod.sbs.nhs.uk:8179/invoicepdf/98f3c28b-4582-550d-a962-f77cae278e02,S10 2TH
Department of Health,NHS Sheffield CCG,31/03/2021,Cont Care-Physical Disab (65+),CHC ADULT FULLY FUNDED,SHEFFIELD CITY COUNCIL,35873798,"1,077,772.20",RMT SCHEDULE March 2021,S1 1UJ
Department of Health,NHS Sheffield CCG,31/03/2021,Cont Care- Children,CHC CHILDREN,SHEFFIELD CITY COUNCIL,35873803,"102,122.47",CHILDRENS SCHEDULE March 2021,S1 1UJ
Department of Health,NHS Sheffield CCG,31/03/2021,Clinical&Medical-Othe Public Sector,COMMUNITY SERVICES,SHEFFIELD CITY COUNCIL,36050975,"150,416.67",,S1 1UJ
Department of Health,NHS Sheffield CCG,31/03/2021,Clinical&Medical-Othe Public Sector,MENTAL HEALTH SERVICES - COLLABORATIVE COMMISSIONING,SHEFFIELD CITY COUNCIL,36050975,"83,669.09",,S1 1UJ
Department of Health,NHS Sheffield CCG,31/03/2021,Clinical&Medical-Othe Public Sector,REABLEMENT,SHEFFIELD CITY COUNCIL,36050975,"21,808.67",,S1 1UJ
Department of Health,NHS Sheffield CCG,31/03/2021,Clinical&Medical-Othe Public Sector,SAFEGUARDING,SHEFFIELD CITY COUNCIL,36050975,"16,596.33",,S1 1UJ
Department of Health,NHS Sheffield CCG,31/03/2021,Cont Care-Physical Disab (65+),CHC ADULT FULLY FUNDED,SHEFFIELD CITY COUNCIL,36050975,"59,435.47",,S1 1UJ
Department of Health,NHS Sheffield CCG,31/03/2021,Soc Care-Joint H&C Teams/Working,INTERMEDIATE CARE,SHEFFIELD CITY COUNCIL,36050975,"151,447.58",,S1 1UJ
Department of Health,NHS Sheffield CCG,31/03/2021,Soc Care-Other Soc Care,COMMISSIONING - NON ACUTE,SHEFFIELD CITY COUNCIL,36050975,"1,635,250.00",,S1 1UJ
Department of Health,NHS Sheffield CCG,31/03/2021,Soc Care-Support Prim Care,COMMUNITY SERVICES,SHEFFIELD CITY COUNCIL,36050975,"58,000.00",,S1 1UJ
Department of Health,NHS Sheffield CCG,31/03/2021,Services From Local Authorities,MENTAL HEALTH SERVICES - COLLABORATIVE COMMISSIONING,SHEFFIELD CITY COUNCIL,36189784,"25,166.12",,S1 2HH
Department of Health,NHS Sheffield CCG,31/03/2021,Participation Fees,CLINICAL LEADS,SHEFFIELD HALLAM UNIVERSITY,35896829,"139,000.00",,S1 1WB
Department of Health,NHS Sheffield CCG,31/03/2021,Clinical&Medical-Voluntary Sector,MENTAL HEALTH SERVICES - OTHER,SHEFFIELD MIND,36222842,"34,000.00",,S11 8AL
Department of Health,NHS Sheffield CCG,31/03/2021,Other Gen Supplies & Srv,BEREAVEMENT SERVICE,SHEFFIELD TEACHING HOSPITALS NHS FOUNDATION TRUST,35858387,"246,000.00",,S5 7AU
Department of Health,NHS Sheffield CCG,31/03/2021,Other Gen Supplies & Srv,BEREAVEMENT SERVICE,SHEFFIELD TEACHING HOSPITALS NHS FOUNDATION TRUST,35953559,"44,000.00",,S5 7AU
Department of Health,NHS Sheffield CCG,31/03/2021,Other Gen Supplies & Srv,CLINICAL LEADS,SHEFFIELD TEACHING HOSPITALS NHS FOUNDATION TRUST,35997459,"50,300.00",,S5 7AU
Department of Health,NHS Sheffield CCG,31/03/2021,Other Gen Supplies & Srv,BEREAVEMENT SERVICE,SHEFFIELD TEACHING HOSPITALS NHS FOUNDATION TRUST,36050905,"75,000.00",,S5 7AU
Department of Health,NHS Sheffield CCG,31/03/2021,Hcare Srv Rec Fdtn Trust-Non Contract,ACUTE COMMISSIONING,SHEFFIELD TEACHING HOSPITALS NHS FOUNDATION TRUST,36132571,"91,000.00",,S5 7AU
Department of Health,NHS Sheffield CCG,31/03/2021,Hcare Srv Rec Fdtn Trust-Non Contract,ACUTE COMMISSIONING,SHEFFIELD TEACHING HOSPITALS NHS FOUNDATION TRUST,36132574,"87,300.00",,S5 7AU
Department of Health,NHS Sheffield CCG,31/03/2021,Hcare Srv Rec Fdtn Trust-Non Contract,ACUTE COMMISSIONING,SHEFFIELD TEACHING HOSPITALS NHS FOUNDATION TRUST,36132576,"239,000.00",,S5 7AU
Department of Health,NHS Sheffield CCG,31/03/2021,Participation Fees,BEREAVEMENT SERVICE,SHEFFIELD TEACHING HOSPITALS NHS FOUNDATION TRUST,36150129,"25,000.00",,S5 7AU
Department of Health,NHS Sheffield CCG,31/03/2021,Participation Fees,BEREAVEMENT SERVICE,SHEFFIELD TEACHING HOSPITALS NHS FOUNDATION TRUST,36150132,"45,000.00",,S5 7AU
Department of Health,NHS Sheffield CCG,31/03/2021,Participation Fees,BEREAVEMENT SERVICE,SHEFFIELD TEACHING HOSPITALS NHS FOUNDATION TRUST,36189803,"250,000.00",,S5 7AU
Department of Health,NHS Sheffield CCG,31/03/2021,Participation Fees,BEREAVEMENT SERVICE,SHEFFIELD TEACHING HOSPITALS NHS FOUNDATION TRUST,36189805,"100,000.00",,S5 7AU
Department of Health,NHS Sheffield CCG,31/03/2021,Participation Fees,BEREAVEMENT SERVICE,SHEFFIELD TEACHING HOSPITALS NHS FOUNDATION TRUST,36189806,"75,000.00",,S5 7AU
Department of Health,NHS Sheffield CCG,31/03/2021,Participation Fees,BEREAVEMENT SERVICE,SHEFFIELD TEACHING HOSPITALS NHS FOUNDATION TRUST,36189807,"80,000.00",,S5 7AU
Department of Health,NHS Sheffield CCG,31/03/2021,Hcare Srv Rec Fdtn Trust-Non Contract,ACUTE COMMISSIONING,SHEFFIELD TEACHING HOSPITALS NHS FOUNDATION TRUST,36205939,"111,000.00",,S5 7AU
Department of Health,NHS Sheffield CCG,31/03/2021,Hcare Srv Rec Fdtn Trust-Non Contract,NHS 111,SHEFFIELD TEACHING HOSPITALS NHS FOUNDATION TRUST,36205942,"53,951.00",,S5 7AU
Department of Health,NHS Sheffield CCG,31/03/2021,Participation Fees,BEREAVEMENT SERVICE,SHEFFIELD TEACHING HOSPITALS NHS FOUNDATION TRUST,36205946,"189,000.00",,S5 7AU
Department of Health,NHS Sheffield CCG,31/03/2021,C&M-GMS Cost of Drugs -Prescribing,LOCAL ENHANCED SERVICES,SHIREGREEN MEDICAL CENTRE,36162653,211.91,DRGP,S5 0RG
Department of Health,NHS Sheffield CCG,31/03/2021,C&M-GMS DES Minor Surgery,PRC DELEGATED CO-COMMISSIONING,SHIREGREEN MEDICAL CENTRE,36162653,280.00,DEMSUG,S5 0RG
Department of Health,NHS Sheffield CCG,31/03/2021,C&M-GMS Global Sum,PRC DELEGATED CO-COMMISSIONING,SHIREGREEN MEDICAL CENTRE,36162653,"58,792.95",GSUMG,S5 0RG
Department of Health,NHS Sheffield CCG,31/03/2021,C&M-GMS PCN DES Participation,PRC DELEGATED CO-COMMISSIONING,SHIREGREEN MEDICAL CENTRE,36162653,"2,389.19",PARTIG,S5 0RG
Department of Health,NHS Sheffield CCG,31/03/2021,C&M-GMS Prem Cost Rent,PRC DELEGATED CO-COMMISSIONING,SHIREGREEN MEDICAL CENTRE,36162653,"1,792.33",COST,S5 0RG
Department of Health,NHS Sheffield CCG,31/03/2021,C&M-GMS Prem Notional Rent,PRC DELEGATED CO-COMMISSIONING,SHIREGREEN MEDICAL CENTRE,36162653,"5,375.00",NRENT,S5 0RG
Department of Health,NHS Sheffield CCG,31/03/2021,C&M-GMS Prof Fees Prescribing,PRC DELEGATED CO-COMMISSIONING,SHIREGREEN MEDICAL CENTRE,36162653,93.42,DRGPPF,S5 0RG
Department of Health,NHS Sheffield CCG,31/03/2021,C&M-GMS QOF Aspiration,PRC DELEGATED CO-COMMISSIONING,SHIREGREEN MEDICAL CENTRE,36162653,"6,876.28",QUASPG,S5 0RG
Department of Health,NHS Sheffield CCG,31/03/2021,FM Computer Contracts,PRIMARY CARE IT,SIMODA LTD,35903114,"9,000.00",Cabling services,S3 8DH
Department of Health,NHS Sheffield CCG,31/03/2021,FM Computer Contracts,PRIMARY CARE IT,SIMODA LTD,35903114,"13,365.00",Installation - Cisco AP Quote Reference number QU-0262,S3 8DH
Department of Health,NHS Sheffield CCG,31/03/2021,FM Computer Contracts,PRIMARY CARE IT,SIMODA LTD,35903114,"8,400.00",Installation - Cisco switches (pre-configured),S3 8DH
Department of Health,NHS Sheffield CCG,31/03/2021,FM Computer Contracts,PRIMARY CARE IT,SIMODA LTD,35903114,"1,782.00",Patch Various - Project Cat6 patch leads various lengths and colours less than 3m,S3 8DH
Department of Health,NHS Sheffield CCG,31/03/2021,FM Computer Contracts,PRIMARY CARE IT,SIMODA LTD,35903114,"1,680.00",Project Management,S3 8DH
Department of Health,NHS Sheffield CCG,31/03/2021,FM Computer Contracts,PRIMARY CARE IT,SIMODA LTD,35903114,"6,845.40",,S3 8DH
Department of Health,NHS Sheffield CCG,31/03/2021,C&M-PMS Contract Value,PRC DELEGATED CO-COMMISSIONING,SLOAN MEDICAL CENTRE,35928128,-113.86,BABALP,S8 0YH
Department of Health,NHS Sheffield CCG,31/03/2021,C&M-PMS GP Statutory Levy,PRC DELEGATED CO-COMMISSIONING,SLOAN MEDICAL CENTRE,35928128,-472.26,STATL,S8 0YH
Department of Health,NHS Sheffield CCG,31/03/2021,C&M-PMS Out of Hours Opt Outs,PRC DELEGATED CO-COMMISSIONING,SLOAN MEDICAL CENTRE,35928128,"-4,680.47",APMOOH,S8 0YH
Department of Health,NHS Sheffield CCG,31/03/2021,C&M-PMS PCN DES Participation,PRC DELEGATED CO-COMMISSIONING,SLOAN MEDICAL CENTRE,35928128,"-1,829.77",PARTIP,S8 0YH
Department of Health,NHS Sheffield CCG,31/03/2021,C&M-PMS Prem Actual Rent,PRC DELEGATED CO-COMMISSIONING,SLOAN MEDICAL CENTRE,35928128,"-15,970.83",RENT,S8 0YH
Department of Health,NHS Sheffield CCG,31/03/2021,C&M-PMS Contract Value,PRC DELEGATED CO-COMMISSIONING,SLOAN MEDICAL CENTRE,35928129,"98,227.52",BABALP,S8 0YH
Department of Health,NHS Sheffield CCG,31/03/2021,C&M-PMS DES Minor Surgery,PRC DELEGATED CO-COMMISSIONING,SLOAN MEDICAL CENTRE,35928129,"2,760.00",DEMSUP,S8 0YH
Department of Health,NHS Sheffield CCG,31/03/2021,C&M-PMS Out of Hours Opt Outs,PRC DELEGATED CO-COMMISSIONING,SLOAN MEDICAL CENTRE,35928129,5.43,APMOOH,S8 0YH
Department of Health,NHS Sheffield CCG,31/03/2021,C&M-PMS PCN DES Participation,PRC DELEGATED CO-COMMISSIONING,SLOAN MEDICAL CENTRE,35928129,"3,662.66",PARTIP,S8 0YH
Department of Health,NHS Sheffield CCG,31/03/2021,C&M-PMS Prem Actual Rent,PRC DELEGATED CO-COMMISSIONING,SLOAN MEDICAL CENTRE,35928129,"15,970.83",RENT,S8 0YH
Department of Health,NHS Sheffield CCG,31/03/2021,C&M-PMS Prem Notional Rent,PRC DELEGATED CO-COMMISSIONING,SLOAN MEDICAL CENTRE,35928129,747.50,NRENT,S8 0YH
Department of Health,NHS Sheffield CCG,31/03/2021,C&M-PMS Prem Water Rates,PRC DELEGATED CO-COMMISSIONING,SLOAN MEDICAL CENTRE,35928129,"1,533.00",RAMWP,S8 0YH
Department of Health,NHS Sheffield CCG,31/03/2021,C&M-PMS QOF Aspiration,PRC DELEGATED CO-COMMISSIONING,SLOAN MEDICAL CENTRE,35928129,"9,977.55",QUASPP,S8 0YH
Department of Health,NHS Sheffield CCG,31/03/2021,Professional Fees,BEREAVEMENT SERVICE,SME HCI LTD,35896855,"26,400.00",https://nww.einvoice-prod.sbs.nhs.uk:8179/invoicepdf/fc3e7933-5062-55e6-8248-4ea7a99d053a,GU9 7UD
Department of Health,NHS Sheffield CCG,31/03/2021,Professional Fees,BEREAVEMENT SERVICE,SME HCI LTD,35896861,"237,600.00",https://nww.einvoice-prod.sbs.nhs.uk:8179/invoicepdf/7a8c1cf9-ed3d-521d-8711-47983c4400bc,GU9 7UD
Department of Health,NHS Sheffield CCG,31/03/2021,C&M-PMS Contract Value,PRC DELEGATED CO-COMMISSIONING,SOTHALL MEDICAL CENTRE,35928131,"72,846.08",BABALP,S20 1HQ
Department of Health,NHS Sheffield CCG,31/03/2021,C&M-PMS DES Minor Surgery,PRC DELEGATED CO-COMMISSIONING,SOTHALL MEDICAL CENTRE,35928131,"1,395.00",DEMSUP,S20 1HQ
Department of Health,NHS Sheffield CCG,31/03/2021,C&M-PMS Out of Hours Opt Outs,PRC DELEGATED CO-COMMISSIONING,SOTHALL MEDICAL CENTRE,35928131,7.94,APMOOH,S20 1HQ
Department of Health,NHS Sheffield CCG,31/03/2021,C&M-PMS PCN DES Participation,PRC DELEGATED CO-COMMISSIONING,SOTHALL MEDICAL CENTRE,35928131,"2,710.63",PARTIP,S20 1HQ
Department of Health,NHS Sheffield CCG,31/03/2021,C&M-PMS Prem Notional Rent,PRC DELEGATED CO-COMMISSIONING,SOTHALL MEDICAL CENTRE,35928131,"5,116.67",NRENT,S20 1HQ
Department of Health,NHS Sheffield CCG,31/03/2021,C&M-PMS QOF Aspiration,PRC DELEGATED CO-COMMISSIONING,SOTHALL MEDICAL CENTRE,35928131,"8,491.33",QUASPP,S20 1HQ
Department of Health,NHS Sheffield CCG,31/03/2021,Cont Care-Physical Disab (<65),CHC ADULT FULLY FUNDED,SOUTH YORKSHIRE HOUSING ASSOCIATION LTD,35957494,"80,758.25",CHC SCHEDULE MARCH 2021 - Birch Avenue Nursing Home (SYHA),S35 1RQ
Department of Health,NHS Sheffield CCG,31/03/2021,Clinical&Medical-Independent Sector,MENTAL HEALTH CONTRACTS,SOUTH YORKSHIRE HOUSING ASSOCIATION LTD,36189778,"183,646.08",,S1 4EB
Department of Health,NHS Sheffield CCG,31/03/2021,Clinical&Medical-Independent Sector,MENTAL HEALTH CONTRACTS,SOUTH YORKSHIRE HOUSING ASSOCIATION LTD,36189780,"-183,646.08",,S1 4EB
Department of Health,NHS Sheffield CCG,31/03/2021,Cont Care- Adult 100% Fully Funded,CHC ADULT FULLY FUNDED,SOUTH YORKSHIRE HOUSING ASSOCIATION LTD,36190778,"25,500.00",Birch Avenue - Additional Staff March 21,S1 4HF
Department of Health,NHS Sheffield CCG,31/03/2021,Cont Care- Adult 100% Fully Funded,CHC ADULT FULLY FUNDED,SOUTH YORKSHIRE HOUSING ASSOCIATION LTD,36190781,"46,763.59",Birch Avenue - March 21,S1 4HF
Department of Health,NHS Sheffield CCG,31/03/2021,Clinical&Medical-Independent Sector,MENTAL HEALTH CONTRACTS,SOUTH YORKSHIRE HOUSING ASSOCIATION LTD,36190786,"34,434.83",Lister Avenue - March 21,S1 4HF
Department of Health,NHS Sheffield CCG,31/03/2021,C&M-PMS Contract Value,PRC DELEGATED CO-COMMISSIONING,SOUTHEY GREEN MEDICAL CENTRE,35928133,"25,584.63",BABALP,S5 7QB
Department of Health,NHS Sheffield CCG,31/03/2021,C&M-PMS Funding Differential Review,PRC DELEGATED CO-COMMISSIONING,SOUTHEY GREEN MEDICAL CENTRE,35928133,612.28,ZFUNFP,S5 7QB
Department of Health,NHS Sheffield CCG,31/03/2021,C&M-PMS Out of Hours Opt Outs,PRC DELEGATED CO-COMMISSIONING,SOUTHEY GREEN MEDICAL CENTRE,35928133,26.42,APMOOH,S5 7QB
Department of Health,NHS Sheffield CCG,31/03/2021,C&M-PMS PCN DES Participation,PRC DELEGATED CO-COMMISSIONING,SOUTHEY GREEN MEDICAL CENTRE,35928133,475.95,PARTIP,S5 7QB
Department of Health,NHS Sheffield CCG,31/03/2021,C&M-PMS Prem Notional Rent,PRC DELEGATED CO-COMMISSIONING,SOUTHEY GREEN MEDICAL CENTRE,35928133,"3,362.50",NRENT,S5 7QB
Department of Health,NHS Sheffield CCG,31/03/2021,C&M-PMS QOF Aspiration,PRC DELEGATED CO-COMMISSIONING,SOUTHEY GREEN MEDICAL CENTRE,35928133,"2,637.54",QUASPP,S5 7QB
Department of Health,NHS Sheffield CCG,31/03/2021,Clinical&Medical-Independent Sector,ACUTE COMMISSIONING,SPAMEDICA LTD,35953527,"116,358.82",https://nww.einvoice-prod.sbs.nhs.uk:8179/invoicepdf/9281c17b-e118-5137-9507-dc73b91472bd,M15 4SQ
Department of Health,NHS Sheffield CCG,31/03/2021,Clinical&Medical-Independent Sector,ACUTE COMMISSIONING,SPAMEDICA LTD,36207631,"152,269.20",https://nww.einvoice-prod.sbs.nhs.uk:8179/invoicepdf/395ae09d-c6c1-5e50-9fcd-dbb4bda501d5,M15 4SQ
Department of Health,NHS Sheffield CCG,31/03/2021,Clinical&Medical-Voluntary Sector,HOSPICES,ST LUKES HOSPICE,36058344,"150,000.00",,S11 9NE
Department of Health,NHS Sheffield CCG,31/03/2021,Clinical&Medical-Voluntary Sector,HOSPICES,ST LUKES HOSPICE,36058356,"216,686.00",,S11 9NE
Department of Health,NHS Sheffield CCG,31/03/2021,C&M-GMS DES Minor Surgery,PRC DELEGATED CO-COMMISSIONING,STANNINGTON MEDICAL CENTRE,36162657,240.00,DEMSUG,S6 6BX
Department of Health,NHS Sheffield CCG,31/03/2021,C&M-GMS Global Sum,PRC DELEGATED CO-COMMISSIONING,STANNINGTON MEDICAL CENTRE,36162657,"26,694.60",GSUMG,S6 6BX
Department of Health,NHS Sheffield CCG,31/03/2021,C&M-GMS Prem Notional Rent,PRC DELEGATED CO-COMMISSIONING,STANNINGTON MEDICAL CENTRE,36162657,"2,575.00",NRENT,S6 6BX
Department of Health,NHS Sheffield CCG,31/03/2021,C&M-GMS QOF Aspiration,PRC DELEGATED CO-COMMISSIONING,STANNINGTON MEDICAL CENTRE,36162657,"3,017.79",QUASPG,S6 6BX
Department of Health,NHS Sheffield CCG,31/03/2021,C&M-GMS Cost of Drugs -Prescribing,LOCAL ENHANCED SERVICES,STONECROFT MEDICAL CENTRE,36162655,216.52,DRGP,S12 2LJ
Department of Health,NHS Sheffield CCG,31/03/2021,C&M-GMS DES Minor Surgery,PRC DELEGATED CO-COMMISSIONING,STONECROFT MEDICAL CENTRE,36162655,"1,840.00",DEMSUG,S12 2LJ
Department of Health,NHS Sheffield CCG,31/03/2021,C&M-GMS Global Sum,PRC DELEGATED CO-COMMISSIONING,STONECROFT MEDICAL CENTRE,36162655,"34,436.50",GSUMG,S12 2LJ
Department of Health,NHS Sheffield CCG,31/03/2021,C&M-GMS PCN DES Participation,PRC DELEGATED CO-COMMISSIONING,STONECROFT MEDICAL CENTRE,36162655,"1,337.22",PARTIG,S12 2LJ
Department of Health,NHS Sheffield CCG,31/03/2021,C&M-GMS Prem Notional Rent,PRC DELEGATED CO-COMMISSIONING,STONECROFT MEDICAL CENTRE,36162655,"2,808.33",NRENT,S12 2LJ
Department of Health,NHS Sheffield CCG,31/03/2021,C&M-GMS Prem Water Rates,PRC DELEGATED CO-COMMISSIONING,STONECROFT MEDICAL CENTRE,36162655,80.27,RAMW,S12 2LJ
Department of Health,NHS Sheffield CCG,31/03/2021,C&M-GMS Prof Fees Prescribing,PRC DELEGATED CO-COMMISSIONING,STONECROFT MEDICAL CENTRE,36162655,112.10,DRGPPF,S12 2LJ
Department of Health,NHS Sheffield CCG,31/03/2021,C&M-GMS QOF Aspiration,PRC DELEGATED CO-COMMISSIONING,STONECROFT MEDICAL CENTRE,36162655,"4,246.35",QUASPG,S12 2LJ
Department of Health,NHS Sheffield CCG,31/03/2021,Clinical&Medical-Voluntary Sector,COMMISSIONING - NON ACUTE,STROKE ASSOCIATION,36215951,"25,000.00",,EC1V 2PR
Department of Health,NHS Sheffield CCG,31/03/2021,Cont Care-Physical Disab (<65),CHC ADULT FULLY FUNDED,SUSASH GB LTD T/A EAGLE HOUSE,35957715,"26,147.95",CHC SCHEDULE MARCH 2021 - Eagle House Nursing Home (Susash GB Ltd),S11 8NP
Department of Health,NHS Sheffield CCG,31/03/2021,Clinical&Medical-Independent Sector,MENTAL HEALTH CONTRACTS,SUSASH GB LTD T/A EAGLE HOUSE,36190783,"30,091.75",Eagle House - March 21,S11 8NP
Department of Health,NHS Sheffield CCG,31/03/2021,C&M-GMS Cost of Drugs -Prescribing,LOCAL ENHANCED SERVICES,TOTLEY RISE MEDICAL CENTRE,36162659,"2,285.15",DRGP,S17 4DQ
Department of Health,NHS Sheffield CCG,31/03/2021,C&M-GMS DES Minor Surgery,PRC DELEGATED CO-COMMISSIONING,TOTLEY RISE MEDICAL CENTRE,36162659,365.00,DEMSUG,S17 4DQ
Department of Health,NHS Sheffield CCG,31/03/2021,C&M-GMS Global Sum,PRC DELEGATED CO-COMMISSIONING,TOTLEY RISE MEDICAL CENTRE,36162659,"27,383.57",GSUMG,S17 4DQ
Department of Health,NHS Sheffield CCG,31/03/2021,C&M-GMS PCN DES Participation,PRC DELEGATED CO-COMMISSIONING,TOTLEY RISE MEDICAL CENTRE,36162659,"1,063.31",PARTIG,S17 4DQ
Department of Health,NHS Sheffield CCG,31/03/2021,C&M-GMS Prem Notional Rent,PRC DELEGATED CO-COMMISSIONING,TOTLEY RISE MEDICAL CENTRE,36162659,"1,604.17",NRENT,S17 4DQ
Department of Health,NHS Sheffield CCG,31/03/2021,C&M-GMS Prof Fees Prescribing,PRC DELEGATED CO-COMMISSIONING,TOTLEY RISE MEDICAL CENTRE,36162659,443.06,DRGPPF,S17 4DQ
Department of Health,NHS Sheffield CCG,31/03/2021,C&M-GMS QOF Aspiration,PRC DELEGATED CO-COMMISSIONING,TOTLEY RISE MEDICAL CENTRE,36162659,"2,402.35",QUASPG,S17 4DQ
Department of Health,NHS Sheffield CCG,31/03/2021,C&M-GMS Cost of Drugs -Prescribing,LOCAL ENHANCED SERVICES,TRAMWAYS MEDICAL CENTRE,36162661,835.30,DRGP,S6 4JQ
Department of Health,NHS Sheffield CCG,31/03/2021,C&M-GMS DES Minor Surgery,PRC DELEGATED CO-COMMISSIONING,TRAMWAYS MEDICAL CENTRE,36162661,"9,180.00",DEMSUG,S6 4JQ
Department of Health,NHS Sheffield CCG,31/03/2021,C&M-GMS Global Sum,PRC DELEGATED CO-COMMISSIONING,TRAMWAYS MEDICAL CENTRE,36162661,"63,409.68",GSUMG,S6 4JQ
Department of Health,NHS Sheffield CCG,31/03/2021,C&M-GMS PCN DES Participation,PRC DELEGATED CO-COMMISSIONING,TRAMWAYS MEDICAL CENTRE,36162661,"2,516.92",PARTIG,S6 4JQ
Department of Health,NHS Sheffield CCG,31/03/2021,C&M-GMS Prem Cost Rent,PRC DELEGATED CO-COMMISSIONING,TRAMWAYS MEDICAL CENTRE,36162661,"4,012.75",COST,S6 4JQ
Department of Health,NHS Sheffield CCG,31/03/2021,C&M-GMS Prof Fees Prescribing,PRC DELEGATED CO-COMMISSIONING,TRAMWAYS MEDICAL CENTRE,36162661,154.81,DRGPPF,S6 4JQ
Department of Health,NHS Sheffield CCG,31/03/2021,C&M-GMS QOF Aspiration,PRC DELEGATED CO-COMMISSIONING,TRAMWAYS MEDICAL CENTRE,36162661,"5,986.86",QUASPG,S6 4JQ
Department of Health,NHS Sheffield CCG,31/03/2021,FM Computer Contracts,PRIMARY CARE IT,TRUSTMARQUE SOLUTIONS LTD,36219285,"15,747.00",3JJ-00003 Microsoft®M365Appsforenterprise (30 months) MVL 1License PerUsr Quote reference number QU938987,YO41 1LZ
Department of Health,NHS Sheffield CCG,31/03/2021,FM Computer Contracts,PRIMARY CARE IT,TRUSTMARQUE SOLUTIONS LTD,36219285,"2,610.00",6EN-00002 Microsoft®AzureActiveDirectoryP2K (30 months) MVL 1License PerUsr,YO41 1LZ
Department of Health,NHS Sheffield CCG,31/03/2021,FM Computer Contracts,PRIMARY CARE IT,TRUSTMARQUE SOLUTIONS LTD,36219285,"11,310.00",AAA-10732 Microsoft®EntMobandSecurityE3Full (30 months) MVL 1License PerUsr,YO41 1LZ
Department of Health,NHS Sheffield CCG,31/03/2021,FM Computer Contracts,PRIMARY CARE IT,TRUSTMARQUE SOLUTIONS LTD,36219285,"9,135.00",T6A-00024 Microsoft®O365E1 ShrdSvr (30 months) 1License PerUsr,YO41 1LZ
Department of Health,NHS Sheffield CCG,31/03/2021,FM Computer Contracts,PRIMARY CARE IT,TRUSTMARQUE SOLUTIONS LTD,36219285,"7,760.40",https://nww.einvoice-prod.sbs.nhs.uk:8179/invoicepdf/cb9b4583-8fa5-5d3a-841f-b8cb84d377f3,YO41 1LZ
Department of Health,NHS Sheffield CCG,31/03/2021,C&M-PMS Contract Value,PRC DELEGATED CO-COMMISSIONING,UNIVERSITY HEALTH SERVICE,35928136,"-14,869.61",BABALP,S3 7QP
Department of Health,NHS Sheffield CCG,31/03/2021,C&M-PMS DES Extended Hours Access,PRC DELEGATED CO-COMMISSIONING,UNIVERSITY HEALTH SERVICE,35928136,"-4,929.28",EXTHDP,S3 7QP
Department of Health,NHS Sheffield CCG,31/03/2021,C&M-PMS GP Statutory Levy,PRC DELEGATED CO-COMMISSIONING,UNIVERSITY HEALTH SERVICE,35928136,"-1,422.26",STATL,S3 7QP
Department of Health,NHS Sheffield CCG,31/03/2021,C&M-PMS Out of Hours Opt Outs,PRC DELEGATED CO-COMMISSIONING,UNIVERSITY HEALTH SERVICE,35928136,"-10,008.30",APMOOH,S3 7QP
Department of Health,NHS Sheffield CCG,31/03/2021,C&M-PMS PCN DES Clinical Director,PRC DELEGATED CO-COMMISSIONING,UNIVERSITY HEALTH SERVICE,35928136,"-2,454.44",CLINDP,S3 7QP
Department of Health,NHS Sheffield CCG,31/03/2021,C&M-PMS PCN DES PCN support,LOCAL ENHANCED SERVICES,UNIVERSITY HEALTH SERVICE,35928136,"-5,099.25",PCNSUP,S3 7QP
Department of Health,NHS Sheffield CCG,31/03/2021,C&M-PMS PCN DES Participation,PRC DELEGATED CO-COMMISSIONING,UNIVERSITY HEALTH SERVICE,35928136,"-3,871.12",PARTIP,S3 7QP
Department of Health,NHS Sheffield CCG,31/03/2021,C&M-PMS Contract Value,PRC DELEGATED CO-COMMISSIONING,UNIVERSITY HEALTH SERVICE,35928137,"209,889.31",BABALP,S3 7QP
Department of Health,NHS Sheffield CCG,31/03/2021,C&M-PMS DES Extended Hours Access,PRC DELEGATED CO-COMMISSIONING,UNIVERSITY HEALTH SERVICE,35928137,"9,865.48",EXTHDP,S3 7QP
Department of Health,NHS Sheffield CCG,31/03/2021,C&M-PMS DES Minor Surgery,PRC DELEGATED CO-COMMISSIONING,UNIVERSITY HEALTH SERVICE,35928137,"2,890.00",DEMSUP,S3 7QP
Department of Health,NHS Sheffield CCG,31/03/2021,C&M-PMS Out of Hours Opt Outs,PRC DELEGATED CO-COMMISSIONING,UNIVERSITY HEALTH SERVICE,35928137,712.50,APMOOH,S3 7QP
Department of Health,NHS Sheffield CCG,31/03/2021,C&M-PMS PCN DES Clinical Director,PRC DELEGATED CO-COMMISSIONING,UNIVERSITY HEALTH SERVICE,35928137,"4,902.14",CLINDP,S3 7QP
Department of Health,NHS Sheffield CCG,31/03/2021,C&M-PMS PCN DES PCN support,LOCAL ENHANCED SERVICES,UNIVERSITY HEALTH SERVICE,35928137,"10,198.63",PCNSUP,S3 7QP
Department of Health,NHS Sheffield CCG,31/03/2021,C&M-PMS PCN DES Participation,PRC DELEGATED CO-COMMISSIONING,UNIVERSITY HEALTH SERVICE,35928137,"7,748.83",PARTIP,S3 7QP
Department of Health,NHS Sheffield CCG,31/03/2021,C&M-PMS PCO Locum Sickness,PRC DELEGATED CO-COMMISSIONING,UNIVERSITY HEALTH SERVICE,35928137,"15,763.68",SICKS,S3 7QP
Department of Health,NHS Sheffield CCG,31/03/2021,C&M-PMS Prem Notional Rent,PRC DELEGATED CO-COMMISSIONING,UNIVERSITY HEALTH SERVICE,35928137,"15,833.33",NRENT,S3 7QP
Department of Health,NHS Sheffield CCG,31/03/2021,C&M-PMS QOF Aspiration,PRC DELEGATED CO-COMMISSIONING,UNIVERSITY HEALTH SERVICE,35928137,"7,529.34",QUASPP,S3 7QP
Department of Health,NHS Sheffield CCG,31/03/2021,C&M-GMS LES Equitable Funding,LOCAL ENHANCED SERVICES,UNIVERSITY HEALTH SERVICE,36208777,"31,911.00",EQUITABLEFUNDQ4 202021,S3 7QP
Department of Health,NHS Sheffield CCG,31/03/2021,C&M-GMS Cost of Drugs -Prescribing,LOCAL ENHANCED SERVICES,UPPERTHORPE MEDICAL CENTRE,36162664,"2,898.39",DRGP,S6 3FT
Department of Health,NHS Sheffield CCG,31/03/2021,C&M-GMS DES Minor Surgery,PRC DELEGATED CO-COMMISSIONING,UPPERTHORPE MEDICAL CENTRE,36162664,"1,390.00",DEMSUG,S6 3FT
Department of Health,NHS Sheffield CCG,31/03/2021,C&M-GMS Global Sum,PRC DELEGATED CO-COMMISSIONING,UPPERTHORPE MEDICAL CENTRE,36162664,"89,651.98",GSUMG,S6 3FT
Department of Health,NHS Sheffield CCG,31/03/2021,C&M-GMS PCN DES Participation,PRC DELEGATED CO-COMMISSIONING,UPPERTHORPE MEDICAL CENTRE,36162664,"3,488.03",PARTIG,S6 3FT
Department of Health,NHS Sheffield CCG,31/03/2021,C&M-GMS Prem Actual Rent,PRC DELEGATED CO-COMMISSIONING,UPPERTHORPE MEDICAL CENTRE,36162664,"29,475.00",RENT,S6 3FT
Department of Health,NHS Sheffield CCG,31/03/2021,C&M-GMS Prem Notional Rent,PRC DELEGATED CO-COMMISSIONING,UPPERTHORPE MEDICAL CENTRE,36162664,"2,547.83",NRENT,S6 3FT
Department of Health,NHS Sheffield CCG,31/03/2021,C&M-GMS Prem Water Rates,PRC DELEGATED CO-COMMISSIONING,UPPERTHORPE MEDICAL CENTRE,36162664,186.82,RAMW,S6 3FT
Department of Health,NHS Sheffield CCG,31/03/2021,C&M-GMS Prof Fees Prescribing,PRC DELEGATED CO-COMMISSIONING,UPPERTHORPE MEDICAL CENTRE,36162664,282.92,DRGPPF,S6 3FT
Department of Health,NHS Sheffield CCG,31/03/2021,C&M-GMS QOF Aspiration,PRC DELEGATED CO-COMMISSIONING,UPPERTHORPE MEDICAL CENTRE,36162664,"9,300.36",QUASPG,S6 3FT
Department of Health,NHS Sheffield CCG,31/03/2021,C&M-PMS Contract Value,PRC DELEGATED CO-COMMISSIONING,UPWELL STREET SURGERY,35928139,"37,024.50",BABALP,S4 8AN
Department of Health,NHS Sheffield CCG,31/03/2021,C&M-PMS DES Minor Surgery,PRC DELEGATED CO-COMMISSIONING,UPWELL STREET SURGERY,35928139,610.00,DEMSUP,S4 8AN
Department of Health,NHS Sheffield CCG,31/03/2021,C&M-PMS Funding Differential Review,PRC DELEGATED CO-COMMISSIONING,UPWELL STREET SURGERY,35928139,911.19,ZFUNFP,S4 8AN
Department of Health,NHS Sheffield CCG,31/03/2021,C&M-PMS Out of Hours Opt Outs,PRC DELEGATED CO-COMMISSIONING,UPWELL STREET SURGERY,35928139,38.84,APMOOH,S4 8AN
Department of Health,NHS Sheffield CCG,31/03/2021,C&M-PMS PCN DES Participation,PRC DELEGATED CO-COMMISSIONING,UPWELL STREET SURGERY,35928139,"1,375.79",PARTIP,S4 8AN
Department of Health,NHS Sheffield CCG,31/03/2021,C&M-PMS Prem Notional Rent,PRC DELEGATED CO-COMMISSIONING,UPWELL STREET SURGERY,35928139,"8,137.50",NRENT,S4 8AN
Department of Health,NHS Sheffield CCG,31/03/2021,C&M-PMS Prem Rates,PRC DELEGATED CO-COMMISSIONING,UPWELL STREET SURGERY,35928139,"1,362.00",RANDRP,S4 8AN
Department of Health,NHS Sheffield CCG,31/03/2021,C&M-PMS Prem Water Rates,PRC DELEGATED CO-COMMISSIONING,UPWELL STREET SURGERY,35928139,128.89,RAMWP,S4 8AN
Department of Health,NHS Sheffield CCG,31/03/2021,C&M-PMS QOF Aspiration,PRC DELEGATED CO-COMMISSIONING,UPWELL STREET SURGERY,35928139,"3,919.87",QUASPP,S4 8AN
Department of Health,NHS Sheffield CCG,31/03/2021,C&M-PMS DES Extended Hours Access,PRC DELEGATED CO-COMMISSIONING,VALLEY MEDICAL CENTRE,35928140,"-2,507.53",EXTHDP,S36 1BX
Department of Health,NHS Sheffield CCG,31/03/2021,C&M-PMS GP Statutory Levy,PRC DELEGATED CO-COMMISSIONING,VALLEY MEDICAL CENTRE,35928140,-336.63,STATL,S36 1BX
Department of Health,NHS Sheffield CCG,31/03/2021,C&M-PMS Out of Hours Opt Outs,PRC DELEGATED CO-COMMISSIONING,VALLEY MEDICAL CENTRE,35928140,"-3,855.40",APMOOH,S36 1BX
Department of Health,NHS Sheffield CCG,31/03/2021,C&M-PMS PCN DES Clinical Director,PRC DELEGATED CO-COMMISSIONING,VALLEY MEDICAL CENTRE,35928140,"-1,248.58",CLINDP,S36 1BX
Department of Health,NHS Sheffield CCG,31/03/2021,C&M-PMS PCN DES PCN support,LOCAL ENHANCED SERVICES,VALLEY MEDICAL CENTRE,35928140,"-2,594.00",PCNSUP,S36 1BX
Department of Health,NHS Sheffield CCG,31/03/2021,C&M-PMS PCN DES Participation,PRC DELEGATED CO-COMMISSIONING,VALLEY MEDICAL CENTRE,35928140,"-1,502.00",PARTIP,S36 1BX
Department of Health,NHS Sheffield CCG,31/03/2021,C&M-PMS Contract Value,PRC DELEGATED CO-COMMISSIONING,VALLEY MEDICAL CENTRE,35928141,"80,968.97",BABALP,S36 1BX
Department of Health,NHS Sheffield CCG,31/03/2021,C&M-PMS DES Extended Hours Access,PRC DELEGATED CO-COMMISSIONING,VALLEY MEDICAL CENTRE,35928141,"5,018.52",EXTHDP,S36 1BX
Department of Health,NHS Sheffield CCG,31/03/2021,C&M-PMS DES Learn Dsblty Hlth Chk,PRC DELEGATED CO-COMMISSIONING,VALLEY MEDICAL CENTRE,35928141,"1,260.00",LEARNP,S36 1BX
Department of Health,NHS Sheffield CCG,31/03/2021,C&M-PMS DES Minor Surgery,PRC DELEGATED CO-COMMISSIONING,VALLEY MEDICAL CENTRE,35928141,"2,925.00",DEMSUP,S36 1BX
Department of Health,NHS Sheffield CCG,31/03/2021,C&M-PMS PCN DES Clinical Director,PRC DELEGATED CO-COMMISSIONING,VALLEY MEDICAL CENTRE,35928141,"2,493.70",CLINDP,S36 1BX
Department of Health,NHS Sheffield CCG,31/03/2021,C&M-PMS PCN DES PCN support,LOCAL ENHANCED SERVICES,VALLEY MEDICAL CENTRE,35928141,"5,188.00",PCNSUP,S36 1BX
Department of Health,NHS Sheffield CCG,31/03/2021,C&M-PMS PCN DES Participation,PRC DELEGATED CO-COMMISSIONING,VALLEY MEDICAL CENTRE,35928141,"3,006.56",PARTIP,S36 1BX
Department of Health,NHS Sheffield CCG,31/03/2021,C&M-PMS PCO Locum Adop/Pat/Mat,PRC DELEGATED CO-COMMISSIONING,VALLEY MEDICAL CENTRE,35928141,"5,286.12",SICKC,S36 1BX
Department of Health,NHS Sheffield CCG,31/03/2021,C&M-PMS Prem Actual Rent,PRC DELEGATED CO-COMMISSIONING,VALLEY MEDICAL CENTRE,35928141,"25,468.75",RENT,S36 1BX
Department of Health,NHS Sheffield CCG,31/03/2021,C&M-PMS QOF Aspiration,PRC DELEGATED CO-COMMISSIONING,VALLEY MEDICAL CENTRE,35928141,"9,062.68",QUASPP,S36 1BX
Department of Health,NHS Sheffield CCG,31/03/2021,Cont Care-Physical Disab (<65),CHC ADULT FULLY FUNDED,VALORUM CARE LTD,35957728,"45,057.99",CHC SCHEDULE MARCH 2021 - Valorum Care Limited (Mickley Hall),LS19 7RW
Department of Health,NHS Sheffield CCG,31/03/2021,Participation Fees,BEREAVEMENT SERVICE,VOLUNTARY ACTION ROTHERHAM,35946379,"43,776.00",,S60 2HX
Department of Health,NHS Sheffield CCG,31/03/2021,C&M-GMS Cost of Drugs -Prescribing,LOCAL ENHANCED SERVICES,WALKLEY HOUSE MEDICAL CENTRE,36162669,"2,137.44",DRGP,S6 3TN
Department of Health,NHS Sheffield CCG,31/03/2021,C&M-GMS DES Minor Surgery,PRC DELEGATED CO-COMMISSIONING,WALKLEY HOUSE MEDICAL CENTRE,36162669,"1,525.00",DEMSUG,S6 3TN
Department of Health,NHS Sheffield CCG,31/03/2021,C&M-GMS Global Sum,PRC DELEGATED CO-COMMISSIONING,WALKLEY HOUSE MEDICAL CENTRE,36162669,"90,216.55",GSUMG,S6 3TN
Department of Health,NHS Sheffield CCG,31/03/2021,C&M-GMS PCN DES Participation,PRC DELEGATED CO-COMMISSIONING,WALKLEY HOUSE MEDICAL CENTRE,36162669,"3,522.09",PARTIG,S6 3TN
Department of Health,NHS Sheffield CCG,31/03/2021,C&M-GMS Prem Notional Rent,PRC DELEGATED CO-COMMISSIONING,WALKLEY HOUSE MEDICAL CENTRE,36162669,"5,635.50",NRENT,S6 3TN
Department of Health,NHS Sheffield CCG,31/03/2021,C&M-GMS Prem Water Rates,PRC DELEGATED CO-COMMISSIONING,WALKLEY HOUSE MEDICAL CENTRE,36162669,198.00,RAMW,S6 3TN
Department of Health,NHS Sheffield CCG,31/03/2021,C&M-GMS Prof Fees Prescribing,PRC DELEGATED CO-COMMISSIONING,WALKLEY HOUSE MEDICAL CENTRE,36162669,517.78,DRGPPF,S6 3TN
Department of Health,NHS Sheffield CCG,31/03/2021,C&M-GMS QOF Aspiration,PRC DELEGATED CO-COMMISSIONING,WALKLEY HOUSE MEDICAL CENTRE,36162669,"8,644.85",QUASPG,S6 3TN
Department of Health,NHS Sheffield CCG,31/03/2021,C&M-GMS Cost of Drugs -Prescribing,LOCAL ENHANCED SERVICES,WHITE HOUSE SURGERY SHEFFIELD,36162667,255.50,DRGP,S2 1SL
Department of Health,NHS Sheffield CCG,31/03/2021,C&M-GMS DES Minor Surgery,PRC DELEGATED CO-COMMISSIONING,WHITE HOUSE SURGERY SHEFFIELD,36162667,500.00,DEMSUG,S2 1SL
Department of Health,NHS Sheffield CCG,31/03/2021,C&M-GMS Global Sum,PRC DELEGATED CO-COMMISSIONING,WHITE HOUSE SURGERY SHEFFIELD,36162667,"55,450.86",GSUMG,S2 1SL
Department of Health,NHS Sheffield CCG,31/03/2021,C&M-GMS PCN DES Participation,PRC DELEGATED CO-COMMISSIONING,WHITE HOUSE SURGERY SHEFFIELD,36162667,"2,112.47",PARTIG,S2 1SL
Department of Health,NHS Sheffield CCG,31/03/2021,C&M-GMS Prem Notional Rent,PRC DELEGATED CO-COMMISSIONING,WHITE HOUSE SURGERY SHEFFIELD,36162667,"9,412.50",NRENT,S2 1SL
Department of Health,NHS Sheffield CCG,31/03/2021,C&M-GMS Prem Water Rates,PRC DELEGATED CO-COMMISSIONING,WHITE HOUSE SURGERY SHEFFIELD,36162667,266.69,RAMW,S2 1SL
Department of Health,NHS Sheffield CCG,31/03/2021,C&M-GMS Prof Fees Prescribing,PRC DELEGATED CO-COMMISSIONING,WHITE HOUSE SURGERY SHEFFIELD,36162667,125.44,DRGPPF,S2 1SL
Department of Health,NHS Sheffield CCG,31/03/2021,C&M-GMS QOF Aspiration,PRC DELEGATED CO-COMMISSIONING,WHITE HOUSE SURGERY SHEFFIELD,36162667,"6,054.80",QUASPG,S2 1SL
Department of Health,NHS Sheffield CCG,31/03/2021,Cont Care-Physical Disab (<65),CHC ADULT FULLY FUNDED,WILLOWBECK HEALTH CARE LTD,35957621,"170,719.12",CHC SCHEDULE MARCH 2021 - Willowbeck Health Care Ltd (Exemplar HC),S4 8AR
Department of Health,NHS Sheffield CCG,31/03/2021,C&M-PMS Contract Value,PRC DELEGATED CO-COMMISSIONING,WINCOBANK MEDICAL CENTRE,35928145,"63,698.76",BABALP,S9 1DJ
Department of Health,NHS Sheffield CCG,31/03/2021,C&M-PMS DES Learn Dsblty Hlth Chk,PRC DELEGATED CO-COMMISSIONING,WINCOBANK MEDICAL CENTRE,35928145,"1,120.00",LEARNP,S9 1DJ
Department of Health,NHS Sheffield CCG,31/03/2021,C&M-PMS DES Minor Surgery,PRC DELEGATED CO-COMMISSIONING,WINCOBANK MEDICAL CENTRE,35928145,"1,135.00",DEMSUP,S9 1DJ
Department of Health,NHS Sheffield CCG,31/03/2021,C&M-PMS Out of Hours Opt Outs,PRC DELEGATED CO-COMMISSIONING,WINCOBANK MEDICAL CENTRE,35928145,17.36,APMOOH,S9 1DJ
Department of Health,NHS Sheffield CCG,31/03/2021,C&M-PMS PCN DES Participation,PRC DELEGATED CO-COMMISSIONING,WINCOBANK MEDICAL CENTRE,35928145,"2,384.65",PARTIP,S9 1DJ
Department of Health,NHS Sheffield CCG,31/03/2021,C&M-PMS Prem Healthcentre Rent,PRC DELEGATED CO-COMMISSIONING,WINCOBANK MEDICAL CENTRE,35928145,"46,340.33",HEALTH,S9 1DJ
Department of Health,NHS Sheffield CCG,31/03/2021,C&M-PMS QOF Aspiration,PRC DELEGATED CO-COMMISSIONING,WINCOBANK MEDICAL CENTRE,35928145,"5,972.45",QUASPP,S9 1DJ
Department of Health,NHS Sheffield CCG,31/03/2021,C&M-PMS Contract Value,PRC DELEGATED CO-COMMISSIONING,WOODHOUSE HEALTH CENTRE,35928143,"102,206.58",BABALP,S13 7LY
Department of Health,NHS Sheffield CCG,31/03/2021,C&M-PMS DES Minor Surgery,PRC DELEGATED CO-COMMISSIONING,WOODHOUSE HEALTH CENTRE,35928143,"2,440.00",DEMSUP,S13 7LY
Department of Health,NHS Sheffield CCG,31/03/2021,C&M-PMS Funding Differential Review,PRC DELEGATED CO-COMMISSIONING,WOODHOUSE HEALTH CENTRE,35928143,"2,095.91",ZFUNFP,S13 7LY
Department of Health,NHS Sheffield CCG,31/03/2021,C&M-PMS Out of Hours Opt Outs,PRC DELEGATED CO-COMMISSIONING,WOODHOUSE HEALTH CENTRE,35928143,110.05,APMOOH,S13 7LY
Department of Health,NHS Sheffield CCG,31/03/2021,C&M-PMS PCN DES Participation,PRC DELEGATED CO-COMMISSIONING,WOODHOUSE HEALTH CENTRE,35928143,"3,831.08",PARTIP,S13 7LY
Department of Health,NHS Sheffield CCG,31/03/2021,C&M-PMS Prem Notional Rent,PRC DELEGATED CO-COMMISSIONING,WOODHOUSE HEALTH CENTRE,35928143,"6,338.58",NRENT,S13 7LY
Department of Health,NHS Sheffield CCG,31/03/2021,C&M-PMS Prem Rates,PRC DELEGATED CO-COMMISSIONING,WOODHOUSE HEALTH CENTRE,35928143,286.27,RANDRP,S13 7LY
Department of Health,NHS Sheffield CCG,31/03/2021,C&M-PMS Prem Water Rates,PRC DELEGATED CO-COMMISSIONING,WOODHOUSE HEALTH CENTRE,35928143,255.52,RAMWP,S13 7LY
Department of Health,NHS Sheffield CCG,31/03/2021,C&M-PMS QOF Aspiration,PRC DELEGATED CO-COMMISSIONING,WOODHOUSE HEALTH CENTRE,35928143,"13,397.77",QUASPP,S13 7LY
Department of Health,NHS Sheffield CCG,31/03/2021,Miscellaneous Expenditure (L9),BUSINESS DEVELOPMENT,WOODHOUSE HEALTH CENTRE,36222924,"36,494.78",,S13 7LY
Department of Health,NHS Sheffield CCG,31/03/2021,C&M-PMS Contract Value,PRC DELEGATED CO-COMMISSIONING,WOODSEATS MEDICAL CENTRE,35936200,"81,543.97",BABALP,S8 0SH
Department of Health,NHS Sheffield CCG,31/03/2021,C&M-PMS DES Minor Surgery,PRC DELEGATED CO-COMMISSIONING,WOODSEATS MEDICAL CENTRE,35936200,"5,140.00",DEMSUP,S8 0SH
Department of Health,NHS Sheffield CCG,31/03/2021,C&M-PMS Out of Hours Opt Outs,PRC DELEGATED CO-COMMISSIONING,WOODSEATS MEDICAL CENTRE,35936200,13.08,APMOOH,S8 0SH
Department of Health,NHS Sheffield CCG,31/03/2021,C&M-PMS PCN DES Participation,PRC DELEGATED CO-COMMISSIONING,WOODSEATS MEDICAL CENTRE,35936200,"3,012.16",PARTIP,S8 0SH
Department of Health,NHS Sheffield CCG,31/03/2021,C&M-PMS Prem Notional Rent,PRC DELEGATED CO-COMMISSIONING,WOODSEATS MEDICAL CENTRE,35936200,"11,666.67",NRENT,S8 0SH
Department of Health,NHS Sheffield CCG,31/03/2021,C&M-PMS Prem Rates,PRC DELEGATED CO-COMMISSIONING,WOODSEATS MEDICAL CENTRE,35936200,"4,071.00",RANDRP,S8 0SH
Department of Health,NHS Sheffield CCG,31/03/2021,C&M-PMS QOF Aspiration,PRC DELEGATED CO-COMMISSIONING,WOODSEATS MEDICAL CENTRE,35936200,"8,588.98",QUASPP,S8 0SH
Department of Health,NHS Sheffield CCG,31/03/2021,Professional Fees,CLINICAL LEADS,YORKSHIRE & HUMBER AHSN LTD,35896842,"240,000.00",https://nww.einvoice-prod.sbs.nhs.uk:8179/invoicepdf/88353be1-f579-53df-bfea-3566a9374665,WF4 3BA
Department of Health,NHS Sheffield CCG,31/03/2021,Professional Fees,BEREAVEMENT SERVICE,YORKSHIRE & HUMBER AHSN LTD,35896846,"85,200.00",https://nww.einvoice-prod.sbs.nhs.uk:8179/invoicepdf/e59623bf-8295-5fa5-9d06-01065539ca0a,WF4 3BA
Department of Health,NHS Sheffield CCG,31/03/2021,Professional Fees,BEREAVEMENT SERVICE,YORKSHIRE & HUMBER AHSN LTD,35896850,"480,000.00",https://nww.einvoice-prod.sbs.nhs.uk:8179/invoicepdf/049bb5e5-dd4b-5695-97ae-51978545f79d,WF4 3BA
